Workbook

Sheet Instructions
A1: Instructions
F2: Version 1.1
B3: Applicant Certification
B5: By signing the Applicant Statement, I/ We, who are authorized to legally act on the applicant’s behalf, certify and guarantee, under penalty of perjury: that services provided, as requested, will be available within 6 months of the project’s placed-in-service date, of a regular and ongoing nature, and provided to tenants for period of at least 15 years, free of charge (except for day care services or any charges required by law), and are not being delivered by the on-site Property Manager or other property management staff consistent with TCAC Regulations Section 10325(c)(4)(B); that each of the individual items identified in the minimum construction standards section of TCAC Regulations will be incorporated into the design of the project; and that all information provided in this Excel document is true and correct.
B12: Linking to your E-application
B14: This workbook is linked to and dependent upon the 2022 TCAC 9% e-application or Attachment 40. This is intended to reduce duplicate data entry and perform calculations for applicants. We greatly value your feedback and suggestions for improving the application process. Please send your thoughts to tcacdocs@treasurer.ca.gov with the subject “Linked Workbook Feedback”.
E18: =HYPERLINK("mailto:tcacdocs@treasurer.ca.gov?subject=Linked Workbook Feedback","mailto: TCACdocs@treasurer.ca.gov") -> mailto: TCACdocs@treasurer.ca.gov
B20: 1) | C20: You must be on the Instructions tab to point this workbook to your e-application.
B22: 2) | C22: Select the “Edit Links” icon within the “Data” menu in the ribbon above ([Alt + A] then [Alt + K]).
B24: 3) | C24: On the left side of the Edit Links dialogue box, highlight the current data source. On the right side click the “Change Source…” button.
B27: 4) | C27: In the Change Source dialogue box, navigate to and select your 2022 e-application then click the “Open” button. Note: many calculations within this workbook will not work properly until the e-application is complete.
B30: 5) | C30: After the linked cells have updated, “Close” the Edit Links dialogue box.
B32: 6) | C32: If the links were successfully updated, your project name should appear below.
D34: Project Name: | E34: =INDEX(val,MATCH("g_ProjectName",ref,0)) -> Test Project
B36: 7) | C36: Cells with grey backgrounds are pulled from (or based on data from) your e-application. Applicants should only provide information in cells with yellow backgrounds.
B39: 8) | C39: While working with linked workbooks you may be prompted with one of the following warnings. You will be required to “Enable Content” or “Update” linked cells to keep the workbooks in sync. When you make changes to the e-application you should open, update linked cells, and save all other linked workbooks. It is the applicant’s responsibility to ensure all information provided is consistent.
B55: 9) | C55: If you move or rename the e-application or its folder, you may be notified that linked cells can’t be updated. While on the Instructions tab, you should be able to “Edit Links” and “Change Source” to communicate the correct file path.
B83: Housing Type tab
B85: 1) | C85: Be sure your Housing Type is pulled from the e-application in cell N7.
B87: 2) | C87: If applicable, be sure your secondary Housing Type is displayed in Housing Type tab cell N8.
B89: 3) | C89: Click the macro icon in row 10 if you'd like to show only requirements for your housing type(s). Click the macro icon in row 11 to show all housing types after running the macro.
B92: 4) | C92: Evidence compliance with the applicable housing type requirements.
B94: 5) | C94: Once complete, the cells AI7 and AI8 should show 0 remaining unmet requirements.
B96: Note: If you choose not to hide unrelated requirements, you can quickly navigate to your applicable section by clicking the corresponding link at the top right in cells AM2:AM6.
B99: Parcels tab
B101: 1) | C101: All parcels should be listed on the parcels tab. Include each Assessor's Parcel Number on its own line. Enter the square footage only for that parcel. List the fee owner for that parcel on the Title Report provided with your application, and the current use of each parcel.
B105: 2) | C105: All parcels that will have their site control evidenced by the same documents should be assigned the same Site Control ID. A Site Control tab will be generated for each unique Site Control ID. This attachment has been designed with room for 5 different sets of site control documents.
C108: a) | D108: For example, 5 parcels sold on the same purchase and sale agreement will use one (1) Site Control tab. 2 parcels being sold to the applicant by two (2) different sellers would require two Site Control tabs.
B112: 3) | C112: Once all parcels have been entered on the Parcels tab, select the macro icon in cell F1:G1 to show as many Site Control tabs as necessary.
B116: Site Control tabs
B118: 1) | C118: All relevant parcel numbers for each Site Control number will be listed on row 5. Provide a narrative description for how those parcels are controlled by the applicant.
B121: 2) | C121: Select what type of document or agreement is being used to demonstrate site control for the applicable parcels and provide the requested information.
B124: 3) | C124: Select what document is being used to substantiate land value or cost for the applicable parcels and provide the requested information.
B127: 4) | C127: Provide the requested information regarding the title report.
B129: 5) | C129: Disclose all outstanding liens against the parcels on each title report.
B131: Services tab
B133: 1) | C133: The top area of this tab contains summary information for your convenience.
B135: 2) | C135: Include position descriptions where required.
B137: 3) | C137: A conversion tool for FTE to hours is included in cells AP29:AY37. This is only for your convenience to calculate the required number of service hours per year, no entry is required in the yellow cell for application submission.
B140: 4) | C140: Complete the "Service Provider and Reference Contacts" table. Select whether the contact is a provider or a reference. All items entered in the Contacts table will be available to select from the dropdowns in the Budget and Experience tables.
B143: Resyndication tab
B145: Resyndication projects are existing tax credit projects requesting a new reservation of tax credits to finance the rehabilitation of the existing tax credit project. A new reservation of tax credits may be applied for concurrently with the initial, expiring 15-year federal compliance period. The acquisition date and the placed in service date must occur after the existing federal 15-year compliance period has expired.
B150: 1) | C150: If you have multiple projects that are resyndicating into one, you may duplicate this tab.
B152: 2) | C152: To do so, right-click the tab and select "Move or Copy...", highlight "Rehab", and check "Create a copy" before selecting "Okay".
B155: 3) | C155: Complete the Checklist and Questionnaire, providing any documents required in tab 8.
B157: Rehab tab
B159: This form is designed to facilitate the reconciliation of the Capital Needs Assessment and the aggregate rehabilitation budget presented in TCAC's Sources and Uses. The intent is to hold developers of rehabilitation projects to the same standards as those who develop newly constructed projects.
B163: 1) | C163: Rehabilitation Items: You are encouraged to individualize this report as needed by removing or adding rows as necessary to the particular project. However, columns are not to be removed or ignored, nor are the overall row categories to be changed (these are denoted by the BOLD CAPITALIZED HEADINGS in the rows).
B167: 2) | C167: Comments / Brief Description of the Proposed Rehabilitation: The description provided here should represent a concise explanation of what will be rehabilitated regarding the particular rehabilitation line item.
B170: 3) | C170: Number and Percentage: These columns should provide an estimate of the percentage of units that will be subject to this particular rehabilitation; or if more appropriate, the percentage of the component(s) / feature(s) throughout the project, that will be subject to this rehabilitation expenditure.
B174: 4) | C174: Estimated Remaining Useful Life / CNA Evidence: Cite the page(s) in the CNA that support the need for this rehabilitation, and/or provide an estimate of the remaining useful life (typically a range for multiple items such as appliances, etc.) to the feature that will be rehabilitated.
B178: 5) | C178: Estimated Cost: Self-explanatory, however, the total of these expenditures must equal the sum of the rehabilitation site work, structures and prevailing wage costs (i.e., all costs not shown as contractor profit, overhead and general requirements) in the first page of "Part IV: Sources and Uses Budget.
B182: 6) | C182: Total Cost From Capital Needs Assessment (CNA): Enter the estimated cost total for the "Immediate Needs" into Cell G85. If there is a variance from the total amount on the "Rehabilitation Summary" worksheet, please provide an explanation in the "Comments" table.
B186: Construction & Design tab
B188: 1) | C188: Provide a narrative in tab 12 that includes all details listed on the Construction & Design tab.
B190: Minimum Construction Standards tab
B193: 1) | C193: Read each listed minimum construction standard.
B195: 2) | C195: Select if you have requested and received approval for a waiver. If so, provide the waiver in tab 10.
B197: 3) | C197: No additional signature is required on this page. By signing the Applicant Statement, you are certifying to the response selected.

Sheet Housing Type
A1: Attachment 4 - Additional Threshold Requirements | AM1: Jump to section: | AS1: =HYPERLINK("#Instructions!N83","Instructions for Housing Type tab »") -> Instructions for Housing Type tab »
AM2: =HYPERLINK("#"&AO2,"Large Family") -> Large Family | AN2: =COUNTIFS(INDIRECT(AP2),IsFalse) -> 8 | AO2: =CELL("address",A13) -> $A$13 | AP2: =SUBSTITUTE(AO2&":"&AO3,"A","AJ") -> $AJ$13:$AJ$107 | AQ2: =OR($N$7=AM2,$N$8=AM2) -> FALSE
G3: Project Name: | H3: =INDEX(val,MATCH("g_ProjectName",ref,0)) -> Test Project | AE3: Application deadline: | AM3: =HYPERLINK("#"&AO3,"Seniors") -> Seniors | AN3: =COUNTIFS(INDIRECT(AP3),IsFalse) -> 8 | AO3: =CELL("address",A107) -> $A$107 | AP3: =SUBSTITUTE(AO3&":"&AO4,"A","AJ") -> $AJ$107:$AJ$196 | AQ3: =OR($N$7=AM3,$N$8=AM3) -> TRUE
AM4: =HYPERLINK("#"&AO4,"Special Needs") -> Special Needs | AN4: =COUNTIFS(INDIRECT(AP4),IsFalse) -> 10 | AO4: =CELL("address",A196) -> $A$196 | AP4: $AJ$196:$AJ$366 | AQ4: =OR($N$7=AM4,$N$8=AM4) -> TRUE
B5: Is the project seeking points in the 9% scoring or the QRRP scoring for meeting a housing type's additional threshold requirements? | AI5: =IF(INDEX(val,MATCH("t_PointsAddlHousingType",ref,0)),"Yes","No") -> No | AM5: =HYPERLINK("#"&AO5,"At-Risk") -> At-Risk | AN5: =COUNTIFS(INDIRECT(AP5),IsFalse) -> 8 | AO5: =CELL("address",A366) -> $A$366 | AP5: $AJ$366:$AJ$470 | AQ5: =OR($N$7=AM5,$N$8=AM5) -> FALSE
AM6: =HYPERLINK("#"&AO6,"SRO") -> SRO | AN6: =COUNTIFS(INDIRECT(AP6),IsFalse) -> 8 | AO6: =CELL("address",A470) -> $A$470 | AP6: $AJ$470:$AJ$566 | AQ6: =OR($N$7=AM6,$N$8=AM6) -> FALSE
B7: The project's primary housing type: | N7: =INDEX(val,MATCH("t_HousingType",ref,0)) -> Special Needs | AH7: Additional Threshold Requirements not yet met: | AI7: =IFERROR(INDEX($AN$2:$AN$6,MATCH(N7,$AM$2:$AM$6,0)),"") -> 10 | AO7: =CELL("address",A566) -> $A$566
B8: The project's secondary housing type: | N8: =IF(INDEX(val,MATCH("t_SecondaryHousingType",ref,0))=0,"N/A",INDEX(val,MATCH("t_SecondaryHousingType",ref,0))) -> Seniors | AH8: =IF(N8="N/A","","Additional Threshold Requirements not met:") -> Additional Threshold Requirements not met: | AI8: =IFERROR(INDEX($AN$2:$AN$6,MATCH(N8,$AM$2:$AM$6,0)),0) -> 8
B10: Click this button to hide all other housing types besides the relevant type(s) shown above:
B11: Click this button to show all housing types:
A13: Large Family - 10325(g)(1)
B15: 10325(g)(1)(A) | H15: Required 2-BR and 3-BR units | AJ15: =IF(AND(NOT(AC20="!"),OR(W23="Yes",AND(Z20:AB21))),IsTrue,IsFalse) -> û
C17: Did the project receive land use entitlements prior to January 1, 2016?
C19: Low Income Units: | M19: =IF(AND($N$7="Special Needs",$N$8="Large Family"),INDEX(val,MATCH("g_UnitsLowIncome",ref,0))-INDEX(val,MATCH("g_UnitsSpecialNeeds",ref,0)),INDEX(val,MATCH("g_UnitsLowIncome",ref,0))) -> 100
I20: Required 2-BR Units: | J20: =IF(Y17="Yes",0%,25%) -> 0.25 | M20: =ROUNDUP($M$19*J20,0) -> 25 | V20: Proposed 2-BR Units: | W20: =IF(AND($N$7="Special Needs",$N$8="Large Family"),INDEX(val,MATCH("g_Units2",ref,0))-INDEX(val,MATCH("g_SpNe2",ref,0)),INDEX(val,MATCH("g_Units2",ref,0))) -> 0 | Z20: =OR(W20>=M20,W21-M21>=M20) -> FALSE | AC20: =IF(AND($N$7="Special Needs",$N$8="Large Family",$T$231=0),"!","") ->  | AD20: =IF(AC20="!","Complete primary housing type first","") -> 
I21: Required 3-BR+ Units: | J21: 0.25 | M21: =ROUNDUP($M$19*J21,0) -> 25 | V21: Proposed 3-BR+ Units: | W21: =IF(AND($N$7="Special Needs",$N$8="Large Family"),((INDEX(val,MATCH("g_Units3",ref,0))+INDEX(val,MATCH("g_Units4",ref,0))+INDEX(val,MATCH("g_Units5",ref,0)))-(INDEX(val,MATCH("g_SpNe3",ref,0))+INDEX(val,MATCH("g_SpNe4",ref,0))+INDEX(val,MATCH("g_SpNe5",ref,0)))),(INDEX(val,MATCH("g_Units3",ref,0))+INDEX(val,MATCH("g_Units4",ref,0))+INDEX(val,MATCH("g_Units5",ref,0)))) -> 0 | Z21: =W21>=M21 -> FALSE
C23: Applying under the 9% At-Risk Set-Aside and obtained a waiver:
D24: Waivers should be saved as a standalone file in tab 4.
B26: 10325(g)(1)(B) | H26: Minimum unit square footages | AJ26: =IF(OR(W35="Yes",AND(V30:X33)),IsTrue,IsFalse) -> û
C28: Smallest Sq. Ft. Proposed | H28: Unit Type | O28: Minimum Sq. Ft. | S28: Count
H30: 1 Bedroom | O30: 450 | S30: =_xlfn.SINGLE(IF(AND($N$7="Special Needs",$N$8="Large Family"),_xlfn.SINGLE(INDEX(val,MATCH("g_Units1",ref,0)))-_xlfn.SINGLE(INDEX(val,MATCH("g_SpNe1",ref,0))),_xlfn.SINGLE(INDEX(val,MATCH("g_Units1",ref,0))))) -> 100 | V30: =OR(S30=0,C30>=O30) -> FALSE
H31: 2 Bedroom | O31: 700 | S31: =_xlfn.SINGLE(IF(AND($N$7="Special Needs",$N$8="Large Family"),_xlfn.SINGLE(INDEX(val,MATCH("g_Units2",ref,0)))-_xlfn.SINGLE(INDEX(val,MATCH("g_SpNe2",ref,0))),_xlfn.SINGLE(INDEX(val,MATCH("g_Units2",ref,0))))) -> 0 | V31: =OR(S31=0,C31>=O31) -> TRUE
H32: 3 Bedroom | O32: 900 | S32: =_xlfn.SINGLE(IF(AND($N$7="Special Needs",$N$8="Large Family"),_xlfn.SINGLE(INDEX(val,MATCH("g_Units3",ref,0)))-_xlfn.SINGLE(INDEX(val,MATCH("g_SpNe3",ref,0))),_xlfn.SINGLE(INDEX(val,MATCH("g_Units3",ref,0))))) -> 0 | V32: =OR(S32=0,C32>=O32) -> TRUE
H33: 4+ Bedroom | O33: 1100 | S33: =_xlfn.SINGLE(IF(AND($N$7="Special Needs",$N$8="Large Family"),((_xlfn.SINGLE(INDEX(val,MATCH("g_Units4",ref,0)))+_xlfn.SINGLE(INDEX(val,MATCH("g_Units5",ref,0))))-(_xlfn.SINGLE(INDEX(val,MATCH("g_SpNe4",ref,0)))+_xlfn.SINGLE(INDEX(val,MATCH("g_SpNe5",ref,0))))),(_xlfn.SINGLE(INDEX(val,MATCH("g_Units4",ref,0)))+_xlfn.SINGLE(INDEX(val,MATCH("g_Units5",ref,0)))))) -> 0 | V33: =OR(S33=0,C33>=O33) -> TRUE
C35: Applying as a rehabilitation project and obtained a waiver:
D36: Waivers should be saved as a standalone file in tab 4.
B38: 10325(g)(1)(C) | H38: Required two full baths for 4+BR units | AJ38: =IF(R40=0,IsTrue,IF(AE42="Yes",IsTrue,IsFalse)) -> ü
C40: Count of 4 or more bedroom units | R40: =IF(AND($N$7="Special Needs",$N$8="Large Family"),((INDEX(val,MATCH("g_Units4",ref,0))+INDEX(val,MATCH("g_Units5",ref,0)))-(INDEX(val,MATCH("g_SpNe4",ref,0))+INDEX(val,MATCH("g_SpNe5",ref,0)))),INDEX(val,MATCH("g_Units4",ref,0))+INDEX(val,MATCH("g_Units5",ref,0))) -> 0
C42: Are at least 2 full bathrooms to be provided in all 4 bedroom and larger Low-Income Units?
B44: 10325(g)(1)(D) | H44: Required play/recreational facilities | AJ44: =IF(OR(R46="Yes",U58="Yes",AND(C48<>"",C56<>"",AA49)),IsTrue,IsFalse) -> û
C46: Is the project exempt for having 20 units or fewer: | R46: =IF(INDEX(val,MATCH("g_UnitsTotal",ref,0))<=20,"Yes","No") -> No
C47: Describe the outdoor accessible play/recreational area for children ages 2-12.
F49: Sq. Ft. Min: | G49: =600+MAX(0,INDEX(val,MATCH("g_UnitsTotal",ref,0))-100)*5 -> 605 | W49: Recreation area sq. ft. (ages 2-12) proposed: | AA49: =X49>=G49 -> FALSE
C51: Outdoor play/recreational space must be equipped with reasonable play equipment for the size of the project, and the surface must be natural or synthetic protective material. The play area must include an accessible entrance point.
C55: Describe the play/recreational facilities for children ages 13-17.
C58: Applying as a rehabilitation project and obtained a waiver:
D59: Waivers should be saved as a standalone file in tab 4.
B61: 10325(g)(1)(E) | H61: Required common areas | AJ61: =IF(OR(U71="Yes",AND(C66<>"",P63>=AC63)),IsTrue,IsFalse) -> û
C62: Common area sq. ft. proposed, excluding laundry rooms or manager living units:
AB63: Sq. Ft. Min: | AC63: =IF(AC64>100,AH64,INDEX(AH65:AH68,MATCH(AC64,AF65:AF68,-11))) -> 1800 | AF63: Units | AH63: Min
AB64: Total Units: | AC64: =INDEX(val,MATCH("g_UnitsTotal",ref,0)) -> 101 | AF64: > 100 | AH64: 1800
C65: Describe the interior common area amenities: | AF65: 100 | AH65: 1400
AF66: 60 | AH66: 1000
AF67: 30 | AH67: 600
AF68: 20 | AH68: 0
C71: Applying as a rehabilitation project and obtained a waiver:
D72: Waivers should be saved as a standalone file in tab 4.
C73: Is this part of a multiphase project proposing to share use of common areas and community space?
D74: A joint use agreement must be provided in the placed in service application.
B76: 10325(g)(1)(F) | H76: Public agency or owner's equity financing | AJ76: =IF(OR(AD79:AF80),IsTrue,IsFalse) -> û
C78: Total Project Costs: | Q78: =INDEX(val,MATCH("g_TotalProjectCost",ref,0)) -> 104700000
C79: Public agency long-term financial support: | Q79: 0 | W79: Percentage: | AA79: =IFERROR(Q79/Q78,0) -> 0 | AD79: =AA79>=AH79 -> FALSE | AH79: 0.15
C80: Owner's equity (including tax credit proceeds): | Q80: 0 | W80: Percentage: | AA80: =IFERROR(Q80/Q78,0) -> 0 | AD80: =AA80>=AH80 -> FALSE | AH80: 0.3
B82: 10325(g)(1)(G) | H82: Adequate laundry facilities | AJ82: =IF(OR(S84="Yes",AND(AH85>=AH84,AH86>=AH84)),IsTrue,IsFalse) -> û
B84: Are washers and dryers provided in each unit? | V84: Total Units: | Z84: =IF(AND($N$7="Special Needs",$N$8="Large Family"),_xlfn.SINGLE(INDEX(val,MATCH("g_UnitsTotal",ref,0)))-_xlfn.SINGLE(INDEX(val,MATCH("g_UnitsSpecialNeeds",ref,0))),_xlfn.SINGLE(INDEX(val,MATCH("g_UnitsTotal",ref,0)))) -> 101 | AG84: Min required: | AH84: =ROUNDUP(Z84/10*(100%-Z85),0) -> 11
R85: Are washer and dryer hookups provided in each unit? | V85: Reduction: | Z85: =IF(S85="Yes",25%,0%) -> 0 | AG85: Washers provided:
AG86: Dryers provided:
B88: 10325(g)(1)(H) | H88: Dishwashers | AJ88: =IF(OR(AE90="Yes",U92="Yes"),IsTrue,IsFalse) -> û
C90: Are dishwashers to be provided in all Low-Income Units (excepting studio and SRO units)?
C92: Applying as a rehabilitation project and obtained a waiver:
D93: Waivers should be saved as a standalone file in tab 4.
B95: 10325(g)(1)(I) | H95: Minimum low-income use period | AJ95: =IF(AA98="Acknowledged",IsTrue,IsFalse) -> û
C97: Family projects are subject to a minimum low-income use period of 55 years (50 years for projects located on tribal trust land)
H101: Additional comments - Large Family | AJ101: =IsTrue -> ü
A107: Senior - 10325(g)(2)
B109: 10325(g)(2)(A) | H109: Fair Housing | AJ109: =IF(AE111="Acknowledged",IsTrue,IsFalse) -> û
C111: All units shall be restricted to households eligible under applicable provisions of California Civil Code Section 51.3 and the federal Fair Housing Act, and further be subject to state and federal fair housing laws with respect to senior housing
B115: 10325(g)(2)(B) | H115: Accessible units | AJ115: =IF(OR(W127="Yes",AND(Z120>=Z119,AE123="Acknowledged",Z118>0)),IsTrue,IsFalse) -> û
C117: Project type: | H117: =IF(OR(INDEX(val,MATCH("t_IsNewConstruction",ref,0)),INDEX(val,MATCH("t_IsAdaptiveReuse",ref,0))),"New Construction","Rehabilitation") -> New Construction | Y117: Required percentage: | Z117: =IF(H117="New Construction",50%,30%) -> 0.5
Y118: Quantity of units on an accessible path (ground floor and elevator serviced): | AC118: =IF(AND($N$7="Special Needs",$N$8="Seniors",$T$231=0),"!","") -> ! | AD118: =IF(AC118="!","Complete primary housing type first","") -> Complete primary housing type first
Y119: Required mobility accessible units per CBC Chapter 11(B): | Z119: =ROUNDUP(Z117*Z118,0) -> 0
Y120: Proposed mobility accessible units per CBC Chapter 11(B):
C122: Projects with elevators must comply with CBC Chapter 11(B) accessibility requirements for elevators. All project owners must provide adequate and visible notice to tenants of their ability to request conversion of their adaptable unit to an accessible unit. Mobility accessible units, to the maximum extent feasible, shall be distributed throughout the project consistent with 24 CFR Section 8.26.
C127: Applying as a rehabilitation project and obtained a waiver:
D128: Waivers should be saved as a standalone file in tab 4.
B130: 10325(g)(2)(C) | H130: Elevators | AJ130: =IF(OR(R133,I133<2),IsTrue,IsFalse) -> ü
C132: Buildings over two stories shall have an elevator.
C133: Building Stories: | I133: =INDEX(val,MATCH("g_BuildingStories",ref,0)) -> 1 | L133: Includes elevators: | R133: =INDEX(val,MATCH("g_IncludesElevators",ref,0)) -> FALSE
B135: 10325(g)(2)(D) | H135: Limit on 2+ BR units | AJ135: =IF(OR(AH137="Yes",Z138<=Z137),IsTrue,IsFalse) -> ü
C137: Low-Income Units: | Q137: =_xlfn.SINGLE(IF(AND($N$7="Special Needs",$N$8="Seniors"),_xlfn.SINGLE(INDEX(val,MATCH("g_UnitsLowIncome",ref,0)))-_xlfn.SINGLE(INDEX(val,MATCH("g_UnitsSpecialNeeds",ref,0))),_xlfn.SINGLE(INDEX(val,MATCH("g_UnitsLowIncome",ref,0))))) -> 50 | Y137: Maximum allowed: | Z137: 0.2 | AG137: Obtained waiver:
P138: Low-Income Units with greater than 1 bedroom: | Q138: =_xlfn.SINGLE(IF(AND($N$7="Special Needs",$N$8="Seniors"),((_xlfn.SINGLE(INDEX(val,MATCH("g_Units2",ref,0)))+_xlfn.SINGLE(INDEX(val,MATCH("g_Units3",ref,0)))+_xlfn.SINGLE(INDEX(val,MATCH("g_Units4",ref,0)))+_xlfn.SINGLE(INDEX(val,MATCH("g_Units5",ref,0))))-(_xlfn.SINGLE(INDEX(val,MATCH("g_SpNe2",ref,0)))+_xlfn.SINGLE(INDEX(val,MATCH("g_SpNe3",ref,0)))+_xlfn.SINGLE(INDEX(val,MATCH("g_SpNe4",ref,0)))+_xlfn.SINGLE(INDEX(val,MATCH("g_SpNe5",ref,0))))),(_xlfn.SINGLE(INDEX(val,MATCH("g_Units2",ref,0)))+_xlfn.SINGLE(INDEX(val,MATCH("g_Units3",ref,0)))+_xlfn.SINGLE(INDEX(val,MATCH("g_Units4",ref,0)))+_xlfn.SINGLE(INDEX(val,MATCH("g_Units5",ref,0)))))) -> 0 | Y138: Percentage: | Z138: =IFERROR(Q138/Q137,"") -> 0 | AC138: Waivers should be saved as a standalone file in tab 4.
B140: 10325(g)(2)(E) | H140: Minimum unit square footages | AJ140: =IF(OR(W148="Yes",AND(V145:X146)),IsTrue,IsFalse) -> û
C142: Smallest Sq. Ft. Proposed | G142: Unit Type | N142: Minimum Sq. Ft. | R142: Count
G145: 1 Bedroom | N145: 450 | R145: =_xlfn.SINGLE(IF(AND($N$7="Special Needs",$N$8="Seniors"),_xlfn.SINGLE(INDEX(val,MATCH("g_Units1",ref,0)))-_xlfn.SINGLE(INDEX(val,MATCH("g_SpNe1",ref,0))),_xlfn.SINGLE(INDEX(val,MATCH("g_Units1",ref,0))))) -> 100 | V145: =OR(R145=0,C145>=N145) -> FALSE
G146: 2 Bedroom | N146: 700 | R146: =_xlfn.SINGLE(IF(AND($N$7="Special Needs",$N$8="Seniors"),_xlfn.SINGLE(INDEX(val,MATCH("g_Units2",ref,0)))-_xlfn.SINGLE(INDEX(val,MATCH("g_SpNe2",ref,0))),_xlfn.SINGLE(INDEX(val,MATCH("g_Units2",ref,0))))) -> 0 | V146: =OR(R146=0,C146>=N146) -> TRUE
C148: Applying as a rehabilitation project and obtained a waiver:
D149: Waivers should be saved as a standalone file in tab 4.
B151: 10325(g)(2)(F) | H151: Emergency call systems | AJ151: =IF(OR(AF153="No",AND(AF153="Yes",AE156="Acknowledged")),IsTrue,IsFalse) -> û
C153: Will the project include units to be occupied by frail elderly populations requiring assistance with activities for daily living and or special needs units?
C156: Such units must be equipped with emergency call systems with 24-hour monitoring or approved alternative.
B159: 10325(g)(2)(G) | H159: Required common areas | AJ159: =IF(OR(U169="Yes",AND(C164<>"",P161>=AC161)),IsTrue,IsFalse) -> û
C160: Common area sq. ft. proposed, excluding laundry rooms or manager living units:
AB161: Sq. Ft. Min: | AC161: =IF(AC162>100,AH162,INDEX(AH163:AH166,MATCH(AC162,AF163:AF166,-11))) -> 1800 | AF161: Units | AH161: Min
AB162: Total Units: | AC162: =INDEX(val,MATCH("g_UnitsTotal",ref,0)) -> 101 | AF162: > 100 | AH162: 1800
C163: Describe the interior common area amenities: | AF163: 100 | AH163: 1400
AF164: 60 | AH164: 1000
AF165: 30 | AH165: 600
AF166: 20 | AH166: 0
C169: Applying as a rehabilitation project and obtained a waiver:
D170: Waivers should be saved as a standalone file in tab 4.
B172: 10325(g)(2)(H) | H172: Public agency or owner's equity financing | AJ172: =IF(OR(AD175:AF176),IsTrue,IsFalse) -> û
C174: Total Project Costs: | Q174: =INDEX(val,MATCH("g_TotalProjectCost",ref,0)) -> 104700000
C175: Public agency long-term financial support: | Q175: 0 | W175: Percentage: | AA175: =IFERROR(Q175/Q174,0) -> 0 | AD175: =AA175>=AH175 -> FALSE | AH175: 0.15
C176: Owner's equity (including tax credit proceeds): | Q176: 0 | W176: Percentage: | AA176: =IFERROR(Q176/Q174,0) -> 0 | AD176: =AA176>=AH176 -> FALSE | AH176: 0.3
B178: 10325(g)(2)(I) | H178: Adequate laundry facilities | AJ178: =IF(OR(S180="Yes",AND(AH181>=AH180,AH182>=AH180)),IsTrue,IsFalse) -> û
B180: Are washers and dryers provide in each unit? | V180: Total Units: | Z180: =INDEX(val,MATCH("g_UnitsTotal",ref,0)) -> 101 | AG180: Min required: | AH180: =ROUNDUP(Z180/15*(100%-Z181),0) -> 7
R181: Are washer and dryer hookups provided in each unit? | V181: Reduction: | Z181: =IF(S181="Yes",25%,0%) -> 0 | AG181: Washers provided:
AG182: Dryers provided:
B184: 10325(g)(2)(J) | H184: Minimum low-income use period | AJ184: =IF(AA187="Acknowledged",IsTrue,IsFalse) -> û
C186: Senior projects are subject to a minimum low-income use period of 55 years (50 years for projects located on tribal trust land)
H190: Additional comments - Senior | AJ190: =IsTrue -> ü
A196: Special Needs - 10325(g)(3)
B198: 10325(g)(3) | H198: Unit mix clarification | AJ198: =IF(T231=T232,IsTrue,IsFalse) -> ü
C200: The below table shows the unit mix you entered in the e-application. Please clarify how many of each bedroom type are Special Needs units.
C203: Bedroom Type | H203: Number of Units | L203: # Special Needs Units | P203: Average Square Feet | T203: Net Monthly Rent | Y203: Monthly Utility Allowance | AD203: % of Actual AMI
A205: 1 | C205: =IFERROR(INDEX(UnitsTbl[Bedroom Type],A205),"") -> 1 Bedroom | H205: =IFERROR(INDEX(UnitsTbl[Number of Units],A205),"") -> 100 | P205: =IFERROR(INDEX(UnitsTbl[Average Sq Ft],A205),"") ->  | T205: =IFERROR(INDEX(UnitsTbl[Net Rent],A205),"") -> 980 | Y205: =IFERROR(INDEX(UnitsTbl[Monthly Utility],A205),"") ->  | AD205: =IFERROR(INDEX(UnitsTbl[Actual % AMI],A205),"") -> 0.3816199377
A206: 2 | C206: =IFERROR(INDEX(UnitsTbl[Bedroom Type],A206),"") ->  | H206: =IFERROR(INDEX(UnitsTbl[Number of Units],A206),"") ->  | P206: =IFERROR(INDEX(UnitsTbl[Average Sq Ft],A206),"") ->  | T206: =IFERROR(INDEX(UnitsTbl[Net Rent],A206),"") ->  | Y206: =IFERROR(INDEX(UnitsTbl[Monthly Utility],A206),"") ->  | AD206: =IFERROR(INDEX(UnitsTbl[Actual % AMI],A206),"") -> 
A207: 3 | C207: =IFERROR(INDEX(UnitsTbl[Bedroom Type],A207),"") ->  | H207: =IFERROR(INDEX(UnitsTbl[Number of Units],A207),"") ->  | P207: =IFERROR(INDEX(UnitsTbl[Average Sq Ft],A207),"") ->  | T207: =IFERROR(INDEX(UnitsTbl[Net Rent],A207),"") ->  | Y207: =IFERROR(INDEX(UnitsTbl[Monthly Utility],A207),"") ->  | AD207: =IFERROR(INDEX(UnitsTbl[Actual % AMI],A207),"") -> 
A208: 4 | C208: =IFERROR(INDEX(UnitsTbl[Bedroom Type],A208),"") ->  | H208: =IFERROR(INDEX(UnitsTbl[Number of Units],A208),"") ->  | P208: =IFERROR(INDEX(UnitsTbl[Average Sq Ft],A208),"") ->  | T208: =IFERROR(INDEX(UnitsTbl[Net Rent],A208),"") ->  | Y208: =IFERROR(INDEX(UnitsTbl[Monthly Utility],A208),"") ->  | AD208: =IFERROR(INDEX(UnitsTbl[Actual % AMI],A208),"") -> 
A209: 5 | C209: =IFERROR(INDEX(UnitsTbl[Bedroom Type],A209),"") ->  | H209: =IFERROR(INDEX(UnitsTbl[Number of Units],A209),"") ->  | P209: =IFERROR(INDEX(UnitsTbl[Average Sq Ft],A209),"") ->  | T209: =IFERROR(INDEX(UnitsTbl[Net Rent],A209),"") ->  | Y209: =IFERROR(INDEX(UnitsTbl[Monthly Utility],A209),"") ->  | AD209: =IFERROR(INDEX(UnitsTbl[Actual % AMI],A209),"") -> 
A210: 6 | C210: =IFERROR(INDEX(UnitsTbl[Bedroom Type],A210),"") ->  | H210: =IFERROR(INDEX(UnitsTbl[Number of Units],A210),"") ->  | P210: =IFERROR(INDEX(UnitsTbl[Average Sq Ft],A210),"") ->  | T210: =IFERROR(INDEX(UnitsTbl[Net Rent],A210),"") ->  | Y210: =IFERROR(INDEX(UnitsTbl[Monthly Utility],A210),"") ->  | AD210: =IFERROR(INDEX(UnitsTbl[Actual % AMI],A210),"") -> 
A211: 7 | C211: =IFERROR(INDEX(UnitsTbl[Bedroom Type],A211),"") ->  | H211: =IFERROR(INDEX(UnitsTbl[Number of Units],A211),"") ->  | P211: =IFERROR(INDEX(UnitsTbl[Average Sq Ft],A211),"") ->  | T211: =IFERROR(INDEX(UnitsTbl[Net Rent],A211),"") ->  | Y211: =IFERROR(INDEX(UnitsTbl[Monthly Utility],A211),"") ->  | AD211: =IFERROR(INDEX(UnitsTbl[Actual % AMI],A211),"") -> 
A212: 8 | C212: =IFERROR(INDEX(UnitsTbl[Bedroom Type],A212),"") ->  | H212: =IFERROR(INDEX(UnitsTbl[Number of Units],A212),"") ->  | P212: =IFERROR(INDEX(UnitsTbl[Average Sq Ft],A212),"") ->  | T212: =IFERROR(INDEX(UnitsTbl[Net Rent],A212),"") ->  | Y212: =IFERROR(INDEX(UnitsTbl[Monthly Utility],A212),"") ->  | AD212: =IFERROR(INDEX(UnitsTbl[Actual % AMI],A212),"") -> 
A213: 9 | C213: =IFERROR(INDEX(UnitsTbl[Bedroom Type],A213),"") ->  | H213: =IFERROR(INDEX(UnitsTbl[Number of Units],A213),"") ->  | P213: =IFERROR(INDEX(UnitsTbl[Average Sq Ft],A213),"") ->  | T213: =IFERROR(INDEX(UnitsTbl[Net Rent],A213),"") ->  | Y213: =IFERROR(INDEX(UnitsTbl[Monthly Utility],A213),"") ->  | AD213: =IFERROR(INDEX(UnitsTbl[Actual % AMI],A213),"") -> 
A214: 10 | C214: =IFERROR(INDEX(UnitsTbl[Bedroom Type],A214),"") ->  | H214: =IFERROR(INDEX(UnitsTbl[Number of Units],A214),"") ->  | P214: =IFERROR(INDEX(UnitsTbl[Average Sq Ft],A214),"") ->  | T214: =IFERROR(INDEX(UnitsTbl[Net Rent],A214),"") ->  | Y214: =IFERROR(INDEX(UnitsTbl[Monthly Utility],A214),"") ->  | AD214: =IFERROR(INDEX(UnitsTbl[Actual % AMI],A214),"") -> 
A215: 11 | C215: =IFERROR(INDEX(UnitsTbl[Bedroom Type],A215),"") ->  | H215: =IFERROR(INDEX(UnitsTbl[Number of Units],A215),"") ->  | P215: =IFERROR(INDEX(UnitsTbl[Average Sq Ft],A215),"") ->  | T215: =IFERROR(INDEX(UnitsTbl[Net Rent],A215),"") ->  | Y215: =IFERROR(INDEX(UnitsTbl[Monthly Utility],A215),"") ->  | AD215: =IFERROR(INDEX(UnitsTbl[Actual % AMI],A215),"") -> 
A216: 12 | C216: =IFERROR(INDEX(UnitsTbl[Bedroom Type],A216),"") ->  | H216: =IFERROR(INDEX(UnitsTbl[Number of Units],A216),"") ->  | P216: =IFERROR(INDEX(UnitsTbl[Average Sq Ft],A216),"") ->  | T216: =IFERROR(INDEX(UnitsTbl[Net Rent],A216),"") ->  | Y216: =IFERROR(INDEX(UnitsTbl[Monthly Utility],A216),"") ->  | AD216: =IFERROR(INDEX(UnitsTbl[Actual % AMI],A216),"") -> 
A217: 13 | C217: =IFERROR(INDEX(UnitsTbl[Bedroom Type],A217),"") ->  | H217: =IFERROR(INDEX(UnitsTbl[Number of Units],A217),"") ->  | P217: =IFERROR(INDEX(UnitsTbl[Average Sq Ft],A217),"") ->  | T217: =IFERROR(INDEX(UnitsTbl[Net Rent],A217),"") ->  | Y217: =IFERROR(INDEX(UnitsTbl[Monthly Utility],A217),"") ->  | AD217: =IFERROR(INDEX(UnitsTbl[Actual % AMI],A217),"") -> 
A218: 14 | C218: =IFERROR(INDEX(UnitsTbl[Bedroom Type],A218),"") ->  | H218: =IFERROR(INDEX(UnitsTbl[Number of Units],A218),"") ->  | P218: =IFERROR(INDEX(UnitsTbl[Average Sq Ft],A218),"") ->  | T218: =IFERROR(INDEX(UnitsTbl[Net Rent],A218),"") ->  | Y218: =IFERROR(INDEX(UnitsTbl[Monthly Utility],A218),"") ->  | AD218: =IFERROR(INDEX(UnitsTbl[Actual % AMI],A218),"") -> 
A219: 15 | C219: =IFERROR(INDEX(UnitsTbl[Bedroom Type],A219),"") ->  | H219: =IFERROR(INDEX(UnitsTbl[Number of Units],A219),"") ->  | P219: =IFERROR(INDEX(UnitsTbl[Average Sq Ft],A219),"") ->  | T219: =IFERROR(INDEX(UnitsTbl[Net Rent],A219),"") ->  | Y219: =IFERROR(INDEX(UnitsTbl[Monthly Utility],A219),"") ->  | AD219: =IFERROR(INDEX(UnitsTbl[Actual % AMI],A219),"") -> 
A220: 16 | C220: =IFERROR(INDEX(UnitsTbl[Bedroom Type],A220),"") ->  | H220: =IFERROR(INDEX(UnitsTbl[Number of Units],A220),"") ->  | P220: =IFERROR(INDEX(UnitsTbl[Average Sq Ft],A220),"") ->  | T220: =IFERROR(INDEX(UnitsTbl[Net Rent],A220),"") ->  | Y220: =IFERROR(INDEX(UnitsTbl[Monthly Utility],A220),"") ->  | AD220: =IFERROR(INDEX(UnitsTbl[Actual % AMI],A220),"") -> 
A221: 17 | C221: =IFERROR(INDEX(UnitsTbl[Bedroom Type],A221),"") ->  | H221: =IFERROR(INDEX(UnitsTbl[Number of Units],A221),"") ->  | P221: =IFERROR(INDEX(UnitsTbl[Average Sq Ft],A221),"") ->  | T221: =IFERROR(INDEX(UnitsTbl[Net Rent],A221),"") ->  | Y221: =IFERROR(INDEX(UnitsTbl[Monthly Utility],A221),"") ->  | AD221: =IFERROR(INDEX(UnitsTbl[Actual % AMI],A221),"") -> 
A222: 18 | C222: =IFERROR(INDEX(UnitsTbl[Bedroom Type],A222),"") ->  | H222: =IFERROR(INDEX(UnitsTbl[Number of Units],A222),"") ->  | P222: =IFERROR(INDEX(UnitsTbl[Average Sq Ft],A222),"") ->  | T222: =IFERROR(INDEX(UnitsTbl[Net Rent],A222),"") ->  | Y222: =IFERROR(INDEX(UnitsTbl[Monthly Utility],A222),"") ->  | AD222: =IFERROR(INDEX(UnitsTbl[Actual % AMI],A222),"") -> 
A223: 19 | C223: =IFERROR(INDEX(UnitsTbl[Bedroom Type],A223),"") ->  | H223: =IFERROR(INDEX(UnitsTbl[Number of Units],A223),"") ->  | P223: =IFERROR(INDEX(UnitsTbl[Average Sq Ft],A223),"") ->  | T223: =IFERROR(INDEX(UnitsTbl[Net Rent],A223),"") ->  | Y223: =IFERROR(INDEX(UnitsTbl[Monthly Utility],A223),"") ->  | AD223: =IFERROR(INDEX(UnitsTbl[Actual % AMI],A223),"") -> 
A224: 20 | C224: =IFERROR(INDEX(UnitsTbl[Bedroom Type],A224),"") ->  | H224: =IFERROR(INDEX(UnitsTbl[Number of Units],A224),"") ->  | P224: =IFERROR(INDEX(UnitsTbl[Average Sq Ft],A224),"") ->  | T224: =IFERROR(INDEX(UnitsTbl[Net Rent],A224),"") ->  | Y224: =IFERROR(INDEX(UnitsTbl[Monthly Utility],A224),"") ->  | AD224: =IFERROR(INDEX(UnitsTbl[Actual % AMI],A224),"") -> 
A225: 21 | C225: =IFERROR(INDEX(UnitsTbl[Bedroom Type],A225),"") ->  | H225: =IFERROR(INDEX(UnitsTbl[Number of Units],A225),"") ->  | P225: =IFERROR(INDEX(UnitsTbl[Average Sq Ft],A225),"") ->  | T225: =IFERROR(INDEX(UnitsTbl[Net Rent],A225),"") ->  | Y225: =IFERROR(INDEX(UnitsTbl[Monthly Utility],A225),"") ->  | AD225: =IFERROR(INDEX(UnitsTbl[Actual % AMI],A225),"") -> 
A226: 22 | C226: =IFERROR(INDEX(UnitsTbl[Bedroom Type],A226),"") ->  | H226: =IFERROR(INDEX(UnitsTbl[Number of Units],A226),"") ->  | P226: =IFERROR(INDEX(UnitsTbl[Average Sq Ft],A226),"") ->  | T226: =IFERROR(INDEX(UnitsTbl[Net Rent],A226),"") ->  | Y226: =IFERROR(INDEX(UnitsTbl[Monthly Utility],A226),"") ->  | AD226: =IFERROR(INDEX(UnitsTbl[Actual % AMI],A226),"") -> 
A227: 23 | C227: =IFERROR(INDEX(UnitsTbl[Bedroom Type],A227),"") ->  | H227: =IFERROR(INDEX(UnitsTbl[Number of Units],A227),"") ->  | P227: =IFERROR(INDEX(UnitsTbl[Average Sq Ft],A227),"") ->  | T227: =IFERROR(INDEX(UnitsTbl[Net Rent],A227),"") ->  | Y227: =IFERROR(INDEX(UnitsTbl[Monthly Utility],A227),"") ->  | AD227: =IFERROR(INDEX(UnitsTbl[Actual % AMI],A227),"") -> 
A228: 24 | C228: =IFERROR(INDEX(UnitsTbl[Bedroom Type],A228),"") ->  | H228: =IFERROR(INDEX(UnitsTbl[Number of Units],A228),"") ->  | P228: =IFERROR(INDEX(UnitsTbl[Average Sq Ft],A228),"") ->  | T228: =IFERROR(INDEX(UnitsTbl[Net Rent],A228),"") ->  | Y228: =IFERROR(INDEX(UnitsTbl[Monthly Utility],A228),"") ->  | AD228: =IFERROR(INDEX(UnitsTbl[Actual % AMI],A228),"") -> 
A229: 25 | C229: =IFERROR(INDEX(UnitsTbl[Bedroom Type],A229),"") ->  | H229: =IFERROR(INDEX(UnitsTbl[Number of Units],A229),"") ->  | P229: =IFERROR(INDEX(UnitsTbl[Average Sq Ft],A229),"") ->  | T229: =IFERROR(INDEX(UnitsTbl[Net Rent],A229),"") ->  | Y229: =IFERROR(INDEX(UnitsTbl[Monthly Utility],A229),"") ->  | AD229: =IFERROR(INDEX(UnitsTbl[Actual % AMI],A229),"") -> 
E231: Number of Special Needs bedrooms filled above | T231: =INDEX(val,MATCH("g_BedroomsSpecialNeeds",ref,0)) -> 0 | X231: =IF(ABS(T231-T232)>0,"!","") ->  | Y231: =IF(X231="!","Does not match number entered in e-app","") -> 
E232: Number of Special Needs bedrooms per E-App | T232: =INDEX(val,MATCH("g_eAppBedroomsSpN",ref,0)) -> 0
B234: 10325(g)(3) | H234: Housing type eligibility | AJ234: =IF(NOT(AE237),IsFalse,IF(AE239,IF(OR(AE242,AND(AE249:AG250),AE255),IsTrue,IsFalse),IsTrue)) -> û
R236: Low-Income Units: | S236: =INDEX(val,MATCH("g_UnitsLowIncome",ref,0)) -> 100
R237: Low-Income Units serving special needs populations: | S237: =INDEX(val,MATCH("g_UnitsSpecialNeeds",ref,0)) -> 50 | V237: =IFERROR(S237/S236,0) -> 0.5 | AA237: Minimum: | AB237: 0.45 | AE237: =V237>=AB237 -> TRUE
C239: Developments with less than 75% special needs units must meet one of the following: | AE239: =V237<75% -> TRUE
D241: (i) the non-special needs units meet the Large Family or Senior housing type requirements,
O242: Secondary housing type specified: | P242: =INDEX(val,MATCH("t_SecondaryHousingType",ref,0)) -> Seniors | AE242: =P242=P243 -> FALSE
O243: Requirements to be met:
D245: (ii) the non-special needs Low-Income Units consist of at least 20% one-bedroom units and at least 10% larger than one-bedroom units, or
R248: Non-special needs Low-Income Units: | S248: =INDEX(val,MATCH("g_UnitsLowIncome",ref,0))-INDEX(val,MATCH("g_UnitsSpecialNeeds",ref,0)) -> 50
R249: That are 1-BR units: | S249: =SUMIFS(UnitsTbl[Number of Units],UnitsTbl[Bedroom Type],"1 Bedroom",UnitsTbl[Market Rate],"")-SUMIFS(UnitsTbl[Count SpN Units],UnitsTbl[Bedroom Type],"1 Bedroom",UnitsTbl[Market Rate],"") -> 100 | V249: =IFERROR(S249/S248,0) -> 2 | AA249: Minimum: | AB249: 0.2 | AE249: =V249>=AB249 -> TRUE
R250: That are greater than 1-BR units: | S250: =SUMIFS(UnitsTbl[Number of Units],UnitsTbl[Bedroom Type],"2 Bedrooms",UnitsTbl[Market Rate],"")+SUMIFS(UnitsTbl[Number of Units],UnitsTbl[Bedroom Type],"3 Bedrooms",UnitsTbl[Market Rate],"")+SUMIFS(UnitsTbl[Number of Units],UnitsTbl[Bedroom Type],"4 Bedrooms",UnitsTbl[Market Rate],"")+SUMIFS(UnitsTbl[Number of Units],UnitsTbl[Bedroom Type],"5 Bedrooms",UnitsTbl[Market Rate],"")-SUMIFS(UnitsTbl[Count SpN Units],UnitsTbl[Bedroom Type],"2 Bedrooms",UnitsTbl[Market Rate],"")+SUMIFS(UnitsTbl[Count SpN Units],UnitsTbl[Bedroom Type],"3 Bedrooms",UnitsTbl[Market Rate],"")+SUMIFS(UnitsTbl[Count SpN Units],UnitsTbl[Bedroom Type],"4 Bedrooms",UnitsTbl[Market Rate],"")+SUMIFS(UnitsTbl[Count SpN Units],UnitsTbl[Bedroom Type],"5 Bedrooms",UnitsTbl[Market Rate],"") -> 0 | V250: =IFERROR(S250/S248,0) -> 0 | AA250: Minimum: | AB250: 0.1 | AE250: =V250>=AB250 -> FALSE
D252: (iii) at least 90% of all Low-Income Units (both special needs and non-special needs) are SRO units
R254: Low-Income Units: | S254: =INDEX(val,MATCH("g_UnitsLowIncome",ref,0)) -> 100
R255: That are SRO units: | S255: =INDEX(val,MATCH("g_Units0",ref,0)) -> 0 | V255: =IFERROR(S255/S254,0) -> 0 | AA255: Minimum: | AB255: 0.9 | AE255: =V255>=AB255 -> FALSE
B257: 10325(g)(3)(A) | H257: Average targeted income | AJ257: =IF(AB261<=AH261,IsTrue,IsFalse) -> ü
C259: Special needs Low-Income Units: | Q259: =S237 -> 50 | AA259: AMI Target Average: | AB259: =Data!Q29 -> 0
C260: Non-special needs SRO Low-Income Units: | Q260: =SUMIFS(UnitsTbl[Number of Units],UnitsTbl[Bedroom Type],"SRO/Studio")-SUMIFS(UnitsTbl[Count SpN Units],UnitsTbl[Bedroom Type],"SRO/Studio") -> 0 | AA260: AMI Target Average: | AB260: =Data!U29 -> 0
P261: Total: | Q261: =Q259+Q260 -> 50 | AA261: Overall AMI Target Average | AB261: =IFERROR(SUMPRODUCT(AB259:AB260,Q259:Q260)/Q261,"") -> 0 | AG261: Max. | AH261: 0.4
B263: 10325(g)(3)(B) | H263: Unit/building configurations | AJ263: =IF(AE265="Acknowledged",IsTrue,IsFalse) -> û
C265: The units/building configurations (including community space) shall meet the specific needs of the population, including kitchen needs for SRO units without full kitchens
B268: 10325(g)(3)(C) | H268: Rent overburden | AJ268: =IF(OR(AE270="Yes",AE273="Demonstrated"),IsTrue,IsFalse) -> û
C270: Does the project have a public rental or operating subsidy committed for all special needs and non-special needs SRO units?
C273: The applicant shall demonstrate for these unsubsidized units that the target population(s) will not experience rent overburden, as supported by the market study. Rent overburden means the targeted rent is more than 30% of the target population's income.
B277: 10325(g)(3)(D) | H277: Public agency or owner's equity financing | AJ277: =IF(OR(AD280:AF281),IsTrue,IsFalse) -> û
C279: Total Project Costs: | Q279: =INDEX(val,MATCH("g_TotalProjectCost",ref,0)) -> 104700000 | AG279: Minimum:
C280: Public agency long-term financial support: | Q280: 0 | W280: Percentage: | AA280: =IFERROR(Q280/Q279,0) -> 0 | AD280: =AA280>=AH280 -> FALSE | AH280: 0.15
C281: Owner's equity (including tax credit proceeds): | Q281: 0 | W281: Percentage: | AA281: =IFERROR(Q281/Q279,0) -> 0 | AD281: =AA281>=AH281 -> FALSE | AH281: 0.3
B283: 10325(g)(3)(E) | H283: Adequate laundry facilities | AJ283: =IF(AND(AH286>=AH285,AH287>=AH285),IsTrue,IsFalse) -> û
V285: Total Units: | Z285: =IF(AND($N$7="Special Needs",N8="Large Family"),_xlfn.SINGLE(INDEX(val,MATCH("g_UnitsSpecialNeeds",ref,0))),_xlfn.SINGLE(INDEX(val,MATCH("g_UnitsTotal",ref,0)))) -> 101 | AG285: Min required: | AH285: =ROUNDUP(Z285/15*(100%-Z286),0) -> 7
R286: Are washer and dryer hookups provided in each unit? | V286: Reduction: | Z286: =IF(S286="Yes",25%,0%) -> 0 | AG286: Washers provided:
AG287: Dryers provided:
B289: 10325(g)(3)(F) | H289: Minimum low-income use period | AJ289: =IF(AA291="Acknowledged",IsTrue,IsFalse) -> û
C291: Special needs projects are subject to a minimum low-income use period of 55 years (50 years for projects located on tribal trust land)
B294: 10325(g)(3)(G) | H294: Minimum unit square footages | AJ294: =IF(OR(AF303="Yes",AND(V299:X301)),IsTrue,IsFalse) -> ü
C296: Smallest Sq. Ft. Proposed | G296: Unit Type | N296: Minimum Sq. Ft. | R296: Count
G299: 1 Bedroom | N299: 450 | R299: =IF(AND($N$7="Special Needs",OR($N$8="Large Family",$N$8="Seniors")),_xlfn.SINGLE(INDEX(val,MATCH("g_SpNe1",ref,0))),_xlfn.SINGLE(INDEX(val,MATCH("g_Units1",ref,0)))) -> 0 | V299: =OR(R299=0,C299>=N299) -> TRUE
G300: 2 Bedroom | N300: 700 | R300: =IF(AND($N$7="Special Needs",OR($N$8="Large Family",$N$8="Seniors")),_xlfn.SINGLE(INDEX(val,MATCH("g_SpNe2",ref,0))),_xlfn.SINGLE(INDEX(val,MATCH("g_Units2",ref,0)))) -> 0 | V300: =OR(R300=0,C300>=N300) -> TRUE
G301: 3+ Bedroom | N301: 900 | R301: =IF(AND($N$7="Special Needs",OR($N$8="Large Family",$N$8="Seniors")),(INDEX(val,MATCH("g_SpNe3",ref,0))+INDEX(val,MATCH("g_SpNe4",ref,0))+INDEX(val,MATCH("g_SpNe5",ref,0))),(INDEX(val,MATCH("g_Units3",ref,0))+INDEX(val,MATCH("g_Units4",ref,0))+INDEX(val,MATCH("g_Units5",ref,0)))) -> 0 | V301: =OR(R301=0,C301>=N301) -> TRUE
C303: Applying as a rehabilitation project or received entitlements prior to 2016 and obtained a waiver:
D304: Waivers should be saved as a standalone file in tab 4.
B306: 10325(g)(3)(H) | H306: Minimum SRO requirements | AJ306: =IF(AND(AH311,AH317),IsTrue,IsFalse) -> ü
C308: Smallest proposed SRO unit square footage: | W308: Minimum: | X308: 200 | AB308: =OR($M$315=0,Q308>=X308) -> TRUE
C309: Largest proposed SRO unit square footage: | W309: Maximum: | X309: 500 | AB309: =OR($M$315=0,Q309<=X309) -> TRUE
C311: Applying as a rehabilitation project or received entitlements prior to 2016 and obtained a waiver: | AH311: =OR(AF311="Yes",AND(AB308:AD309)) -> TRUE
D312: Waivers should be saved as a standalone file in tab 4.
C314: Do the proposed SRO units each include private baths?
L315: SRO Low Income Unit count: | M315: =INDEX(val,MATCH("g_Units0",ref,0)) -> 0
L316: Requirement of one bath per | M316: 8 | P316: SRO units
L317: Required baths for SRO units: | M317: =ROUNDUP(M315/M316,0) -> 0 | AD317: # of baths provided for SRO units: | AH317: =OR(T314="Yes",AE317>=M317) -> TRUE
B319: 10325(g)(3)(I) | H319: Service provider contract/MOU | AJ319: =IF(AE321="Provided",IsTrue,IsFalse) -> û
C321: A signed contract or memorandum of understanding between the developer and the service provider must accompany the Tax Credit application
B324: 10325(g)(3)(J) | H324: Preliminary service plan | AJ324: =IF(AE326="Provided",IsTrue,IsFalse) -> û
C326: A preliminary service plan must accompany the application, specifically identifying: the service needs of the projects special needs population; the organization(s) that would be providing the services to the residents; the services to be provided to the special needs population; how the services would support resident stability and any other service plan objectives; a preliminary budget displaying anticipated income and expenses associated with the services program.
B333: 10325(g)(3)(K) | H333: Senior housing requirements | AJ333: =IF(OR(AA335="No",AND(OR(W347="Yes",AND(Z340>=Z339,Z338<>"",OR(NOT(L343),AE343="Acknowledged"))),OR(R350="N/A",AE350="Acknowledged"))),IsTrue,IsFalse) -> û
C335: Will the project be operated as senior housing pursuant to fair housing laws?
C337: Project type: | H337: =IF(OR(INDEX(val,MATCH("t_IsNewConstruction",ref,0)),INDEX(val,MATCH("t_IsAdaptiveReuse",ref,0))),"New Construction","Rehabilitation") -> New Construction | Y337: Required percentage: | Z337: =IF(H337="New Construction",50%,30%) -> 0.5
Y338: Quantity of units on an accessible path (ground floor and elevator serviced):
Y339: Required mobility accessible units per CBC Chapter 11(B): | Z339: =ROUNDUP(Z337*Z338,0) -> 0
... 86 more rows

Sheet Parcels
A1: =CONCATENATE("Count of Parcels: "&COUNTA(ParcelsTbl[Accessor''s Parcel Number])) -> Count of Parcels: 1 | B1: =CONCATENATE("Total Sq. Ft.: "&SUM(ParcelsTbl[Square Feet])) -> Total Sq. Ft.: 0 | D1: Click this button to show or hide Site Control tabs for each ID in the table | J1: =HYPERLINK("#Instructions!N99","Instructions for Parcels tab »") -> Instructions for Parcels tab »
A2: Accessor's Parcel Number | B2: Square Feet | C2: Owner on Title Report | D2: Current Use | E2: Site Control ID
E3: 1
J5: =COUNTIFS(ParcelsTbl[Site Control ID],K5)>=1 -> TRUE | K5: 1 | M5: =IF(R5="","",LEFT(R5,LEN(R5)-2)) -> 0 | R5: =CONCATENATE(IF(Lists!AP2="","",Lists!AP2&", "),IF(Lists!AP3="","",Lists!AP3&", "),IF(Lists!AP4="","",Lists!AP4&", "),IF(Lists!AP5="","",Lists!AP5&", "),IF(Lists!AP6="","",Lists!AP6&", "),IF(Lists!AP7="","",Lists!AP7&", "),IF(Lists!AP8="","",Lists!AP8&", "),IF(Lists!AP9="","",Lists!AP9&", "),IF(Lists!AP10="","",Lists!AP10&", "),IF(Lists!AP11="","",Lists!AP11&", "),IF(Lists!AP12="","",Lists!AP12&", "),IF(Lists!AP13="","",Lists!AP13&", "),IF(Lists!AP14="","",Lists!AP14&", "),IF(Lists!AP15="","",Lists!AP15&", ")) -> 0,
J6: =COUNTIFS(ParcelsTbl[Site Control ID],K6)>=1 -> FALSE | K6: 2 | M6: =IF(R6="","",LEFT(R6,LEN(R6)-2)) ->  | R6: =CONCATENATE(IF(Lists!AQ2="","",Lists!AQ2&", "),IF(Lists!AQ3="","",Lists!AQ3&", "),IF(Lists!AQ4="","",Lists!AQ4&", "),IF(Lists!AQ5="","",Lists!AQ5&", "),IF(Lists!AQ6="","",Lists!AQ6&", "),IF(Lists!AQ7="","",Lists!AQ7&", "),IF(Lists!AQ8="","",Lists!AQ8&", "),IF(Lists!AQ9="","",Lists!AQ9&", "),IF(Lists!AQ10="","",Lists!AQ10&", "),IF(Lists!AQ11="","",Lists!AQ11&", "),IF(Lists!AQ12="","",Lists!AQ12&", "),IF(Lists!AQ13="","",Lists!AQ13&", "),IF(Lists!AQ14="","",Lists!AQ14&", "),IF(Lists!AQ15="","",Lists!AQ15&", ")) -> 
J7: =COUNTIFS(ParcelsTbl[Site Control ID],K7)>=1 -> FALSE | K7: 3 | M7: =IF(R7="","",LEFT(R7,LEN(R7)-2)) ->  | R7: =CONCATENATE(IF(Lists!AR2="","",Lists!AR2&", "),IF(Lists!AR3="","",Lists!AR3&", "),IF(Lists!AR4="","",Lists!AR4&", "),IF(Lists!AR5="","",Lists!AR5&", "),IF(Lists!AR6="","",Lists!AR6&", "),IF(Lists!AR7="","",Lists!AR7&", "),IF(Lists!AR8="","",Lists!AR8&", "),IF(Lists!AR9="","",Lists!AR9&", "),IF(Lists!AR10="","",Lists!AR10&", "),IF(Lists!AR11="","",Lists!AR11&", "),IF(Lists!AR12="","",Lists!AR12&", "),IF(Lists!AR13="","",Lists!AR13&", "),IF(Lists!AR14="","",Lists!AR14&", "),IF(Lists!AR15="","",Lists!AR15&", ")) -> 
J8: =COUNTIFS(ParcelsTbl[Site Control ID],K8)>=1 -> FALSE | K8: 4 | R8: =CONCATENATE(IF(Lists!AS2="","",Lists!AS2&", "),IF(Lists!AS3="","",Lists!AS3&", "),IF(Lists!AS4="","",Lists!AS4&", "),IF(Lists!AS5="","",Lists!AS5&", "),IF(Lists!AS6="","",Lists!AS6&", "),IF(Lists!AS7="","",Lists!AS7&", "),IF(Lists!AS8="","",Lists!AS8&", "),IF(Lists!AS9="","",Lists!AS9&", "),IF(Lists!AS10="","",Lists!AS10&", "),IF(Lists!AS11="","",Lists!AS11&", "),IF(Lists!AS12="","",Lists!AS12&", "),IF(Lists!AS13="","",Lists!AS13&", "),IF(Lists!AS14="","",Lists!AS14&", "),IF(Lists!AS15="","",Lists!AS15&", ")) -> 
J9: =COUNTIFS(ParcelsTbl[Site Control ID],K9)>=1 -> FALSE | K9: 5 | R9: =CONCATENATE(IF(Lists!AT2="","",Lists!AT2&", "),IF(Lists!AT3="","",Lists!AT3&", "),IF(Lists!AT4="","",Lists!AT4&", "),IF(Lists!AT5="","",Lists!AT5&", "),IF(Lists!AT6="","",Lists!AT6&", "),IF(Lists!AT7="","",Lists!AT7&", "),IF(Lists!AT8="","",Lists!AT8&", "),IF(Lists!AT9="","",Lists!AT9&", "),IF(Lists!AT10="","",Lists!AT10&", "),IF(Lists!AT11="","",Lists!AT11&", "),IF(Lists!AT12="","",Lists!AT12&", "),IF(Lists!AT13="","",Lists!AT13&", "),IF(Lists!AT14="","",Lists!AT14&", "),IF(Lists!AT15="","",Lists!AT15&", ")) -> 
A16: =1 -> 1 | B16: =0 -> 0 | E16: =0+0 -> 0

Sheet Site Control 1
A1: 1 | AN1: =HYPERLINK("#Instructions!N116","Instructions for Site Control tabs »") -> Instructions for Site Control tabs »
B3: ="Site Control Narrative - "&INDEX(val,MATCH("g_ProjectName",ref,0)) -> Site Control Narrative - Test Project
B4: Provide a detailed description of how the applicable parcels are controlled by the applicant. If there are important nuances to understanding the arrangement please explain and communicate where pertinent information can be found. Including page numbers is often helpful.
C5: =INDIRECT("Sc"&A1&"Apns") -> 0
B16: ="Agreement Evidencing Site Control - Site Control #"&$A$1 -> Agreement Evidencing Site Control - Site Control #1 | AE16: 10325(f)(2)
G18: Type of agreement:
C19: Has the site control document been amended?
D20: If yes, provide all amendments in a single file with a cover sheet and table of contents describing each amendment's purpose.
R22: Is this document valid through the application filing date? | V22: =IF(S22="No","! Expired site control documents are not accepted","") -> 
E23: Please specify the document and page of expiration date. | AA23: See amendment: | AH23: See page:
H25: Entity on title report: | I25: =INDEX(ParcelsTbl[Owner on Title Report],MATCH(A1,ParcelsTbl[Site Control ID],0)) -> 0
Y26: Is the owner on title the party who is granting site control per the document?
C27: Entity granting site control (aka Seller):
C28: If no, provide a detailed explanation of how the owner has authorized the disposition and documentation of such.
L30: Entity granted site control (aka Buyer):
C31: Is the entity with site control the TCAC applicant?
D32: If no, provide an assignment/assumption agreement granting the Applicant site control and any relevant documentation.
B34: ="Cost/Value Documentation - Site Control #"&$A$1 -> Cost/Value Documentation - Site Control #1 | AE34: 10325(c)(6)
B36: All applications must include the cost or value of land and improvements in the development budget.
C37: What document is evidencing land value?
H38: Document Date:
D39: Is the date of value within:
E40: 120 days before or after the execution of any site control document pursuant to Section 10325(f)(2) OR the transfer of ownership by all the parties?
E42: one year of the application date (ONLY if the latest site control document pursuant to Section 10325(f)(2) was executed within that year)?
D44: Note: An amendment to an agreement does not constitute any of the site control documents.
B46: Many applications require an appraisal to substantiate the value of land and or building improvements. | AG46: 10322(h)(9)
N47: Budget reflects cost or valuation? | AM47: =IsRehab -> FALSE
L48: Cost/Value in development budget: | Z48: Appraised value: | AF48: See page
L49: Cost exceeds appraised value: | M49: =AA49>M48 -> FALSE | Z49: Cost exceeds valuation: | AA49: =MAX(0,M48-AA48) -> 0
L51: Holding cost in development budget: | AC51: Months of holding costs incurred:
B53: =INDEX(val,MATCH("g_LandCost",ref,0)) -> 100000000 | G53: Land Cost or Value
B54: =INDEX(val,MATCH("g_ImprovementsValue",ref,0)) -> 0 | G54: Existing Improvements Value
B55: =B53+B54 -> 100000000 | G55: Total Acquisition Cost or Value | U55: =INDEX(val,MATCH("g_HoldingCost",ref,0)) -> 0 | Z55: Holding Costs
B56: =M48 -> 0 | G56: Cost/Value on this Site Control Tab | U56: =M51 -> 0 | Z56: Holding Costs on this Site Control Tab
B57: =B58-B56 -> 0 | G57: Cost/Value on other Site Control Tabs | U57: =U58-U56 -> 0 | Z57: Holding Costs on other Site Control Tabs
B58: =SiteControlTotalCost -> 0 | G58: Total Cost/Value accounted for | U58: =HoldingTotalCost -> 0 | Z58: Total Holding Costs accounted for
B59: =B55-B58 -> 100000000 | G59: Cost/Value yet to be accounted for | U59: =U55-U58 -> 0 | Z59: Holding Costs yet to be accounted for
B61: ="Title Report - Site Control #"&$A$1 -> Title Report - Site Control #1
G63: Included parcels: | H63: =C5 -> 0
G64: Document date: | L64: =IF(ABS(H64-'Housing Type'!AF3)>90,"!","") ->  | M64: =IF(L64="!","Date is greater than 90 days from application deadline entered on Housing Type tab.","") -> 
C66: Is this a title report or preliminary title report, not title insurance or commitment to insure?
C67: For tribal trust land only, is this a title status report or an attorney’s opinion regarding chain of title and current title status?
C69: Is this the site control title report of an unsuccessful application being submitted in the reapplication cycle immediately following the unsuccessful application?
G71: Note: document may only be re-submitted once
C73: Current Outstanding Liens
C74: Lender/Loan | H74: Original Principal Amount | M74: Current Remaining Principal Amount | R74: Current Accrued Interest Amount | W74: Planned Disposition Description | AB74: Corresponding Exception Number from Title

Sheet Site Control 2 (hidden)
A1: 2 | AN1: =HYPERLINK("#Instructions!N116","Instructions for Site Control tabs »") -> Instructions for Site Control tabs »
B3: ="Site Control Narrative - "&INDEX(val,MATCH("g_ProjectName",ref,0)) -> Site Control Narrative - Test Project
B4: Provide a detailed description of how the applicable parcels are controlled by the applicant. If there are important nuances to understanding the arrangement please explain and communicate where pertinent information can be found. Including page numbers is often helpful.
C5: =INDIRECT("Sc"&A1&"Apns") -> 
B16: ="Agreement Evidencing Site Control - Site Control #"&$A$1 -> Agreement Evidencing Site Control - Site Control #2 | AE16: 10325(f)(2)
G18: Type of agreement:
C19: Has the site control document been amended?
D20: If yes, provide all amendments in a single file with a cover sheet and table of contents describing each amendment's purpose.
R22: Is this document valid through the application filing date? | V22: =IF(S22="No","! Expired site control documents are not accepted","") -> 
E23: Please specify the document and page of expiration date. | AA23: See amendment: | AH23: See page:
H25: Entity on title report: | I25: =IFERROR(INDEX(ParcelsTbl[Owner on Title Report],MATCH(A1,ParcelsTbl[Site Control ID],0)),"The Parcels table does not show any owners for this Site Control ID") -> The Parcels table does not show any owners for this Site Control ID
Y26: Is the owner on title the party who is granting site control per the document?
C27: Entity granting site control (aka Seller):
C28: If no, provide a detailed explanation of how the owner has authorized the disposition and documentation of such.
L30: Entity granted site control (aka Buyer):
C31: Is the entity with site control the TCAC applicant?
B32: If no, provide an assignment/assumption agreement granting the Applicant site control and any relevant documentation.
B34: ="Cost/Value Documentation - Site Control #"&$A$1 -> Cost/Value Documentation - Site Control #2 | AE34: 10325(c)(6)
B36: All applications must include the cost or value of land and improvements in the development budget.
C37: What document is evidencing land value?
H38: Document Date: | AN38: =IFERROR(IF(O47="Value",IF(ABS(I38-'Housing Type'!AE3)>120,"! Appraisals must be dated no more than 120 days prior to the application deadline",""),""),"") -> 
D39: Is the date of value within:
E40: 120 days before or after the execution of any site control document pursuant to Section 10325(f)(2) OR the transfer of ownership by all the parties?
E42: one year of the application date (ONLY if the latest site control document pursuant to Section 10325(f)(2) was executed within that year)?
D44: Note: An amendment to an agreement does not constitute any of the site control documents.
B46: Many applications require an appraisal to substantiate the value of land and or building improvements. | AG46: 10322(h)(9)
N47: Budget reflects cost or valuation?
L48: Cost/Value in development budget: | Z48: Appraised value: | AF48: See page
L49: Cost exceeds appraised value: | M49: =AA49>M48 -> FALSE | Z49: Cost exceeds valuation: | AA49: =MAX(0,M48-AA48) -> 0
L51: Holding cost in development budget: | AC51: Months of holding costs incurred:
B53: =INDEX(val,MATCH("g_LandCost",ref,0)) -> 100000000 | G53: Land Cost or Value
B54: =INDEX(val,MATCH("g_ImprovementsValue",ref,0)) -> 0 | G54: Existing Improvements Value
B55: =B53+B54 -> 100000000 | G55: Total Acquisition Cost or Value | U55: =INDEX(val,MATCH("g_HoldingCost",ref,0)) -> 0 | Z55: Holding Costs
B56: =M48 -> 0 | G56: Cost/Value on this Site Control Tab | U56: =M51 -> 0 | Z56: Holding Costs on this Site Control Tab
B57: =B58-B56 -> 0 | G57: Cost/Value on other Site Control Tabs | U57: =U58-U56 -> 0 | Z57: Holding Costs on other Site Control Tabs
B58: =SiteControlTotalCost -> 0 | G58: Total Cost/Value accounted for | U58: =HoldingTotalCost -> 0 | Z58: Total Holding Costs accounted for
B59: =B55-B58 -> 100000000 | G59: Cost/Value yet to be accounted for | U59: =U55-U58 -> 0 | Z59: Holding Costs yet to be accounted for
B61: ="Title Report - Site Control #"&$A$1 -> Title Report - Site Control #2
G63: Included parcels: | H63: =C5 -> 
G64: Document date: | L64: =IF(ABS(H64-'Housing Type'!AF3)>90,"!","") ->  | M64: =IF(L64="!","Date is greater than 90 days from application deadline entered on Housing Type tab.","") ->  | AL64: =IF(AK64="!","Date is more than 90 days from application date","") -> 
C66: Is this a title report or preliminary title report, not title insurance or commitment to insure?
C67: For tribal trust land only, is this a title status report or an attorney’s opinion regarding chain of title and current title status?
C69: Is this the site control title report of an unsuccessful application being submitted in the reapplication cycle immediately following the unsuccessful application?
G71: Note: document may only be re-submitted once
C73: Current Outstanding Liens
C74: Lender/Loan | H74: Original Principal Amount | M74: Current Remaining Principal Amount | R74: Current Accrued Interest Amount | W74: Planned Disposition Description | AB74: Corresponding Exception Number from Title

Sheet Site Control 3 (hidden)
A1: 3 | AN1: =HYPERLINK("#Instructions!N116","Instructions for Site Control tabs »") -> Instructions for Site Control tabs »
B3: ="Site Control Narrative - "&INDEX(val,MATCH("g_ProjectName",ref,0)) -> Site Control Narrative - Test Project
B4: Provide a detailed description of how the applicable parcels are controlled by the applicant. If there are important nuances to understanding the arrangement please explain and communicate where pertinent information can be found. Including page numbers is often helpful.
C5: =INDIRECT("Sc"&A1&"Apns") -> 
B16: ="Agreement Evidencing Site Control - Site Control #"&$A$1 -> Agreement Evidencing Site Control - Site Control #3 | AE16: 10325(f)(2)
G18: Type of agreement:
C19: Has the site control document been amended?
D20: If yes, provide all amendments in a single file with a cover sheet and table of contents describing each amendment's purpose.
R22: Is this document valid through the application filing date? | V22: =IF(S22="No","! Expired site control documents are not accepted","") -> 
E23: Please specify the document and page of expiration date. | AA23: See amendment: | AH23: See page:
H25: Entity on title report: | I25: =IFERROR(INDEX(ParcelsTbl[Owner on Title Report],MATCH(A1,ParcelsTbl[Site Control ID],0)),"The Parcels table does not show any owners for this Site Control ID") -> The Parcels table does not show any owners for this Site Control ID
Y26: Is the owner on title the party who is granting site control per the document?
C27: Entity granting site control (aka Seller):
C28: If no, provide a detailed explanation of how the owner has authorized the disposition and documentation of such.
L30: Entity granted site control (aka Buyer):
Q31: Is the entity with site control the TCAC applicant?
B32: If no, provide an assignment/assumption agreement granting the Applicant site control and any relevant documentation.
B34: ="Cost/Value Documentation - Site Control #"&$A$1 -> Cost/Value Documentation - Site Control #3 | AE34: 10325(c)(6)
B36: All applications must include the cost or value of land and improvements in the development budget.
C37: What document is evidencing land value?
H38: Document Date: | AN38: =IFERROR(IF(O47="Value",IF(ABS(I38-'Housing Type'!AE3)>120,"! Appraisals must be dated no more than 120 days prior to the application deadline",""),""),"") -> 
D39: Is the date of value within:
E40: 120 days before or after the execution of any site control document pursuant to Section 10325(f)(2) OR the transfer of ownership by all the parties?
E42: one year of the application date (ONLY if the latest site control document pursuant to Section 10325(f)(2) was executed within that year)?
D44: Note: An amendment to an agreement does not constitute any of the site control documents.
B46: Many applications require an appraisal to substantiate the value of land and or building improvements. | AG46: 10322(h)(9)
N47: Budget reflects cost or valuation?
L48: Cost/Value in development budget: | Z48: Appraised value: | AF48: See page
L49: Cost exceeds appraised value: | M49: =AA49>M48 -> FALSE | Z49: Cost exceeds valuation: | AA49: =MAX(0,M48-AA48) -> 0
L51: Holding cost in development budget: | AC51: Months of holding costs incurred:
B53: =INDEX(val,MATCH("g_LandCost",ref,0)) -> 100000000 | G53: Land Cost or Value
B54: =INDEX(val,MATCH("g_ImprovementsValue",ref,0)) -> 0 | G54: Existing Improvements Value
B55: =B53+B54 -> 100000000 | G55: Total Acquisition Cost or Value | U55: =INDEX(val,MATCH("g_HoldingCost",ref,0)) -> 0 | Z55: Holding Costs
B56: =M48 -> 0 | G56: Cost/Value on this Site Control Tab | U56: =M51 -> 0 | Z56: Holding Costs on this Site Control Tab
B57: =B58-B56 -> 0 | G57: Cost/Value on other Site Control Tabs | U57: =U58-U56 -> 0 | Z57: Holding Costs on other Site Control Tabs
B58: =SiteControlTotalCost -> 0 | G58: Total Cost/Value accounted for | U58: =HoldingTotalCost -> 0 | Z58: Total Holding Costs accounted for
B59: =B55-B58 -> 100000000 | G59: Cost/Value yet to be accounted for | U59: =U55-U58 -> 0 | Z59: Holding Costs yet to be accounted for
B61: ="Title Report - Site Control #"&$A$1 -> Title Report - Site Control #3
G63: Included parcels: | H63: =C5 -> 
G64: Document date: | L64: =IF(ABS(H64-'Housing Type'!AF3)>90,"!","") ->  | M64: =IF(L64="!","Date is greater than 90 days from application deadline entered on Housing Type tab.","") -> 
C66: Is this a title report or preliminary title report, not title insurance or commitment to insure?
C67: For tribal trust land only, is this a title status report or an attorney’s opinion regarding chain of title and current title status?
C69: Is this the site control title report of an unsuccessful application being submitted in the reapplication cycle immediately following the unsuccessful application?
G71: Note: document may only be re-submitted once
C73: Current Outstanding Liens
C74: Lender/Loan | H74: Original Principal Amount | M74: Current Remaining Principal Amount | R74: Current Accrued Interest Amount | W74: Planned Disposition Description | AB74: Corresponding Exception Number from Title

Sheet Site Control 4 (hidden)
A1: 4 | AN1: =HYPERLINK("#Instructions!N116","Instructions for Site Control tabs »") -> Instructions for Site Control tabs »
B3: ="Site Control Narrative - "&INDEX(val,MATCH("g_ProjectName",ref,0)) -> Site Control Narrative - Test Project
B4: Provide a detailed description of how the applicable parcels are controlled by the applicant. If there are important nuances to understanding the arrangement please explain and communicate where pertinent information can be found. Including page numbers is often helpful.
C5: =INDIRECT("Sc"&A1&"Apns") -> 
B16: ="Agreement Evidencing Site Control - Site Control #"&$A$1 -> Agreement Evidencing Site Control - Site Control #4 | AE16: 10325(f)(2)
G18: Type of agreement:
C19: Has the site control document been amended?
D20: If yes, provide all amendments in a single file with a cover sheet and table of contents describing each amendment's purpose.
R22: Is this document valid through the application filing date? | V22: =IF(S22="No","! Expired site control documents are not accepted","") -> 
E23: Please specify the document and page of expiration date. | AA23: See amendment: | AH23: See page:
H25: Entity on title report: | I25: =IFERROR(INDEX(ParcelsTbl[Owner on Title Report],MATCH(A1,ParcelsTbl[Site Control ID],0)),"The Parcels table does not show any owners for this Site Control ID") -> The Parcels table does not show any owners for this Site Control ID
Y26: Is the owner on title the party who is granting site control per the document?
C27: Entity granting site control (aka Seller):
C28: If no, provide a detailed explanation of how the owner has authorized the disposition and documentation of such.
L30: Entity granted site control (aka Buyer):
Q31: Is the entity with site control the TCAC applicant?
B32: If no, provide an assignment/assumption agreement granting the Applicant site control and any relevant documentation.
B34: ="Cost/Value Documentation - Site Control #"&$A$1 -> Cost/Value Documentation - Site Control #4 | AE34: 10325(c)(6)
B36: All applications must include the cost or value of land and improvements in the development budget.
C37: What document is evidencing land value?
H38: Document Date: | AN38: =IFERROR(IF(O47="Value",IF(ABS(I38-'Housing Type'!AE3)>120,"! Appraisals must be dated no more than 120 days prior to the application deadline",""),""),"") -> 
D39: Is the date of value within:
E40: 120 days before or after the execution of any site control document pursuant to Section 10325(f)(2) OR the transfer of ownership by all the parties?
E42: one year of the application date (ONLY if the latest site control document pursuant to Section 10325(f)(2) was executed within that year)?
D44: Note: An amendment to an agreement does not constitute any of the site control documents.
B46: Many applications require an appraisal to substantiate the value of land and or building improvements. | AG46: 10322(h)(9)
N47: Budget reflects cost or valuation?
L48: Cost/Value in development budget: | Z48: Appraised value: | AF48: See page
L49: Cost exceeds appraised value: | M49: =AA49>M48 -> FALSE | Z49: Cost exceeds valuation: | AA49: =MAX(0,M48-AA48) -> 0
L51: Holding cost in development budget: | AC51: Months of holding costs incurred:
B53: =INDEX(val,MATCH("g_LandCost",ref,0)) -> 100000000 | G53: Land Cost or Value
B54: =INDEX(val,MATCH("g_ImprovementsValue",ref,0)) -> 0 | G54: Existing Improvements Value
B55: =B53+B54 -> 100000000 | G55: Total Acquisition Cost or Value | U55: =INDEX(val,MATCH("g_HoldingCost",ref,0)) -> 0 | Z55: Holding Costs
B56: =M48 -> 0 | G56: Cost/Value on this Site Control Tab | U56: =M51 -> 0 | Z56: Holding Costs on this Site Control Tab
B57: =B58-B56 -> 0 | G57: Cost/Value on other Site Control Tabs | U57: =U58-U56 -> 0 | Z57: Holding Costs on other Site Control Tabs
B58: =SiteControlTotalCost -> 0 | G58: Total Cost/Value accounted for | U58: =HoldingTotalCost -> 0 | Z58: Total Holding Costs accounted for
B59: =B55-B58 -> 100000000 | G59: Cost/Value yet to be accounted for | U59: =U55-U58 -> 0 | Z59: Holding Costs yet to be accounted for
B61: ="Title Report - Site Control #"&$A$1 -> Title Report - Site Control #4
G63: Included parcels: | H63: =C5 -> 
G64: Document date: | L64: =IF(ABS(H64-'Housing Type'!AF3)>90,"!","") ->  | M64: =IF(L64="!","Date is greater than 90 days from application deadline entered on Housing Type tab.","") ->  | AL64: =IF(AK64="!","Date is more than 90 days from application date","") -> 
C66: Is this a title report or preliminary title report, not title insurance or commitment to insure?
C67: For tribal trust land only, is this a title status report or an attorney’s opinion regarding chain of title and current title status?
C69: Is this the site control title report of an unsuccessful application being submitted in the reapplication cycle immediately following the unsuccessful application?
G71: Note: document may only be re-submitted once
C73: Current Outstanding Liens
C74: Lender/Loan | H74: Original Principal Amount | M74: Current Remaining Principal Amount | R74: Current Accrued Interest Amount | W74: Planned Disposition Description | AB74: Corresponding Exception Number from Title

Sheet Site Control 5 (hidden)
A1: 5 | AN1: =HYPERLINK("#Instructions!N116","Instructions for Site Control tabs »") -> Instructions for Site Control tabs »
B3: ="Site Control Narrative - "&INDEX(val,MATCH("g_ProjectName",ref,0)) -> Site Control Narrative - Test Project
B4: Provide a detailed description of how the applicable parcels are controlled by the applicant. If there are important nuances to understanding the arrangement please explain and communicate where pertinent information can be found. Including page numbers is often helpful.
C5: =INDIRECT("Sc"&A1&"Apns") -> 
B16: ="Agreement Evidencing Site Control - Site Control #"&$A$1 -> Agreement Evidencing Site Control - Site Control #5 | AE16: 10325(f)(2)
G18: Type of agreement:
C19: Has the site control document been amended?
D20: If yes, provide all amendments in a single file with a cover sheet and table of contents describing each amendment's purpose.
R22: Is this document valid through the application filing date? | V22: =IF(S22="No","! Expired site control documents are not accepted","") -> 
E23: Please specify the document and page of expiration date. | AA23: See amendment: | AH23: See page:
H25: Entity on title report: | I25: =IFERROR(INDEX(ParcelsTbl[Owner on Title Report],MATCH(A1,ParcelsTbl[Site Control ID],0)),"The Parcels table does not show any owners for this Site Control ID") -> The Parcels table does not show any owners for this Site Control ID
Y26: Is the owner on title the party who is granting site control per the document?
C27: Entity granting site control (aka Seller):
C28: If no, provide a detailed explanation of how the owner has authorized the disposition and documentation of such.
L30: Entity granted site control (aka Buyer):
Q31: Is the entity with site control the TCAC applicant?
B32: If no, provide an assignment/assumption agreement granting the Applicant site control and any relevant documentation.
B34: ="Cost/Value Documentation - Site Control #"&$A$1 -> Cost/Value Documentation - Site Control #5 | AE34: 10325(c)(6)
B36: All applications must include the cost or value of land and improvements in the development budget.
C37: What document is evidencing land value?
H38: Document Date: | AN38: =IFERROR(IF(O47="Value",IF(ABS(I38-'Housing Type'!AE3)>120,"! Appraisals must be dated no more than 120 days prior to the application deadline",""),""),"") -> 
D39: Is the date of value within:
E40: 120 days before or after the execution of any site control document pursuant to Section 10325(f)(2) OR the transfer of ownership by all the parties?
E42: one year of the application date (ONLY if the latest site control document pursuant to Section 10325(f)(2) was executed within that year)?
D44: Note: An amendment to an agreement does not constitute any of the site control documents.
B46: Many applications require an appraisal to substantiate the value of land and or building improvements. | AG46: 10322(h)(9)
N47: Budget reflects cost or valuation?
L48: Cost/Value in development budget: | Z48: Appraised value: | AF48: See page
L49: Cost exceeds appraised value: | M49: =AA49>M48 -> FALSE | Z49: Cost exceeds valuation: | AA49: =MAX(0,M48-AA48) -> 0
L51: Holding cost in development budget: | AC51: Months of holding costs incurred:
B53: =INDEX(val,MATCH("g_LandCost",ref,0)) -> 100000000 | G53: Land Cost or Value
B54: =INDEX(val,MATCH("g_ImprovementsValue",ref,0)) -> 0 | G54: Existing Improvements Value
B55: =B53+B54 -> 100000000 | G55: Total Acquisition Cost or Value | U55: =INDEX(val,MATCH("g_HoldingCost",ref,0)) -> 0 | Z55: Holding Costs
B56: =M48 -> 0 | G56: Cost/Value on this Site Control Tab | U56: =M51 -> 0 | Z56: Holding Costs on this Site Control Tab
B57: =B58-B56 -> 0 | G57: Cost/Value on other Site Control Tabs | U57: =U58-U56 -> 0 | Z57: Holding Costs on other Site Control Tabs
B58: =SiteControlTotalCost -> 0 | G58: Total Cost/Value accounted for | U58: =HoldingTotalCost -> 0 | Z58: Total Holding Costs accounted for
B59: =B55-B58 -> 100000000 | G59: Cost/Value yet to be accounted for | U59: =U55-U58 -> 0 | Z59: Holding Costs yet to be accounted for
B61: ="Title Report - Site Control #"&$A$1 -> Title Report - Site Control #5
G63: Included parcels: | H63: =C5 -> 
G64: Document date: | L64: =IF(ABS(H64-'Housing Type'!AF3)>90,"!","") ->  | M64: =IF(L64="!","Date is greater than 90 days from application deadline entered on Housing Type tab.","") ->  | AL64: =IF(AK64="!","Date is more than 90 days from application date","") -> 
C66: Is this a title report or preliminary title report, not title insurance or commitment to insure?
C67: For tribal trust land only, is this a title status report or an attorney’s opinion regarding chain of title and current title status?
C69: Is this the site control title report of an unsuccessful application being submitted in the reapplication cycle immediately following the unsuccessful application?
G71: Note: document may only be re-submitted once
C73: Current Outstanding Liens
C74: Lender/Loan | H74: Original Principal Amount | M74: Current Remaining Principal Amount | R74: Current Accrued Interest Amount | W74: Planned Disposition Description | AB74: Corresponding Exception Number from Title

Sheet Services
A1: Attachment 24 - Service Amenity Information | AY1: =HYPERLINK("#Instructions!N131","Instructions for Services tab »") -> Instructions for Services tab »
B3: Project: | H3: =INDEX(val,MATCH("g_ProjectName",ref,0)) -> Test Project | Z3: Source | AE3: Amount | AT3: 10325(c)(4)(B)
B4: Housing type: | H4: =INDEX(val,MATCH("t_HousingType",ref,0)) -> Special Needs | Z4: Cash Flow | AE4: =X93 -> 0 | AQ4: Units | AU4: Bedrooms
B5: 2nd Housing type: | H5: =INDEX(val,MATCH("t_SecondaryHousingType",ref,0)) -> Seniors | V5: =IF(AND(INDEX(val,MATCH("t_RequiresSecondaryHousingType",ref,0)),OR(H5="",H5="N/A")),"!","") ->  | Z5: In-Kind/Grant | AE5: =AB93 -> 0 | AP5: All residential: | AQ5: =INDEX(val,MATCH("g_UnitsLowIncome",ref,0)) -> 100 | AU5: =INDEX(val,MATCH("g_BedroomsTotal",ref,0)) -> 100
B6: Family project or 25% 3-BR units: | M6: =OR(H4="Large Family",(SUM(INDEX(val,MATCH("g_Units3",ref,0))+INDEX(val,MATCH("g_Units4",ref,0))+INDEX(val,MATCH("g_Units5",ref,0)))>=25%)) -> FALSE | R6: 3-BR: | S6: =SUM(INDEX(val,MATCH("g_Units3",ref,0))+INDEX(val,MATCH("g_Units4",ref,0))+INDEX(val,MATCH("g_Units5",ref,0)))/INDEX(val,MATCH("g_UnitsLowIncome",ref,0)) -> 0 | Z6: Cap. Reserve | AE6: =AF93 -> 0 | AP6: Special Needs: | AQ6: =INDEX(val,MATCH("g_UnitsSpecialNeeds",ref,0)) -> 50 | AU6: =INDEX(val,MATCH("g_BedroomsSpecialNeeds",ref,0)) -> 0
B7: Small development (<= 20 units): | M7: =INDEX(val,MATCH("g_UnitsTotal",ref,0))<=20 -> FALSE | Z7: Total: | AE7: =SUM(AE4:AH6) -> 0 | AP7: Non Special Needs: | AQ7: =MAX(0,AQ5-AQ6) -> 50 | AU7: =MAX(0,AU5-AU6) -> 100
B9: Physical space:
B10: Provide evidence that adequate physical space for services is provided on-site, inside the project, and provides sufficient square footage, accessibility and privacy to accommodate the proposed services. If services are located off-site, provide a scaled distance map evidencing the off-site service is within ½ mile of the development (1 ½ miles for Rural set-aside projects) and acknowledgment or documentation of the services from the service provider at the off-site location.
BK11: =HousingType="Special Needs" -> TRUE | BN11: =UnitsTotal<=20 -> FALSE | BP11: =M6 -> FALSE
BE12: Option | BF12: Points | BG12: Qualifies | BH12: Eligible | BI12: Base Hours | BJ12: Hours/ Bedrooms | BK12: Special Needs | BL12: Hours Req'rd | BM12: Poss. Points | BN12: Small Dev | BO12: Weekly | BP12: Fam or 30% 3s | BQ12: Hours Prpsd
B13: Scattered sites:
B14: An application proposing a project located on multiple scattered sites is scored proportionately in the service amenities category based upon (i) each site’s score, and (ii) the percentage of units represented by each site. | BE14: 1 | BF14: =BM14*BG14 -> 0 | BG14: =AND(BH14,BQ14>=BL14) -> FALSE | BH14: =OR(NOT(BK11),BO35) -> TRUE | BI14: 2080 | BJ14: 600 | BL14: =BO33/BJ14*BI14 -> 346.6666667 | BM14: 5 | BQ14: =T76 -> 0
BE15: 2 | BF15: 0 | BG15: =AND(BH15,BQ15>=BL15) -> FALSE | BH15: =OR(NOT(BK11),BO35) -> TRUE | BI15: 2080 | BJ15: 600 | BL15: =BO33/BJ15*BI15 -> 346.6666667 | BM15: 5 | BQ15: =T77 -> 0
C16: =IF(K16,"Yes","N/A") -> N/A | E16: Scattered Site: | K16: =INDEX(val,MATCH("g_ScatteredSite",ref,0)) -> FALSE | BE16: 3a | BF16: 0 | BG16: FALSE | BH16: =OR(NOT(BK11),BO35) -> TRUE | BI16: 84 | BL16: =BI16 -> 84 | BM16: 7 | BQ16: 0
B17: Scored Proportionately: | BE17: 3b | BF17: 0 | BG17: FALSE | BH17: =AND(OR(NOT(BK11),BO35),BN11) -> FALSE | BI17: 42 | BL17: =BI17 -> 42 | BM17: 7 | BN17: TRUE | BQ17: =BQ16 -> 0
B18: A Special Needs project with less than 75% special needs units is scored proportionately in the service amenity category based upon (i) the services provided to special needs and non-special needs units, respectively; and (ii) the percentage of units represented by special needs and non-special needs units, respectively. | BE18: 3c | BF18: 0 | BG18: FALSE | BH18: =OR(NOT(BK11),BO35) -> TRUE | BI18: 60 | BL18: =BI18 -> 60 | BM18: 5 | BQ18: =BQ16 -> 0
BE19: 3d | BF19: 0 | BG19: FALSE | BH19: =AND(OR(NOT(BK11),BO35),BN11) -> FALSE | BI19: 30 | BL19: =BI19 -> 30 | BM19: 5 | BN19: TRUE | BQ19: =BQ16 -> 0
C20: =IF(AND(K20="Special Needs",AC20<75%),"Yes","N/A") -> Yes | E20: Housing Type: | K20: =HousingType -> Special Needs | R20: Special Needs units percentage: | AC20: =INDEX(val,MATCH("t_SpecialNeedsPercentage",ref,0)) -> 0.5 | BE20: 4a | BF20: 0 | BG20: FALSE | BH20: =OR(NOT(BK11),BO35) -> TRUE | BI20: 100 | BJ20: 100 | BL20: =BO33/BJ20*BI20 -> 100 | BM20: 5 | BQ20: =T79 -> 0
E21: Special Needs Bedrooms: | O21: =AU6 -> 0 | Q21: Points: | T21: =AZ82 -> 10 | BE21: 4b | BF21: 0 | BG21: FALSE | BH21: =OR(NOT(BK11),BO35) -> TRUE | BI21: 60 | BJ21: 100 | BL21: =BO33/BJ21*BI21 -> 60 | BM21: 3 | BQ21: =BQ20 -> 0
E22: Non-Special Needs Bedrooms: | O22: =AU7 -> 100 | Q22: Points: | T22: =AZ75 -> 0 | V22: Proportional Score: | AC22: =IF(INDEX(val,MATCH("t_RequiresSecondaryHousingType",ref,0)),SUMPRODUCT(T21:U22,O21:P22)/SUM(O21:P22),"N/A") -> 0 | AF22: 10325(c)(4)(B)p8 | BE22: 5 | BF22: 0 | BG22: FALSE | BH22: =AND(OR(NOT(BK11),BO35),BP11) -> FALSE | BI22: 20 | BL22: =BI22*52 -> 1040 | BM22: 5 | BO22: TRUE | BP22: TRUE | BQ22: =T80 -> 0
B23: A Special Needs project with 75% or more but less than 100% special needs units must demonstrate all tenants will receive an appropriate level of services. | BE23: 6a | BF23: 0 | BG23: FALSE | BH23: =AND(OR(NOT(BK11),BO35),BP11) -> FALSE | BI23: 10 | BL23: =BI23*52*10/12 -> 433.3333333 | BM23: 5 | BO23: TRUE | BP23: TRUE | BQ23: =T81 -> 0
C24: =IF(AND(K20="Special Needs",AC20>=75%,AC20<100%),"Yes","N/A") -> N/A | BE24: 6b | BF24: 0 | BG24: FALSE | BH24: =AND(OR(NOT(BK11),BO35),BP11) -> FALSE | BI24: 6 | BL24: =BI24*52*10/12 -> 260 | BM24: 3 | BO24: TRUE | BP24: TRUE | BQ24: =BQ23 -> 0
B25: Include position descriptions for: | N25: 10325(c)(4)(B)p12 | AD25: Full Time Equivalent (FTE) to Hours Conversion Tool* | BE25: 7 | BF25: 5 | BG25: TRUE | BH25: =BK11 -> TRUE | BI25: 2080 | BJ25: 100 | BK25: TRUE | BL25: =BO34/BJ25*BI25 -> 0 | BM25: 5 | BQ25: =T83 -> 0
C26: =IF(INDEX(val,MATCH("t_HasServiceCoordinator",ref,0)),"Yes","N/A") -> N/A | E26: Service Coordinator | BE26: 8 | BF26: 5 | BG26: TRUE | BH26: =BK11 -> TRUE | BI26: 2080 | BJ26: 360 | BK26: TRUE | BL26: =BO34/BJ26*BI26 -> 0 | BM26: 5 | BQ26: =T84 -> 0
C27: =IF(INDEX(val,MATCH("t_HasCaseManager",ref,0)),"Yes","N/A") -> N/A | E27: Case Manager | AF27: FTE | AI27: Hours | BE27: 9a | BF27: 0 | BG27: FALSE | BH27: =BK11 -> TRUE | BI27: 84 | BK27: TRUE | BL27: =BI27 -> 84 | BM27: 5 | BQ27: 0
C28: =IF(INDEX(val,MATCH("t_HasOtherServiceSpecialist",ref,0)),"Yes","N/A") -> N/A | E28: Other Service Specialist | AF28: 1 | AI28: =2080*AF28 -> 2080 | BE28: 9b | BF28: 0 | BG28: FALSE | BH28: =AND(BK11,BN11) -> FALSE | BI28: 42 | BK28: TRUE | BL28: =BI28 -> 42 | BM28: 5 | BN28: TRUE | BQ28: =BQ27 -> 0
E29: (Describe the type of specialist) | AF29: 0.5 | AI29: =2080*AF29 -> 1040 | BE29: 10 | BF29: 0 | BG29: FALSE | BH29: =BK11 -> TRUE | BI29: 1 | BK29: TRUE | BL29: =BI29 -> 1 | BM29: 5 | BQ29: =T86 -> 0
AF30: 0.25 | AI30: =2080*AF30 -> 520 | BE30: 11 | BF30: 0 | BG30: FALSE | BH30: =AND(BK11,BP11) -> FALSE | BI30: 20 | BK30: TRUE | BL30: =BI30*52 -> 1040 | BM30: 5 | BO30: TRUE | BP30: TRUE | BQ30: =T87 -> 0
AI31: =2080*AF31 -> 0 | BE31: 12 | BF31: 0 | BG31: FALSE | BH31: =AND(BK11,BP11) -> FALSE | BI31: 10 | BK31: TRUE | BL31: =BI31*52*10/12 -> 433.3333333 | BM31: 5 | BO31: TRUE | BP31: TRUE | BQ31: 0
AD32: *provided for your convenience, no entry req'd for application
BN33: g_BedroomsTotal | BO33: =INDEX(val,MATCH(BN33,ref,0)) -> 100 | BP33: =IF(BO35,BO33-BO34,BO33) -> 100 | BQ33: Bedrooms for options 1-6
B34: Service provider commitments: | BN34: g_BedroomsSpecialNeeds | BO34: =AU6 -> 0 | BP34: =BO34 -> 0 | BQ34: Bedrooms for options 7-12
B35: Include a written commitment from all service providers. Documentation must take the form of a contract for services, Memorandum of Understanding (MOU), or commitment letter on agency letterhead. Service provider commitments must: | BN35: t_RequiresSecondaryHousingType | BO35: =INDEX(val,MATCH(BN35,ref,0)) -> TRUE
C37: • | D37: state the name and address of the organization or entity that will provide the services;
C38: • | D38: state the name of the project to which the services are being committed;
C39: • | D39: describe the services to be provided (not simply a general statement of the service categories outlined in the TCAC regulations);
C40: • | D40: state the number of hours services will be provided; and
C41: • | D41: commit that services will be available to tenants of the project free of charge (except for child care services or other charges required by law).
A43: Service Provider and Reference Contacts
B45: Company Name | L45: Contact Name | V45: Position | AD45: Email | AM45: Phone | AS45: Provider or Reference?
A65: Attachment 24 - Service Amenities Budget
B67: The Service Amenities Budget must clearly describe all anticipated income and expenses associated with the services program(s) and must align with the services commitments provided (i.e. contracts, MOUs, letters, etc.). Applications shall receive points for services only if the proposed budget adequately accounts for the level of service. The budgeted amount(s) must be reasonably expected to cover the costs of the proposed level of service(s). If project operating income (cash flow) will fund service amenities, the application’s Service Amenities Budget must be consistent with the application’s fifteen year pro forma. Services costs contained in the project’s pro forma operating expense budget do not count towards meeting TCAC’s minimum operating expense requirements.
B72: Services to be Provided | T72: Service Hours per Year | X72: Amount Paid from Cashflow | AB72: Value of In-Kind or Grant | AF72: Amount Paid from Cap. Rsrv. | AJ72: Service Provider | AT72: Narrative Explanation Provided
AZ74: Points
B75: Family, Senior, SRO or At-Risk projects* | AZ75: =MIN(10,SUM(AZ76:AZ81)) -> 0 | BH75: Funds | BI75: Provider | BJ75: Experience | BK75: Eligible | BL75: Hours
B76: 1. Service Coordinator | AZ76: =BF14 -> 0 | BA76: =IF(BH76,"! Missing funding",IF(BI76,"! Missing Service Provider",IF(BJ76,"! Missing Service Experience",IF(BK76,"! Not eligible",IF(BL76,"! Not enough hours",""))))) ->  | BH76: =AND(T76>0,SUM(X76:AI76)=0,AB76="") -> FALSE | BI76: =AND(T76>0,AJ76="") -> FALSE | BJ76: =AND(T76>0,IFERROR(NOT(INDEX($BH$110:$BH$115,MATCH(AJ76,$B$110:$B$115,0))),TRUE)) -> FALSE | BL76: =AND(T76>0,AZ76=0,NOT(BK76)) -> FALSE
B77: 2. Other Services Specialist | AZ77: =BF15 -> 0 | BA77: =IF(BH77,"! Missing funding",IF(BI77,"! Missing Service Provider",IF(BJ77,"! Missing Service Experience",IF(BK77,"! Not eligible",IF(BL77,"! Not enough hours",""))))) ->  | BH77: FALSE | BI77: FALSE | BJ77: FALSE | BL77: FALSE
B78: 3. Adult education, health, skill building classes | AZ78: =MAX(BF16:BF19) -> 0 | BH78: FALSE | BI78: FALSE | BJ78: FALSE | BL78: FALSE
B79: 4. Health and wellness services and programs | AZ79: =MAX(BF20:BF21) -> 0 | BH79: FALSE | BI79: FALSE | BJ79: FALSE | BL79: FALSE
B80: 5. Licensed child care** | AZ80: =BF22 -> 0 | BH80: FALSE | BI80: FALSE | BJ80: FALSE | BK80: =AND(T80>0,NOT($M$6)) -> FALSE | BL80: FALSE
B81: 6. After school program** | AZ81: =MAX(BF23:BF24) -> 0 | BH81: FALSE | BI81: FALSE | BJ81: FALSE | BK81: =AND(T81>0,NOT($M$6)) -> FALSE | BL81: FALSE
B82: Special Needs projects* | AZ82: =MIN(10,SUM(AZ83:AZ88)) -> 10
B83: 7. Case manager | AZ83: =BF25 -> 5 | BH83: =AND(T83>0,SUM(X83:AI83)=0,AB83="") -> FALSE | BI83: =AND(T83>0,AJ83="") -> FALSE | BJ83: =AND(T83>0,IFERROR(NOT(INDEX($BH$110:$BH$115,MATCH(AJ83,$B$110:$B$115,0))),TRUE)) -> FALSE | BL83: =AND(T83>0,AZ83=0,NOT(BK83)) -> FALSE
B84: 8. Service Coordinator or Other Services Specialist | AZ84: =BF26 -> 5 | BH84: FALSE | BI84: FALSE | BJ84: FALSE | BL84: FALSE
B85: 9. Adult education, health, skill building classes | AZ85: =MAX(BF27:BF28) -> 0 | BH85: FALSE | BI85: FALSE | BJ85: FALSE | BL85: FALSE
B86: 10. Health or behavioral health services | AZ86: =BF29 -> 0 | BH86: FALSE | BI86: FALSE | BJ86: FALSE | BL86: FALSE
B87: 11. Licensed child care** | AZ87: =BF30 -> 0 | BH87: FALSE | BI87: FALSE | BJ87: FALSE | BK87: =AND(T87>0,NOT($M$6)) -> FALSE | BL87: FALSE
B88: 12. After school program** | AZ88: 0 | BH88: FALSE | BI88: FALSE | BJ88: FALSE | BK88: =AND(T88>0,NOT($M$6)) -> FALSE | BL88: FALSE
B89: Other Services
S93: Totals***: | T93: =SUM(T76:W92) -> 0 | X93: =SUM(X76:AA92) -> 0 | AB93: =SUM(AB76:AE92) -> 0 | AF93: =SUM(AF76:AI92) -> 0 | AJ93: Combined Total: | AT93: =SUM(X93:AI93) -> 0
B94: * To receive points for the service amenity (a) the amount of hours, (b) the source of financing, and (c) the service provider must be specified above.
B95: ** Only available to Large Family projects or other projects in which at least 25% of Low-Income Units are three bedrooms or larger. | AS95: 10325(c)(4)(B)(v)
B96: ***The Service Amenities annual expense in the E-Application must match this budget's services paid from cash flow.
W98: Total Services Budgeted in Operating Expenses: | X98: =INDEX(val,MATCH("g_TotalServicesBudget",ref,0)) -> 0 | AB98: =IF(ABS(X98-X93)>1,"!","") ->  | AC98: =IF(AB98="!"," This budget does not match services paid from cash flow on 15-Year Pro Forma.","") -> 
A100: Attachment 24 - Service Provider Experience
B102: Each service provider that will be providing services for which the applicant is claiming service amenities points must have at least 24 months experience in the successful provision of services to at least one of the project’s target populations. Please provide information on the experience of each service provider in the table below. Note that a Service Provider must be an organization. Experience of individuals may not substitute for organizational experience.
B105: Complete one row for each service provider. | AS105: 10325(c)(4)(B)p14
B107: Service Provider | L107: Description of Services Organization has Provided (to meet 24 month minimum) | X107: Target Population Served | AE107: Starting Date | AH107: Ending Date | AK107: Number of Clients Served* | AO107: Service Provider Reference**
BH109: Experience
BA110: =IF(B110<>"",IF(AH110="",IF('Housing Type'!$AF$3-AE110<365*2,"! Not showing 24 month's experience",""),IF(AH110-AE110<365*2,"! Not showing 24 month's experience","")),"") ->  | BH110: =AND(B110<>"",AH110-AE110>2*365) -> FALSE
BA111: =IF(B111<>"",IF(AH111="",IF('Housing Type'!$AF$3-AE111<365*2,"! Not showing 24 month's experience",""),IF(AH111-AE111<365*2,"! Not showing 24 month's experience","")),"") ->  | BH111: FALSE
BA112: =IF(B112<>"",IF(AH112="",IF('Housing Type'!$AF$3-AE112<365*2,"! Not showing 24 month's experience",""),IF(AH112-AE112<365*2,"! Not showing 24 month's experience","")),"") ->  | BH112: FALSE
BA113: =IF(B113<>"",IF(AH113="",IF('Housing Type'!$AF$3-AE113<365*2,"! Not showing 24 month's experience",""),IF(AH113-AE113<365*2,"! Not showing 24 month's experience","")),"") ->  | BH113: FALSE
BA114: =IF(B114<>"",IF(AH114="",IF('Housing Type'!$AF$3-AE114<365*2,"! Not showing 24 month's experience",""),IF(AH114-AE114<365*2,"! Not showing 24 month's experience","")),"") ->  | BH114: FALSE
BA115: =IF(B115<>"",IF(AH115="",IF('Housing Type'!$AF$3-AE115<365*2,"! Not showing 24 month's experience",""),IF(AH115-AE115<365*2,"! Not showing 24 month's experience","")),"") ->  | BH115: =AND(B115<>"",AH115-AE115>2*365) -> FALSE
B116: * Provide the number of unduplicated clients served in the most recent year services were provided.
B117: ** In the contacts table above, provide name, title, email address, and phone number of a person who can provide a reference regarding the services provided. This person may not be affiliated with the service provider or project sponsor.

Sheet Resyndication
A1: Resyndication | AP1: =HYPERLINK("#Instructions!N143","Instructions for Resyndication tab »") -> Instructions for Resyndication tab »
B3: Project | E3: =INDEX(val,MATCH("g_ProjectName",ref,0)) -> Test Project | T3: Is a Resyndication | Z3: =IF(INDEX(val,MATCH("t_IsResyndication",ref,0)),"Yes","No") -> No | AC3: Credit Type | AG3: =CONCATENATE(CreditType,"%") -> 4% | AR3: =HYPERLINK("#AO98","Resyndication Q&A »") -> Resyndication Q&A »
C5: Existing TCAC Number(s) | L5: =IF(Z3="No","",INDEX(val,MATCH("t_ResyndOriginalNumber1",ref,0))) ->  | V5: =IF(Z3="No","",INDEX(val,MATCH("t_ResyndOriginalNumber2",ref,0))) ->  | AI5: Total Units: | AJ5: =INDEX(val,MATCH("g_UnitsTotal",ref,0)) -> 101
B7: Checklist | AM7: =IF(AND(C12="X",C13="X",C16="X",C18="X"),IsTrue,IsFalse) -> û
C9: All re-syndication applications must include the following documents in addition to the items outlined in the application checklist:
F12: A copy of the TCAC recorded regulatory agreement
F13: A confirmation letter from the seller that the seller will transfer tenant records and all tenant demographic data collected up to the date the sale closes escrow to the buyer and their property management agent
F16: A reserve certification indicating that all unexpended funds in the project reserve funds associated
F17: with the project will remain with the project (Section 10327(c)(7)). | Z17: =HYPERLINK("http://www.treasurer.ca.gov/ctcac/compliance/covenant/reserve.docx","Template on TCAC website here") -> Template on TCAC website here
F18: The questionnaire below, and any items required by the questionnaire
B20: Questionnaire | AM20: =IF(AH25="Yes",IsTrue,IF(OR(AH28="Yes",AH28="No"),IsTrue,IsFalse)) -> û
C22: Does the regulatory agreement include a commitment to provide service amenities?
D23: Note: the length of the commitment (or whether it has ended) is not relevant | AG23: =IF(CreditType=4,"10326(g)(8)(B)",IF(CreditType=9,"10325(f)(11)(B)","")) -> 10326(g)(8)(B)
C25: Does your Transfer Event qualify for an exemption because the project’s existing TCAC regulatory agreement has a remaining term of 5 years or less?
C28: Is your project currently subject to a Capital Needs Agreement or Capital Needs Covenant as a condition of a previous Transfer Event?
C30: Provide a copy of the Capital Needs Agreement.
C31: If yes, has the acquisition price increased between the initial Transfer Event and this application?
D32: If yes, determine the required seller carryback loan/equity contribution
E33: New valuation | P33: Aggregate annual replacement reserve contributions
E34: Original cost | Q34: required by Capital Needs Agreement
E35: Increased value | J35: =J33-J34 -> 0 | P35: Aggregate annual replacement reserve contributions | AH35: =AJ5*300 -> 30300
Q36: required by TCAC regulations
W37: Cap rate used in the appraisal associated with the resyndication | AG37: Difference: | AH37: =AH33-AH35 -> -30300
U38: Reserve Requirement Value Differential | V38: =IFERROR(AH37/X37,0) -> 0
U39: Required seller carryback/equity contribution | V39: =MIN(V38,J35) -> 0
C41: If subject to a Capital Needs Agreement, has the Short-Term Work been performed?
C43: If subject to a CNA, provide the following as attachments to the application (see checklist for more details):
B44: =IF(AH28="No","N/A","") ->  | D44: 1 | E44: The current Capital Needs Agreement
B45: =IF(OR($AJ$31="No",B44="N/A"),"N/A","") ->  | D45: 2 | E45: An appraisal or other documentation that calculates what portion of the increase is due to a reduction in annual deposits to the replacement reserve account
B47: =IF(OR($AJ$31="No",B44="N/A"),"N/A","") ->  | D47: 3 | E47: A statement of how the project complies with the requirement that the difference in value attributable to a reduction in the replacement reserve deposits be evidenced by a seller carryback note or general partner equity contribution
B51: =IF(OR(AH25="Yes",AJ41="Yes"),"N/A","") ->  | D51: =IF(B51="N/A","Project is exempt from calculating Net Project Equity","") -> 
B52: Net Project Equity calculation | AH52: 10320(b)(4)
B53: Use the form below to determine if the Transfer Event will distribute Net Project Equity
B55: Seller Sources | Q55: Debit | V55: Credit
B56: Total sales price
B57: Seller carryback loan1
B58: Repayment of existing debt2
B59: Repayment of original deferred developer fee3
B60: Repayment of GP operating deficit advances
B61: Repayment of LIHTC investor LP taxes4
B62: General Partner Equity5
B63: Net Project Equity | Q63: =V56-SUM(Q57:U62) -> 0
C65: 1 | D65: Must be a residual receipt loan with a term that extends beyond the new partnership's tax credit compliance period
C66: 2 | D66: Amount must equal the total of outstanding debts on attachment 2-A3 or in the Tab 2 Financing Plan
C67: 3 | D67: Payment of Seller entity's deferred developer fee note to original developer
C68: 4 | D68: Federal, state, and local taxes incurred by the Seller entity's tax credit investor limited partner
C69: 5 | D69: Contribution of equity by General Partner to the new tax credit partnership
B71: =IF(OR(AH25="Yes",AJ41="Yes",AND(Q63=0,V56<>"")),"N/A","") ->  | D71: =IF(B71="N/A",IF(AH25="Yes","Project is exempt from Qualified Capitals Needs Assessment due to remaining regulatory agreement timeframe",IF(AJ41="Yes","Project has already completed the Short Term Work","Project is exempt from Qualified Capital Needs Assessment due to having zero Net Project Equity")),"") -> 
B72: Qualified Capital Needs Assessment and Short-Term Work | AH72: 10320(b)(4)
B73: Does your Transfer Event qualify for a full waiver from the requirements of 10320(b)(4)(B) because there are no distributions of Net Project Equity from the Transfer Event? | AJ73: =IF(Q63>0,"No","Yes") -> Yes
C75: If no provide a current Qualified Capital Needs Assessment for the property (see checklist) | AE75: 10302(jj)
D76: Does the Qualified Capital Needs Assessment indicate the project needs at least $5,000 per unit of work performed in the next three years (the Short-Term Work)?
E78: Is the project exempt from this requirement by virtue of the project's current regulatory agreement expiring in ten (10) years or less?
D81: Does the rehabilitation scope of work include the Short Term Work? | AF81: 10320(b)(4)(B)
E82: What is the amount of the Short Term Work identified in the CNA?
F83: Min. Short Term Work (lesser of $5k/unit or Net Project Equity): | Z83: =MIN((INDEX(val,MATCH("g_UnitsTotal",ref,0))*5000),Q63) -> 0
E85: Is the Short Term Work being included in eligible basis?
F86: If so how will the Short Term Work be funded?
B91: After a project has received a new reservation of credits, the existing regulatory agreement must be assigned to and assumed by the new owner. At your earliest convenience, please forward Cynthia Compton and Carmen Doonan a draft of the assignment and assumption of regulatory agreement and any standstill and/or subordination agreement the lender may require, along with the anticipated closing date.
N96: =HYPERLINK("mailto:cynthia.compton@treasurer.ca.gov,cdoonan@treasurer.ca.gov","mailto: Cynthia Compton & Carmen Doonan") -> mailto: Cynthia Compton & Carmen Doonan
B98: Questions and Answers (Q&As)
C100: 1. What is a re-syndication project?
E101: Re-syndication refers to the process where an existing tax credit project requests a new reservation of tax credits to finance the rehabilitation of the existing tax credit project.
C104: 2. When can I apply for a new reservation of credits (re-syndicate)?
D105: You may apply for a new reservation of tax credits concurrently with the initial, expiring 15-year federal compliance period. The acquisition date and the placed in service date must occur after the existing federal 15-year compliance period has expired.
C109: 3. How is the initial 15-year compliance period determined?
D110: The 15-year compliance period begins on the first day of the taxable year of the credit period. In other words, the credit and compliance periods will begin the same year. For example, a project is placed in service on July 1, 2001. Most LIHTC property owners are limited partnerships with taxable years beginning on January 1st, so the compliance period begins on January 1, 2001 and ends on December 31, 2015. See Internal Revenue Code §42(i)(1).
C116: 4. What is the difference between an exemption and a waiver of the Transfer Event Short Term Work requirements?
D118: A re-syndication project is exempt from Transfer Event Short Term Work requirements only if the project is subject to an existing tax credit regulatory agreement with a remaining term of five or less years. A re-syndication project may receive a waiver of the Transfer Event Short Term Work requirements if there is no distribution of Net Project Equity. Development Section staff will consider the waiver as part of the application review (see Questions 9 and 10).
C124: 5. What if the transfer is not occurring concurrently with a re-syndication?
D125: Refer to the compliance transfer event questionnaire on the TCAC website. If you have questions after reviewing the compliance questionnaire, please contact Compliance Program Manager David McDaniels by email or by phone at (916) 654-6340.
D128: =HYPERLINK("https://www.treasurer.ca.gov/ctcac/compliance/covenant/questionnaire.pdf","Compliance Transfer Event Questionnaire") -> Compliance Transfer Event Questionnaire | R128: =HYPERLINK("mailto:david.mcdaniels@treasurer.ca.gov","mailto: David McDaniels") -> mailto: David McDaniels
C130: 6. When does a Capital Needs Agreement, or Capital Needs Covenant, apply?
D131: A capital needs agreement is a document recorded on title when there is an equity cash out not occurring concurrently with a re-syndication (Question 5). The document is recorded on title and outlines the Short Term Work to be completed within 3 years from the date of the Transfer Event and any deposits to reserves as necessary to fund the long term work.
C136: 7. Assume a project is subject to a Capital Needs Agreement due to a prior Transfer Event and Net Project Equity take out. If there will be additional equity take out (Net Project Equity distribution) with the re-syndication application, would this qualify for a waiver?
D139: No. If additional equity is being taken out, the project would not be eligible for a waiver and the resyndication application must exclude from basis the costs of the Short Term Work unless one of the four funding sources described in answer 14b) is included.
C143: 8. If a project is subject to an existing Capital Needs Agreement, can the project take eligible basis on the Short Term Work required by the Capital Needs Agreement?
D145: In many cases, the Short Term Work should already be completed because it has been more than 3 years since the Capital Needs Agreement was signed. If it has been less than 3 years since the Capital Needs Agreement was signed and some or all of the Short Term Work required by the Capital Needs Agreement will be done as part of the rehabilitation, the project must exclude from eligible basis any amount of the remaining Short Term Work reserve from the Capital Needs Agreement. These costs are included in the Sources and Uses Budget, but are not basis-eligible. Tax credits shall not pay for work funded already by the seller from the Initial Transfer Event. In addition, the applicant shall include the Short Term Work reserve funds required by the Capital Needs Agreement as a financing source. Since the funds have already been set aside for these costs, they must be spent for that purpose. If it has been more than 3 years since the Capital Needs Agreement was signed, the costs of any Short Term Work required by the Capital Needs Agreement may not be included in basis. The project is in violation of the Capital Needs Agreement, and TCAC will not award tax credits for completion of this work.
C159: 9. If a project is not subject to an existing Capital Needs Agreement and the Transfer Event associated with a re-syndication will not distribute Net Project Equity to parties, are there any restrictions on including all rehabilitation costs in eligible basis?
D162: No. Notwithstanding that the re-syndication may be a Transfer Event, because the project is not under a Capital Needs Agreement at the time of re-syndication and the transfer associated with the resyndication distributes no Net Project Equity to parties, upon verification TCAC will waive the requirement to fund the Short Term Work. As part of the TCAC re-syndication application, the applicant must submit a Worksheet of Sale Proceeds from the transfer which calculates the Net Project Equity and demonstrates that the transfer does not distribute Net Project Equity to parties.
E168: Sample Worksheet of Sale Proceeds:
E169: Seller Sources | T169: Debit | Y169: Credit
E170: Total sales price
E171: Seller carryback loan1
E172: Repayment of existing debt2
E173: Repayment of original deferred developer fee3
E174: Repayment of GP operating deficit advances
E175: Repayment of LIHTC investor LP taxes4
E176: General Partner Equity5
E177: Net Project Equity | T177: =Y170-SUM(T171:X176) -> 0
C179: 1 | D179: Must be a residual receipt loan with a term that extends beyond the new partnership's tax credit compliance period
C180: 2 | D180: Amount must equal the total of outstanding debts on attachment 2-A3 or in the Tab 2 Financing Plan
C181: 3 | D181: Payment of Seller entity's deferred developer fee note to original developer
C182: 4 | D182: Federal, state, and local taxes incurred by the Seller entity's tax credit investor limited partner
C183: 5 | D183: Contribution of equity by General Partner to the new tax credit partnership
D185: Please be aware that TCAC will make this determination during the application review based on documentation included in the application. If it is determined there is a Short Term Work requirement and the application incorrectly excluded a Short Term Work requirement, the application must be corrected. If there is insufficient time for this to occur, the application will be removed from the scheduled Committee meeting.
C191: 10. If the re-syndication will not distribute Net Project Equity, should the applicant should differentiate immediate needs/short term work from any other rehabilitation work?
D193: No. If TCAC determines there is no Net Project Equity being distributed, the Short Term Work requirement is waived. Please be aware that TCAC will make this determination during the application review based on documentation included in the application. If it is determined there is a Short Term Work requirement and the application incorrectly excluded a Short Term Work requirement, the application must be corrected. If there is insufficient time for this to occur, the application will be removed from the scheduled Committee meeting.
C199: 11. If a re-syndication project excludes the costs of Short Term Work from basis or includes an adequate amount of the funding sources described in answer 14b), may the seller pull cash out (Net Project Equity distribution) even if it is a related party transaction?
D202: Yes.
C204: 12. What is a Qualified Capital Needs Assessment (QCNA) and when is it required?
D205: QCNA:
F206: a) | G206: Meets the requirements of (a) the Fannie Mae Multifamily Instructions for the PNA Property Evaluator, (b) Freddie Mac’s Property Condition Report requirements in Chapter 14 of the Small Balance Loan Addendum, (c) HUD’s Multifamily Capital Needs Assessment section in Appendix 5G of the Multifamily Accelerated Process Guide, or (d) Standard Guide for Property Condition Assessments: Baseline Property Condition Assessment Process (ASTM Designation E 2018-08) utilizing a recognized industry standard to establish useful life estimates for the replacement reserve analysis;
F213: b) | G213: Is commissioned by a third-party lender;
F214: c) | G214: Prepared within 180 days of the proposed transfer event; and
F215: d) | G215: Includes a pre-rehabilitation reserve study that clearly sets forth:
G216: i. | H216: the capital needs of the project for the next 3 years (Short Term Work) and the projected costs thereof, AND
G218: ii. | H218: the capital needs of the project for the subsequent 12 years (long term work) and the projected contributions to reserves that will be needed to accomplish that work.
D221: A QCNA is required for all re-syndications, including those that receive a waiver of or are not subject to Short Term Work requirements. NOTE: When there is a Net Project Equity distribution the 15 year pre-rehabilitation reserve study in the QCNA must demonstrate a rehabilitation need of at least $5,000 per unit over the first three years (Short Term Work, see Question 13). Please refer to Sections 10302(ff), 10320(b)(4), 10322(h)(26)(B), and 10325(f)(11)(C).
C230: 13. Re-syndications with a distribution of Net Project Equity are subject to TCAC’s Transfer Event Short Term Work requirement. How does TCAC verify the Short Term Work requirement is met?
D232: The Qualified Capital Needs Assessment (QCNA) must demonstrate immediate rehabilitation needs of at least $5,000 per unit over the first three years of the 15 year pre-rehabilitation study. This is equal to the aggregate amounts in Years 1-3 of the 15 year pre-rehabilitation reserve study plus any immediate needs if identified separately in the QCNA. (The $5,000 per unit calculation cannot include inflation adjusters for Years 2-3 since all of this work is being performed as part of the rehabilitation and is not spread over a 3 year period.) For example, the QCNA for a 75 unit project must demonstrate at least $375,000 in rehabilitation needs for Years 1-3. If it does not, the project does not qualify for resyndication.
C241: 14. For re-syndication applications subject to the Transfer Event provisions, how should the Short Term Work amount from the Qualified Capital Needs Assessment (QCNA) be reflected in the resyndication application?
D245: a) | E245: The Short Term Work is included in the rehabilitation scope of work (Attachment 8). In the Sources and Uses Budget, the Short Term Work is included in the budget either within the rehabilitation costs or as a separate line item. Be sure the costs in the QCNA 15 year pre-rehabilitation reserve study equal at least $5,000 per unit in Years 1-3 (Question 13).
D249: b) | E249: If the applicant demonstrates one of the sources listed below in an amount equal to or greater than the Short Term Work amount, the applicant may claim eligible basis for the Short Term Work amount and should not differentiate the Short Term Work from any other rehabilitation work in the Sources and Uses Budget:
F253: i. | G253: a credit from the seller of the project equal to the costs of Short Term Work;
F254: ii. | G254: a reduction in the purchase price of the project as compared to the purchase price of the project had the project not been subject to the Transfer Event requirement, as shown by an appraisal that calculates the impact of the Short Term Work requirement on value;
F257: iii. | G257: general partner equity; and/or
F258: iv. | G258: developer fee contributed to the project (deferred developer fee does not qualify).
D259: c) | E259: If the applicant is not eligible for a waiver and does not demonstrate one of the sources listed above in item b), the eligible basis for the Structures line item in the Sources and Uses Budget worksheet of the Excel application should be reduced by an amount equal to or greater than the Short Term Work amount.
C264: 15. There is a seller credit in the amount of the Short Term Work requirement due to a Net Project Equity distribution (Answer 14b)). How should the seller credit be presented in the purchase and sale agreement, the TCAC application, and the Sources and Uses Budget?
D267: Assume a purchase and sale agreement for $10M, a seller credit of $500,000, and Short Term Work of $500,000. The purchase and sale agreement (PSA) must acknowledge the seller credit of $500,000. The appraisal in the application must support a value of at least $10M. The net purchase price ($9.5M) should be shown in the Sources and Uses Budget since that is what is being paid. Having the PSA verify the full amount ($10M) will sufficiently evidence the seller credit for the TCAC application. In the Sources and Uses Budget, the Short Term Work is included in the budget either within the rehabilitation costs or as a separate line item.
C275: 16. Does the amount of Short Term Work that must be contributed as described in Question 14b) above (Section 10320(b)(4)(B)) count towards the amount of developer fee that must be deferred or contributed as equity in cases where the developer fee is in excess of TCAC’s maximum that may be disbursed (Section 10327(c)(2)(B))?
D279: No.
C281: 17. All projects with a reservation of credit made 1997 and later are subject to the requirement that all unexpended funds in project reserve accounts must remain with the project to be used for the benefit of the property and/or its residents. Can the seller require the purchase of the existing reserves?
D285: Yes, however the payment will be considered a distribution of Net Project Equity for Transfer Event purposes.
C288: 18. How will TCAC confirm Short Term Work has been completed?
D289: For all projects TCAC will require confirmation at placed in service that the applicant completed all of the Short Term Work items or that the Short Term Work items have been rendered moot by the larger rehabilitation work.
C293: 19. If the requirement to provide services amenities in the existing TCAC regulatory agreement has expired, is the project required to provide services in the re-syndication application?
D295: If the existing TCAC regulatory agreement for the re-syndication project was required to provide service amenities even if that requirement has expired, the re-syndication project shall provide a similar or greater level of services for a period of at least 15 years under the new regulatory agreement. A project obtaining maximum TCAC points for service amenities shall be deemed to have met this requirement.
D300: The Executive Director may alter the service amenities requirement if the project (1) has exhibited a cash flow of less than $20,000 for at least each of the last 3 years, (2) has no hard debt and failed to break even in Year 15 with services amenities, or (3) within the next 5 years will lose a rental or operating subsidy that was factored into the project's initial feasibility, provided that the service amenity expenditures are maximized to what project feasibility allows.
C306: 20. For a re-syndication of an existing tax credit project, may the area median income (AMI) rent and income targeting be increased in the new application?
D308: The targeted rent and income figures must be maintained at or below the targeted levels required in the existing TCAC regulatory agreement unless approved by the Executive Director due to negative cash flow (see Section 10326(g)(8)).
C312: 21. If a re-syndication includes a Subsequent Transfer described in Section 10320(b)(4)(C) and the value of the property has increased from the Initial Transfer, how is the required seller carryback or equity contribution amount determined?
D315: The methodology to calculate the amount of the required seller carryback or equity contribution is as follows:
E317: 1) | F317: Subtract the original acquisition cost from the new valuation (the “Increased Value”);
E319: 2) | F319: Subtract the aggregate annual replacement reserve contributions required under the standard TCAC replacement reserve requirements from the aggregate annual replacement reserve contributions required by the Capital Needs Agreement. This difference is then divided by the cap rate used in the appraisal associated with the re-syndication (the “Reserve Requirement Value Differential”).
F324: (aggregate annual replacement reserve contributions required by the Capital Needs Agreement - aggregate annual replacement reserve contributions required by TCAC); and
E327: 3) | F327: The amount of the seller carryback shall be the amount of the Reserve Requirement Value Differential but not in excess of the Increased Value. In the event that assumed third-party secured debt on the property equals or exceeds the property’s value from the appraisal associated with the re-syndication, no seller carryback or equity contribution is required.
C332: 22. If a re-syndication includes a Subsequent Transfer described in Section 10320(b)(4)(C) and the value of the property has increased from the Initial Transfer, and the seller chooses to provide a carryback loan to meet TCAC requirements, what are the required terms of the seller carryback loan?
D336: The seller carryback shall be a 55-year residual receipts loan payable solely from project cash flow.
C338: 23. What will the building identification numbers (BIN’s) be for my new application?
D339: All re-syndication projects are required by the IRS to use the existing BIN’s for the project. For example if the original BIN was CA-04-00201, the new project will retain that BIN for future IRS filings.
C342: 24. Are re-syndication projects eligible to use the California Utility Allowance Calculator (CUAC)?
D343: Yes. Projects applying for tax credits for which the rehabilitation improves energy efficiency by at least 20%, consistent with the requirements of Section 10325(c)(5)(D) and (G), or installs solar generation that offsets 50% of tenant loads, as determined consistent with the requirements of Section 10325(c)(5)(G), are eligible to use the CUAC. Any decrease in tenant’s utility allowance resulting from conversion to the CUAC shall not exceed $15 per month over any 12-month period. Re-syndication projects proposing the CUAC should reflect actual rents in the Excel application no greater than a $15 tenant rent increase. At placed in service, TCAC will compare the pre- and post-CUAC utility allowances and tenant paid rents.

Sheet Rehab
A1: Attachment 8 - Rehabilitation Summary | I1: =HYPERLINK("#Instructions!N9157","Instructions for Rehab tab »") -> Instructions for Rehab tab »
A4: Project Name: | B4: =INDEX(val,MATCH("g_ProjectName",ref,0)) -> Test Project
A5: REHABILITATION ITEMS | B5: COMMENTS / BRIEF DESCRIPTION OF THE PROPOSED REHABILITATION | D5: NUMBER OF UNITS | E5: PERCENTAGE | F5: ESTIMATED REMAINING USEFUL LIFE / CNA EVIDENCE | G5: ESTIMATED COST
A6: SITE
A7: Carports/Garages
A8: Drainage
A9: Fencing
A10: Landscaping/Topography
A11: Lighting
A12: Parking/Roadways
A13: Recreation Areas
A14: Sidewalks/Pedestrian Areas
A15: Signage
A16: Trash Facilities
A17: Maintenance Shed
A18: Utilities
A19: Other (Specify)
A20: Other (Specify)
A21: Other (Specify)
A22: STRUCTURE FRAMES AND ENVELOPES
A23: Balconies/Patios
A24: Doors and Frames
A25: Elevated Walkways
A26: Facades/Siding/Exterior Walls
A27: Foundation/Substructure
A28: Insulation
A29: Painting
A30: Roofing
A31: Stairs/Landings
A32: Superstructure
A33: Windows and Frames
A34: Other (Specify)
A35: Other (Specify)
A36: Other (Specify)
A37: COMMON AREAS
A38: Community Room
A39: Laundry Facilities
A40: Management Office
A41: Other (Specify)
A42: Other (Specify)
A43: Other (Specify)
A44: MECHANICAL / ELECTRICAL / PLUMBING
A45: Electrical Systems
A46: Elevators
A47: Fire Alarm/Suppression
A48: Hot and Cold Water Distribution
A49: HVAC/Heating/Cooling
A50: Plumbing and Sewage Systems
A51: Water Heaters
A52: Other (Specify)
A53: Other (Specify)
A54: Other (Specify)
A55: UNIT INTERIORS
A56: Appliances
A57: Cabinets
A58: Carpeting
A59: Ceilings/Walls
A60: Countertops
A61: Doors
A62: Flooring
A63: Lighting
A64: Painting
A65: Sinks/Faucets
A66: Smoke/Heat/CO2 Detectors
A67: Toilets, Tubs and Showers
A68: Window Coverings
A69: Other (Specify)
A70: Other (Specify)
A71: Other (Specify)
A72: CODE COMPLIANCE
A73: Fire Safety
A74: Building Safety
A75: Other (Specify)
A76: Other (Specify)
A77: Other (Specify)
A78: ACCESSIBILITY / ADA COMPLIANCE
A79: Public Area Accessibility
A80: Unit Accessibility
A81: Other (Specify)
A82: Other (Specify)
A83: Other (Specify)
A84: TOTAL COSTS | G84: =SUM(G6:G83) -> 0 | H84: =IF(G84<>(INDEX(val,MATCH("g_CostRehab",ref,0))),"!","") ->  | I84: =IF(H84="!","Costs do not match Rehab costs from the Sources & Uses Budget","") -> 
A85: TOTAL COSTS (From CNA) | F85: $
A87: COMMENTS (Explanation for variance from CNA, if applicable):

Sheet Const. & Design
A1: Attachment 12 - Construction & Design Description | AQ1: =HYPERLINK("#Instructions!N186","Instructions for Const. & Design tab »") -> Instructions for Const. & Design tab »
C5: This attachment should be a detailed narrative description of the proposed project’s construction and design including how the design will serve the targeted population. Please include your narrative in tab 12.
C8: Include basic information about the project:
D9: • | E9: number of buildings, stories per building, units per building, any elevator access
D10: • | E10: building type (Type I-V), or any combination of types
D11: • | E11: building construction, foundation, and exterior type(s)
D12: • | E12: building area uses (residential, community/common, commercial)
D13: • | E13: housing type and how the design will serve the targeted population
D14: • | E14: number of units and bedroom types, accessibility features
D15: • | E15: number and size of manager unit(s) and market rate units
D16: • | E16: description of any plans for employing desk or security staff in lieu of manager units
D17: • | E17: if market rate project is built concurrent with the proposed project, provide a brief description of the market rate development
D19: • | E19: if proposing a project to include senior housing in combination with non-senior housing, provide a third party legal opinion stating that the project complies with fair housing law
D21: • | E21: parking (number of covered and uncovered spaces including covered description (carports, tuck under, garages, etc.), accessibility)
D23: • | E23: site amenities (examples: community and common areas, laundry, gated access, security, recreational areas, pool, community garden, etc.)
D25: • | E25: sustainable and green building elements
D26: • | E26: multi-phase projects should provide information about other phase sites (previously built or proposed) and any shared areas, services, management, etc. These may require prior approval by TCAC.
D28: • | E28: summary of any planned parcel subdivisions or parcel merging, if not described elsewhere in the application
D29: • | E29: description of any existing structures
C30: Rehabilitation projects should also include:
D31: • | E31: history of previous retrofits or renovations, overall physical condition of the building(s)
D33: Site mitigation requirements and complex or costly structural or site/topographical requirements should be included in the description of unique features.
D36: The narrative must also include an explanation of any required demolition and off-site improvements, as well as a detailed construction breakdown of these expenses. Off-site improvement costs must be separated out into the following categories:
D40: (1) | F40: General off-site costs (off-sites that do not immediately border the project site)
D42: (2) | F42: Project-specific off-site costs (off-sites that immediately border the project site)
F43: (A) | G43: Off-site costs meeting the requirements under TCAC Regulation Section 10325(c)(9) as public contributions of off-site costs.
F45: (B) | G45: Other off-site costs that do not meet the requirements under TCAC Regulation Section 10325(c)(9) as public contributions of off-site costs.
C48: Within each category, provide a list of off-sites and their individual costs. Specific costs must be listed out to total the subtotals for each category. Each cost should also be identified as being included or excluded from eligible basis and whether or not they meet the public contributions of off-site cost requirements of TCAC Regulation Section 10325(c)(9). The grand total of the costs and basis must be consistent with the total amount shown in the Sources and Uses Budget.

Sheet Min. Const. Stds.
A1: Attachment 10 - Minimum Construction Standards | AM1: =HYPERLINK("#Instructions!N190","Instructions for Min. Const. Stds. tab »") -> Instructions for Min. Const. Stds. tab »
N3: Project Name: | O3: =INDEX(val,MATCH("g_ProjectName",ref,0)) -> Test Project
B5: Applicant shall provide a statement that the following minimum specifications will be incorporated into the project design for all new construction and rehabilitation projects.
G8: Waiver requested
H9: Provide waiver and approval in tab 10.
B11: All below standards will be incorporated unless the above box is selected. In addition, a statement shall commit the property owner to at least maintaining the installed energy efficiency and sustainability features’ quality when replacing each of the following listed systems or materials:
B15: (A) | D15: Energy Efficiency. All rehabilitated buildings, both competitive and non-competitive, shall have improved energy efficiency above the modeled energy consumption of the building(s) based on existing conditions documented using the Sustainable Building Method Workbook’s CTCAC Existing Multifamily Assessment Protocols and reported using the CTCAC Existing Multifamily Assessment Report template. Rehabilitated buildings shall document at least a 10% post-rehabilitation improvement over existing conditions energy efficiency achieved for the project as a whole, except that Scattered Site applications shall also document at least a 5% post-rehabilitation improvement over existing conditions energy efficiency achieved for each site. In the case of projects in which energy efficiency improvements have been completed within five years prior to the application date pursuant to a public or regulated utility program or other governmental program that established existing conditions of the systems being replaced using a HERS Rater, the applicant may include the existing conditions of those systems prior to the improvements. Furthermore, rehabilitation applicants must submit a completed Sustainable Building Method Workbook with their placed-in-service application unless they are developing a project in accordance with the minimum requirements of Leadership in Energy & Environmental Design (LEED), Passive House Institute US (PHIUS), Passive House, Living Building Challenge, National Green Building Standard ICC / ASRAE – 700 silver or higher rating or GreenPoint Rated Program.
B34: (B) | D34: Landscaping. If landscaping is to be provided or replaced, a variety of plant and tree species that require low water use shall be provided in sufficient quantities based on landscaping practices in the general market area and low maintenance needs. Projects shall follow the requirements of the state Model Water Efficient Landscape Ordinance unless a local landscape ordinance has been determined to be at least as stringent as the current model ordinance.
H39: =HYPERLINK("https://water.ca.gov/Programs/Water-Use-And-Efficiency/Urban-Water-Use-Efficiency/Model-Water-Efficient-Landscape-Ordinance","Model Water Efficient Landscape Ordinance »") -> Model Water Efficient Landscape Ordinance »
B41: (C) | D41: Roofs. Newly installed roofing shall carry a three-year subcontractor guarantee and at least a 20-year manufacturer’s warranty.
B44: (D) | D44: Exterior doors. If exterior doors are to be provided or replaced, insulated or solid core, flush, paint or stain grade exterior doors shall be made of metal clad faces, hardwood faces, or fiberglass faces, with a standard one-year guarantee and all six sides primed.
B48: (E) | D48: Appliances. All Low-Income Units shall provide a refrigerator. All non-SRO Low-Income Units shall provide a range (cooktop and oven), and all SRO Low-Income Units shall include a cooking facility (at least a cooktop or microwave). The Executive Director may waive the refrigerator and cooking facility requirement for SRO units if the project includes a common area kitchen facility for tenants. Refrigerators, dishwashers, clothes washers and dryers provided or replaced within Low-Income Units and/or in on-site community facilities shall be ENERGY STAR rated appliances, unless waived by the Executive Director.
B57: (F) | D57: Window coverings. Window coverings shall be provided and may include fire retardant drapes or blinds.
B60: (G) | D60: Water heater. If water heaters are to be provided or replaced, for Low-Income Units with individual tank-type water heaters, minimum capacities are to be 28 gallons for one- and two-bedroom units and 38 gallons for three-bedroom units or larger.
B64: (H) | D64: Floor coverings. If floor coverings are to be provided or replaced, a hard, water resistant, cleanable surface shall be required for all kitchen and bath areas. Any carpet provided or replaced shall comply with U.S. Department of Housing and Urban Development/Federal Housing Administration UM44D.
B69: (I) | D69: All fiberglass-based insulation provided or replaced shall meet the Greenguard Gold Certification.
I71: =HYPERLINK("https://www.ul.com/resources/ul-greenguard-certification-program","GreenGuard Certification Program »") -> GreenGuard Certification Program »
B73: (J) | D73: Consistent with California State law, projects with 16 or more Low-Income and Market-Rate Units must have an on-site manager’s unit. Projects with at least 161 Low-Income and Market-Rate Units shall provide a second on-site manager’s unit for either another on site manager or other maintenance personnel, and there shall be one additional on-site manager’s unit for either another on-site manager or other maintenance personnel for each 80 Low-Income and Market-Rate Units beyond 161 units, up to a maximum of four on-site manager’s units. Scattered site projects totaling 16 or more Low-Income and Market-Rate Units must have at least one on-site manager’s unit for the entire project, and at least one manager’s unit at each site where that site’s building(s) consist of 16 or more Low-Income and Market-Rate Units. Scattered sites within 100 yards of each other shall be treated as a single site for purposes of the on-site manager rule only. If an applicant or project owner proposes to utilize a low-income unit to meet California and CTCAC manager unit requirements, the following applies: (1) the unit is considered a low-income restricted unit and must comply with all requirements associated with low-income restricted units; (2) the unit is included in the applicable fraction; and (3) the tenant cannot be evicted upon employment termination. If employment is terminated, the project owner is responsible for continuing to meet California and CTCAC onsite manager unit requirements. Any application proposing to utilize a low-income unit to meet California and CTCAC manager unit requirements must include a description in the application of how the project will meet those requirements if employment is terminated. In lieu of on-site manager units, a project may commit to employ an equivalent number of on-site full-time property management staff (at least one of whom is a property manager) and provide an equivalent number of desk or security staff who are not tenants and are capable of responding to emergencies for the hours when property management staff is not working. All staff or contractors performing desk or security work shall be knowledgeable of how the property’s fire system operates and be trained in, and have participated in, fire evacuation drills for tenants. CTCAC reserves the right to require that one or more on-site managers’ units be provided and occupied by property management staff if, in its sole discretion, it determines as part of any onsite inspection that the project has not been adequately operated and/or maintained.
B109: (K) | D109: All new construction projects shall adhere to the provisions of California Building Code (CBC) Chapter 11(B) regarding accessibility to privately owned housing made available for public use in all respects except as follows: instead of the minimum requirements established in 11B 233.3.1.1 and 11B 233.3.1.3, all new construction projects must provide a minimum of fifteen percent (15%) of the Low Income Units with mobility features, as defined in CBC 11B 809.2 through 11B 809.4, and a minimum of ten percent (10%) of the Low Income Units with communications features, as defined in CBC 11B 809.5. These units shall, to the maximum extent feasible and subject to reasonable health and safety requirements, be distributed throughout the project consistent with 24 CFR Section 8.26. Rehabilitation projects shall provide a minimum of ten percent (10%) of the Low Income Units with mobility features, as defined in CBC 11B 809.2 through 11B 809.4, and four percent (4%) with communications features, as defined in CBC 11B 809.5. To the maximum extent feasible and subject to reasonable health and safety requirements, these units shall be distributed throughout the project consistent with 24 CFR Section 8.26. At least one of each common area facility type and amenity, as well as paths of travel between accessible units and such facilities and amenities, the building entry and public right of way, and the leasing office or area shall also be made accessible utilizing CBC Chapter 11(B) as a design standard. In all other respects, applicable building code will apply. Projects with particular federal, state, or local funding sources may be required to meet additional accessibility requirements related to these other sources.

Sheet Data (hidden)
A1: Reference | B1: Value | C1: Description | F1: Bedroom Type | G1: Number of Units | H1: Average Sq Ft | I1: Net Rent | J1: Monthly Utility | K1: Actual % AMI | L1: Count SpN Units | M1: Market Rate | O1: Average Affordability by AMI Actual Rents - SpN | S1: Average Affordability by AMI Actual Rents - Non-SpN SRO | X1: All Liens for CDLAC | AW1: Corresponding Exception Number from Title
B2: Project Location | F2: =IF(CreditType=4,IF([1]Application!$B728="","",[1]Application!$B728),IF([1]Application!$B706="","",[1]Application!$B706)) -> 1 Bedroom | G2: =IF(CreditType=4,IF([1]Application!$G728="","",[1]Application!$G728),IF([1]Application!$G706="","",[1]Application!$G706)) -> 100 | H2: =IF(CreditType=4,IF([1]Application!$K728="","",[1]Application!$K728),IF([1]Application!$K706="","",[1]Application!$K706)) ->  | I2: =IF(CreditType=4,IF([1]Application!$O728="","",[1]Application!$O728),IF([1]Application!$O706="","",[1]Application!$O706)) -> 980 | J2: =IF(CreditType=4,IF([1]Application!$Y728="","",[1]Application!$Y728),IF([1]Application!$Y706="","",[1]Application!$Y706)) ->  | K2: =IF(CreditType=4,[1]Application!$AM728,[1]Application!$AM706) -> 0.3816199377 | L2: ='Housing Type'!L205 -> 0 | O2: Units | P2: Unit % of Total | Q2: Pro Rata Target % | S2: Units | T2: Unit % of Total | U2: Pro Rata Target % | X2: Lender/Loan | Y2: Original Principal Amount | Z2: Current Remaining Principal Amount | AA2: Current Accrued Interest Amount | AB2: Planned Disposition Description | AC2: Corresponding Exception Number from Title
A3: g_ProjectName | B3: =IF(CreditType=4,[1]Application!$H$18,IF(CreditType=9,[1]Application!$H$17,"Use a 2022 e-app in order to link")) -> Test Project | C3: Name of the project | F3: =IF(CreditType=4,IF([1]Application!$B729="","",[1]Application!$B729),IF([1]Application!$B707="","",[1]Application!$B707)) ->  | G3: =IF(CreditType=4,IF([1]Application!$G729="","",[1]Application!$G729),IF([1]Application!$G707="","",[1]Application!$G707)) ->  | H3: =IF(CreditType=4,IF([1]Application!$K729="","",[1]Application!$K729),IF([1]Application!$K707="","",[1]Application!$K707)) ->  | I3: =IF(CreditType=4,IF([1]Application!$O729="","",[1]Application!$O729),IF([1]Application!$O707="","",[1]Application!$O707)) ->  | J3: =IF(CreditType=4,IF([1]Application!$Y729="","",[1]Application!$Y729),IF([1]Application!$Y707="","",[1]Application!$Y707)) ->  | K3: =IF(CreditType=4,[1]Application!$AM729,[1]Application!$AM707) ->  | L3: ='Housing Type'!L206 -> 0 | O3: =IF(OR(L2="",L2=0),"",L2) ->  | P3: =IF(OR(O3="",O3=0),"",O3/$O$29) ->  | Q3: =IF(OR(P3=0,P3=""),"",P3*K2) ->  | S3: =IF(F2="SRO/Studio",G2-L2,"") ->  | T3: =IF(OR(S3="",S3=0),"",S3/$S$29) ->  | U3: =IF(OR(T3=0,T3=""),"",T3*$K2) ->  | X3: ='Site Control 1'!C78 -> 0 | Y3: ='Site Control 1'!H78 -> 0 | Z3: ='Site Control 1'!M78 -> 0 | AA3: ='Site Control 1'!R78 -> 0 | AB3: ='Site Control 1'!W78 -> 0 | AC3: ='Site Control 1'!AB78 -> 0
A4: g_ProjectAddress | B4: =IF([1]Application!$I$185="",[1]Application!$E$187,[1]Application!$I$185) -> 0 | C4: Primary address of site | F4: =IF(CreditType=4,IF([1]Application!$B730="","",[1]Application!$B730),IF([1]Application!$B708="","",[1]Application!$B708)) ->  | G4: =IF(CreditType=4,IF([1]Application!$G730="","",[1]Application!$G730),IF([1]Application!$G708="","",[1]Application!$G708)) ->  | H4: =IF(CreditType=4,IF([1]Application!$K730="","",[1]Application!$K730),IF([1]Application!$K708="","",[1]Application!$K708)) ->  | I4: =IF(CreditType=4,IF([1]Application!$O730="","",[1]Application!$O730),IF([1]Application!$O708="","",[1]Application!$O708)) ->  | J4: =IF(CreditType=4,IF([1]Application!$Y730="","",[1]Application!$Y730),IF([1]Application!$Y708="","",[1]Application!$Y708)) ->  | K4: =IF(CreditType=4,[1]Application!$AM730,[1]Application!$AM708) ->  | L4: ='Housing Type'!L207 -> 0 | P4: =IF(OR(O4="",O4=0),"",O4/$O$29) ->  | T4: =IF(OR(S4="",S4=0),"",S4/$S$29) ->  | U4: =IF(OR(T4=0,T4=""),"",T4*$K3) ->  | X4: ='Site Control 1'!C79 -> 0 | Y4: ='Site Control 1'!H79 -> 0 | Z4: ='Site Control 1'!M79 -> 0 | AA4: ='Site Control 1'!R79 -> 0 | AB4: ='Site Control 1'!W79 -> 0 | AC4: ='Site Control 1'!AB79 -> 0
A5: g_City | B5: =[1]Application!$I$189 -> 0 | C5: City | F5: =IF(CreditType=4,IF([1]Application!$B731="","",[1]Application!$B731),IF([1]Application!$B709="","",[1]Application!$B709)) ->  | G5: =IF(CreditType=4,IF([1]Application!$G731="","",[1]Application!$G731),IF([1]Application!$G709="","",[1]Application!$G709)) ->  | H5: =IF(CreditType=4,IF([1]Application!$K731="","",[1]Application!$K731),IF([1]Application!$K709="","",[1]Application!$K709)) ->  | I5: =IF(CreditType=4,IF([1]Application!$O731="","",[1]Application!$O731),IF([1]Application!$O709="","",[1]Application!$O709)) ->  | J5: =IF(CreditType=4,IF([1]Application!$Y731="","",[1]Application!$Y731),IF([1]Application!$Y709="","",[1]Application!$Y709)) ->  | K5: =IF(CreditType=4,[1]Application!$AM731,[1]Application!$AM709) ->  | L5: ='Housing Type'!L208 -> 0 | X5: ='Site Control 1'!C80 -> 0 | Y5: ='Site Control 1'!H80 -> 0 | Z5: ='Site Control 1'!M80 -> 0 | AA5: ='Site Control 1'!R80 -> 0 | AB5: ='Site Control 1'!W80 -> 0 | AC5: ='Site Control 1'!AB80 -> 0
A6: g_ZipCode | B6: =[1]Application!$I$190 -> 0 | C6: Zip Code | F6: =IF(CreditType=4,IF([1]Application!$B732="","",[1]Application!$B732),IF([1]Application!$B710="","",[1]Application!$B710)) ->  | G6: =IF(CreditType=4,IF([1]Application!$G732="","",[1]Application!$G732),IF([1]Application!$G710="","",[1]Application!$G710)) ->  | H6: =IF(CreditType=4,IF([1]Application!$K732="","",[1]Application!$K732),IF([1]Application!$K710="","",[1]Application!$K710)) ->  | I6: =IF(CreditType=4,IF([1]Application!$O732="","",[1]Application!$O732),IF([1]Application!$O710="","",[1]Application!$O710)) ->  | J6: =IF(CreditType=4,IF([1]Application!$Y732="","",[1]Application!$Y732),IF([1]Application!$Y710="","",[1]Application!$Y710)) ->  | K6: =IF(CreditType=4,[1]Application!$AM732,[1]Application!$AM710) ->  | L6: ='Housing Type'!L209 -> 0 | X6: ='Site Control 1'!C81 -> 0 | Y6: ='Site Control 1'!H81 -> 0 | Z6: ='Site Control 1'!M81 -> 0 | AA6: ='Site Control 1'!R81 -> 0 | AB6: ='Site Control 1'!W81 -> 0 | AC6: ='Site Control 1'!AB81 -> 0
A7: g_ScatteredSite | B7: =IF(CreditType=4,[1]Application!$T$196="Yes",[1]Application!$AI$194="Yes") -> FALSE | C7: If the project involves multiple scattered sites | F7: =IF(CreditType=4,IF([1]Application!$B733="","",[1]Application!$B733),IF([1]Application!$B711="","",[1]Application!$B711)) ->  | G7: =IF(CreditType=4,IF([1]Application!$G733="","",[1]Application!$G733),IF([1]Application!$G711="","",[1]Application!$G711)) ->  | H7: =IF(CreditType=4,IF([1]Application!$K733="","",[1]Application!$K733),IF([1]Application!$K711="","",[1]Application!$K711)) ->  | I7: =IF(CreditType=4,IF([1]Application!$O733="","",[1]Application!$O733),IF([1]Application!$O711="","",[1]Application!$O711)) ->  | J7: =IF(CreditType=4,IF([1]Application!$Y733="","",[1]Application!$Y733),IF([1]Application!$Y711="","",[1]Application!$Y711)) ->  | K7: =IF(CreditType=4,[1]Application!$AM733,[1]Application!$AM711) ->  | L7: ='Housing Type'!L210 -> 0 | X7: ='Site Control 1'!C82 -> 0 | Y7: ='Site Control 1'!H82 -> 0 | Z7: ='Site Control 1'!M82 -> 0 | AA7: ='Site Control 1'!R82 -> 0 | AB7: ='Site Control 1'!W82 -> 0 | AC7: ='Site Control 1'!AB82 -> 0
A8: g_CensusTract | B8: =[1]Application!$T$190 -> 0 | C8: Census tract project resides in | F8: =IF(CreditType=4,IF([1]Application!$B734="","",[1]Application!$B734),IF([1]Application!$B712="","",[1]Application!$B712)) ->  | G8: =IF(CreditType=4,IF([1]Application!$G734="","",[1]Application!$G734),IF([1]Application!$G712="","",[1]Application!$G712)) ->  | H8: =IF(CreditType=4,IF([1]Application!$K734="","",[1]Application!$K734),IF([1]Application!$K712="","",[1]Application!$K712)) ->  | I8: =IF(CreditType=4,IF([1]Application!$O734="","",[1]Application!$O734),IF([1]Application!$O712="","",[1]Application!$O712)) ->  | J8: =IF(CreditType=4,IF([1]Application!$Y734="","",[1]Application!$Y734),IF([1]Application!$Y712="","",[1]Application!$Y712)) ->  | K8: =IF(CreditType=4,[1]Application!$AM734,[1]Application!$AM712) ->  | L8: ='Housing Type'!L211 -> 0 | X8: ='Site Control 1'!C83 -> 0 | Y8: ='Site Control 1'!H83 -> 0 | Z8: ='Site Control 1'!M83 -> 0 | AA8: ='Site Control 1'!R83 -> 0 | AB8: ='Site Control 1'!W83 -> 0 | AC8: ='Site Control 1'!AB83 -> 0
A9: g_County | B9: =[1]Application!$T$189 -> Alameda | C9: County project resides in | F9: =IF(CreditType=4,IF([1]Application!$B735="","",[1]Application!$B735),IF([1]Application!$B713="","",[1]Application!$B713)) ->  | G9: =IF(CreditType=4,IF([1]Application!$G735="","",[1]Application!$G735),IF([1]Application!$G713="","",[1]Application!$G713)) ->  | H9: =IF(CreditType=4,IF([1]Application!$K735="","",[1]Application!$K735),IF([1]Application!$K713="","",[1]Application!$K713)) ->  | I9: =IF(CreditType=4,IF([1]Application!$O735="","",[1]Application!$O735),IF([1]Application!$O713="","",[1]Application!$O713)) ->  | J9: =IF(CreditType=4,IF([1]Application!$Y735="","",[1]Application!$Y735),IF([1]Application!$Y713="","",[1]Application!$Y713)) ->  | K9: =IF(CreditType=4,[1]Application!$AM735,[1]Application!$AM713) ->  | L9: ='Housing Type'!L212 -> 0 | X9: ='Site Control 1'!C84 -> 0 | Y9: ='Site Control 1'!H84 -> 0 | Z9: ='Site Control 1'!M84 -> 0 | AA9: ='Site Control 1'!R84 -> 0 | AB9: ='Site Control 1'!W84 -> 0 | AC9: ='Site Control 1'!AB84 -> 0
A10: g_DdaStatus | B10: =IF(CreditType=4,[1]Application!$T$194="Yes",[1]Application!$T$193="Yes") -> FALSE | C10: TRUE if designated a Difficult Development Area | F10: =IF(CreditType=4,IF([1]Application!$B736="","",[1]Application!$B736),IF([1]Application!$B714="","",[1]Application!$B714)) ->  | G10: =IF(CreditType=4,IF([1]Application!$G736="","",[1]Application!$G736),IF([1]Application!$G714="","",[1]Application!$G714)) ->  | H10: =IF(CreditType=4,IF([1]Application!$K736="","",[1]Application!$K736),IF([1]Application!$K714="","",[1]Application!$K714)) ->  | I10: =IF(CreditType=4,IF([1]Application!$O736="","",[1]Application!$O736),IF([1]Application!$O714="","",[1]Application!$O714)) ->  | J10: =IF(CreditType=4,IF([1]Application!$Y736="","",[1]Application!$Y736),IF([1]Application!$Y714="","",[1]Application!$Y714)) ->  | K10: =IF(CreditType=4,[1]Application!$AM736,[1]Application!$AM714) ->  | L10: ='Housing Type'!L213 -> 0 | X10: ='Site Control 1'!C85 -> 0 | Y10: ='Site Control 1'!H85 -> 0 | Z10: ='Site Control 1'!M85 -> 0 | AA10: ='Site Control 1'!R85 -> 0 | AB10: ='Site Control 1'!W85 -> 0 | AC10: ='Site Control 1'!AB85 -> 0
A11: g_QctStatus | B11: =IF(CreditType=4,[1]Application!$T$195="Yes",[1]Application!$T$194="Yes") -> FALSE | C11: TRUE if in a Qualified Census Tract | F11: =IF(CreditType=4,IF([1]Application!$B737="","",[1]Application!$B737),IF([1]Application!$B715="","",[1]Application!$B715)) ->  | G11: =IF(CreditType=4,IF([1]Application!$G737="","",[1]Application!$G737),IF([1]Application!$G715="","",[1]Application!$G715)) ->  | H11: =IF(CreditType=4,IF([1]Application!$K737="","",[1]Application!$K737),IF([1]Application!$K715="","",[1]Application!$K715)) ->  | I11: =IF(CreditType=4,IF([1]Application!$O737="","",[1]Application!$O737),IF([1]Application!$O715="","",[1]Application!$O715)) ->  | J11: =IF(CreditType=4,IF([1]Application!$Y737="","",[1]Application!$Y737),IF([1]Application!$Y715="","",[1]Application!$Y715)) ->  | K11: =IF(CreditType=4,[1]Application!$AM737,[1]Application!$AM715) ->  | L11: ='Housing Type'!L214 -> 0 | X11: ='Site Control 1'!C86 -> 0 | Y11: ='Site Control 1'!H86 -> 0 | Z11: ='Site Control 1'!M86 -> 0 | AA11: ='Site Control 1'!R86 -> 0 | AB11: ='Site Control 1'!W86 -> 0 | AC11: ='Site Control 1'!AB86 -> 0
A12: g_OpportunityArea | B12: =IF(CreditType=4,[1]Application!$T$193,[1]Application!$R$199) -> 0 | C12: Opportunity map designation | F12: =IF(CreditType=4,IF([1]Application!$B738="","",[1]Application!$B738),IF([1]Application!$B716="","",[1]Application!$B716)) ->  | G12: =IF(CreditType=4,IF([1]Application!$G738="","",[1]Application!$G738),IF([1]Application!$G716="","",[1]Application!$G716)) ->  | H12: =IF(CreditType=4,IF([1]Application!$K738="","",[1]Application!$K738),IF([1]Application!$K716="","",[1]Application!$K716)) ->  | I12: =IF(CreditType=4,IF([1]Application!$O738="","",[1]Application!$O738),IF([1]Application!$O716="","",[1]Application!$O716)) ->  | J12: =IF(CreditType=4,IF([1]Application!$Y738="","",[1]Application!$Y738),IF([1]Application!$Y716="","",[1]Application!$Y716)) ->  | K12: =IF(CreditType=4,[1]Application!$AM738,[1]Application!$AM716) ->  | L12: ='Housing Type'!L215 -> 0 | X12: ='Site Control 1'!C87 -> 0 | Y12: ='Site Control 1'!H87 -> 0 | Z12: ='Site Control 1'!M87 -> 0 | AA12: ='Site Control 1'!R87 -> 0 | AB12: ='Site Control 1'!W87 -> 0 | AC12: ='Site Control 1'!AB87 -> 0
A13: g_DistrictFederalCongressional | B13: =IF(CreditType=4,[1]Application!$AH$194,[1]Application!$O$225) -> 0 | C13: Federal Congressional District | F13: =IF(CreditType=4,IF([1]Application!$B739="","",[1]Application!$B739),IF([1]Application!$B717="","",[1]Application!$B717)) ->  | G13: =IF(CreditType=4,IF([1]Application!$G739="","",[1]Application!$G739),IF([1]Application!$G717="","",[1]Application!$G717)) ->  | H13: =IF(CreditType=4,IF([1]Application!$K739="","",[1]Application!$K739),IF([1]Application!$K717="","",[1]Application!$K717)) ->  | I13: =IF(CreditType=4,IF([1]Application!$O739="","",[1]Application!$O739),IF([1]Application!$O717="","",[1]Application!$O717)) ->  | J13: =IF(CreditType=4,IF([1]Application!$Y739="","",[1]Application!$Y739),IF([1]Application!$Y717="","",[1]Application!$Y717)) ->  | K13: =IF(CreditType=4,[1]Application!$AM739,[1]Application!$AM717) ->  | L13: ='Housing Type'!L216 -> 0 | X13: ='Site Control 1'!C88 -> 0 | Y13: ='Site Control 1'!H88 -> 0 | Z13: ='Site Control 1'!M88 -> 0 | AA13: ='Site Control 1'!R88 -> 0 | AB13: ='Site Control 1'!W88 -> 0 | AC13: ='Site Control 1'!AB88 -> 0
A14: g_DistrictStateAssembly | B14: =IF(CreditType=4,[1]Application!$AH$195,[1]Application!$O$226) -> 0 | C14: State Assembly District | F14: =IF(CreditType=4,IF([1]Application!$B740="","",[1]Application!$B740),IF([1]Application!$B718="","",[1]Application!$B718)) ->  | G14: =IF(CreditType=4,IF([1]Application!$G740="","",[1]Application!$G740),IF([1]Application!$G718="","",[1]Application!$G718)) ->  | H14: =IF(CreditType=4,IF([1]Application!$K740="","",[1]Application!$K740),IF([1]Application!$K718="","",[1]Application!$K718)) ->  | I14: =IF(CreditType=4,IF([1]Application!$O740="","",[1]Application!$O740),IF([1]Application!$O718="","",[1]Application!$O718)) ->  | J14: =IF(CreditType=4,IF([1]Application!$Y740="","",[1]Application!$Y740),IF([1]Application!$Y718="","",[1]Application!$Y718)) ->  | K14: =IF(CreditType=4,[1]Application!$AM740,[1]Application!$AM718) ->  | L14: ='Housing Type'!L217 -> 0 | X14: ='Site Control 1'!C89 -> 0 | Y14: ='Site Control 1'!H89 -> 0 | Z14: ='Site Control 1'!M89 -> 0 | AA14: ='Site Control 1'!R89 -> 0 | AB14: ='Site Control 1'!W89 -> 0 | AC14: ='Site Control 1'!AB89 -> 0
A15: g_DistrictStateSenate | B15: =IF(CreditType=4,[1]Application!$AH$196,[1]Application!$O$227) -> 0 | C15: State Senate District | F15: =IF(CreditType=4,IF([1]Application!$B741="","",[1]Application!$B741),IF([1]Application!$B719="","",[1]Application!$B719)) ->  | G15: =IF(CreditType=4,IF([1]Application!$G741="","",[1]Application!$G741),IF([1]Application!$G719="","",[1]Application!$G719)) ->  | H15: =IF(CreditType=4,IF([1]Application!$K741="","",[1]Application!$K741),IF([1]Application!$K719="","",[1]Application!$K719)) ->  | I15: =IF(CreditType=4,IF([1]Application!$O741="","",[1]Application!$O741),IF([1]Application!$O719="","",[1]Application!$O719)) ->  | J15: =IF(CreditType=4,IF([1]Application!$Y741="","",[1]Application!$Y741),IF([1]Application!$Y719="","",[1]Application!$Y719)) ->  | K15: =IF(CreditType=4,[1]Application!$AM741,[1]Application!$AM719) ->  | L15: ='Housing Type'!L218 -> 0 | X15: ='Site Control 1'!C90 -> 0 | Y15: ='Site Control 1'!H90 -> 0 | Z15: ='Site Control 1'!M90 -> 0 | AA15: ='Site Control 1'!R90 -> 0 | AB15: ='Site Control 1'!W90 -> 0 | AC15: ='Site Control 1'!AB90 -> 0
B16: Project Characteristics | F16: =IF(CreditType=4,IF([1]Application!$B742="","",[1]Application!$B742),IF([1]Application!$B720="","",[1]Application!$B720)) ->  | G16: =IF(CreditType=4,IF([1]Application!$G742="","",[1]Application!$G742),IF([1]Application!$G720="","",[1]Application!$G720)) ->  | H16: =IF(CreditType=4,IF([1]Application!$K742="","",[1]Application!$K742),IF([1]Application!$K720="","",[1]Application!$K720)) ->  | I16: =IF(CreditType=4,IF([1]Application!$O742="","",[1]Application!$O742),IF([1]Application!$O720="","",[1]Application!$O720)) ->  | J16: =IF(CreditType=4,IF([1]Application!$Y742="","",[1]Application!$Y742),IF([1]Application!$Y720="","",[1]Application!$Y720)) ->  | K16: =IF(CreditType=4,[1]Application!$AM742,[1]Application!$AM720) ->  | L16: ='Housing Type'!L219 -> 0 | X16: ='Site Control 2'!C78 -> 0 | Y16: ='Site Control 2'!H78 -> 0 | Z16: ='Site Control 2'!M78 -> 0 | AA16: ='Site Control 2'!R78 -> 0 | AB16: ='Site Control 2'!W78 -> 0 | AC16: ='Site Control 2'!AB78 -> 0
A17: g_TaxCredits | B17: =[1]Application!$AS$1 -> 4 | C17: Type of tax credits | F17: =IF(CreditType=4,IF([1]Application!$B743="","",[1]Application!$B743),IF([1]Application!$B721="","",[1]Application!$B721)) ->  | G17: =IF(CreditType=4,IF([1]Application!$G743="","",[1]Application!$G743),IF([1]Application!$G721="","",[1]Application!$G721)) ->  | H17: =IF(CreditType=4,IF([1]Application!$K743="","",[1]Application!$K743),IF([1]Application!$K721="","",[1]Application!$K721)) ->  | I17: =IF(CreditType=4,IF([1]Application!$O743="","",[1]Application!$O743),IF([1]Application!$O721="","",[1]Application!$O721)) ->  | J17: =IF(CreditType=4,IF([1]Application!$Y743="","",[1]Application!$Y743),IF([1]Application!$Y721="","",[1]Application!$Y721)) ->  | K17: =IF(CreditType=4,[1]Application!$AM743,[1]Application!$AM721) ->  | L17: ='Housing Type'!L220 -> 0 | X17: ='Site Control 2'!C79 -> 0 | Y17: ='Site Control 2'!H79 -> 0 | Z17: ='Site Control 2'!M79 -> 0 | AA17: ='Site Control 2'!R79 -> 0 | AB17: ='Site Control 2'!W79 -> 0 | AC17: ='Site Control 2'!AB79 -> 0
A18: g_Rural | C18: Rural | F18: =IF(CreditType=4,IF([1]Application!$B744="","",[1]Application!$B744),IF([1]Application!$B722="","",[1]Application!$B722)) ->  | G18: =IF(CreditType=4,IF([1]Application!$G744="","",[1]Application!$G744),IF([1]Application!$G722="","",[1]Application!$G722)) ->  | H18: =IF(CreditType=4,IF([1]Application!$K744="","",[1]Application!$K744),IF([1]Application!$K722="","",[1]Application!$K722)) ->  | I18: =IF(CreditType=4,IF([1]Application!$O744="","",[1]Application!$O744),IF([1]Application!$O722="","",[1]Application!$O722)) ->  | J18: =IF(CreditType=4,IF([1]Application!$Y744="","",[1]Application!$Y744),IF([1]Application!$Y722="","",[1]Application!$Y722)) ->  | K18: =IF(CreditType=4,[1]Application!$AM744,[1]Application!$AM722) ->  | L18: ='Housing Type'!L221 -> 0 | X18: ='Site Control 2'!C80 -> 0 | Y18: ='Site Control 2'!H80 -> 0 | Z18: ='Site Control 2'!M80 -> 0 | AA18: ='Site Control 2'!R80 -> 0 | AB18: ='Site Control 2'!W80 -> 0 | AC18: ='Site Control 2'!AB80 -> 0
A19: g_IncludesResUnitDemolition | C19: Demolition of existing residential units | F19: =IF(CreditType=4,IF([1]Application!$B745="","",[1]Application!$B745),IF([1]Application!$B723="","",[1]Application!$B723)) ->  | G19: =IF(CreditType=4,IF([1]Application!$G745="","",[1]Application!$G745),IF([1]Application!$G723="","",[1]Application!$G723)) ->  | H19: =IF(CreditType=4,IF([1]Application!$K745="","",[1]Application!$K745),IF([1]Application!$K723="","",[1]Application!$K723)) ->  | I19: =IF(CreditType=4,IF([1]Application!$O745="","",[1]Application!$O745),IF([1]Application!$O723="","",[1]Application!$O723)) ->  | J19: =IF(CreditType=4,IF([1]Application!$Y745="","",[1]Application!$Y745),IF([1]Application!$Y723="","",[1]Application!$Y723)) ->  | K19: =IF(CreditType=4,[1]Application!$AM745,[1]Application!$AM723) ->  | L19: ='Housing Type'!L222 -> 0 | X19: ='Site Control 2'!C81 -> 0 | Y19: ='Site Control 2'!H81 -> 0 | Z19: ='Site Control 2'!M81 -> 0 | AA19: ='Site Control 2'!R81 -> 0 | AB19: ='Site Control 2'!W81 -> 0 | AC19: ='Site Control 2'!AB81 -> 0
A20: g_IncludesTenantRelocation | C20: Relocation of existing residential tenants | F20: =IF(CreditType=4,IF([1]Application!$B746="","",[1]Application!$B746),IF([1]Application!$B724="","",[1]Application!$B724)) ->  | G20: =IF(CreditType=4,IF([1]Application!$G746="","",[1]Application!$G746),IF([1]Application!$G724="","",[1]Application!$G724)) ->  | H20: =IF(CreditType=4,IF([1]Application!$K746="","",[1]Application!$K746),IF([1]Application!$K724="","",[1]Application!$K724)) ->  | I20: =IF(CreditType=4,IF([1]Application!$O746="","",[1]Application!$O746),IF([1]Application!$O724="","",[1]Application!$O724)) ->  | J20: =IF(CreditType=4,IF([1]Application!$Y746="","",[1]Application!$Y746),IF([1]Application!$Y724="","",[1]Application!$Y724)) ->  | K20: =IF(CreditType=4,[1]Application!$AM746,[1]Application!$AM724) ->  | L20: ='Housing Type'!L223 -> 0 | X20: ='Site Control 2'!C82 -> 0 | Y20: ='Site Control 2'!H82 -> 0 | Z20: ='Site Control 2'!M82 -> 0 | AA20: ='Site Control 2'!R82 -> 0 | AB20: ='Site Control 2'!W82 -> 0 | AC20: ='Site Control 2'!AB82 -> 0
A21: g_IncludesRehabilitation | C21: Rehab of existing residential buildings | F21: =IF(CreditType=4,IF([1]Application!$B747="","",[1]Application!$B747),IF([1]Application!$B725="","",[1]Application!$B725)) ->  | G21: =IF(CreditType=4,IF([1]Application!$G747="","",[1]Application!$G747),IF([1]Application!$G725="","",[1]Application!$G725)) ->  | H21: =IF(CreditType=4,IF([1]Application!$K747="","",[1]Application!$K747),IF([1]Application!$K725="","",[1]Application!$K725)) ->  | I21: =IF(CreditType=4,IF([1]Application!$O747="","",[1]Application!$O747),IF([1]Application!$O725="","",[1]Application!$O725)) ->  | J21: =IF(CreditType=4,IF([1]Application!$Y747="","",[1]Application!$Y747),IF([1]Application!$Y725="","",[1]Application!$Y725)) ->  | K21: =IF(CreditType=4,[1]Application!$AM747,[1]Application!$AM725) ->  | L21: ='Housing Type'!L224 -> 0 | X21: ='Site Control 2'!C83 -> 0 | Y21: ='Site Control 2'!H83 -> 0 | Z21: ='Site Control 2'!M83 -> 0 | AA21: ='Site Control 2'!R83 -> 0 | AB21: ='Site Control 2'!W83 -> 0 | AC21: ='Site Control 2'!AB83 -> 0
A22: g_Resyndication | C22: Resyndication | F22: =IF(CreditType=4,IF([1]Application!$B748="","",[1]Application!$B748),IF([1]Application!$B726="","",[1]Application!$B726)) ->  | G22: =IF(CreditType=4,IF([1]Application!$G748="","",[1]Application!$G748),IF([1]Application!$G726="","",[1]Application!$G726)) ->  | H22: =IF(CreditType=4,IF([1]Application!$K748="","",[1]Application!$K748),IF([1]Application!$K726="","",[1]Application!$K726)) ->  | I22: =IF(CreditType=4,IF([1]Application!$O748="","",[1]Application!$O748),IF([1]Application!$O726="","",[1]Application!$O726)) ->  | J22: =IF(CreditType=4,IF([1]Application!$Y748="","",[1]Application!$Y748),IF([1]Application!$Y726="","",[1]Application!$Y726)) ->  | K22: =IF(CreditType=4,[1]Application!$AM748,[1]Application!$AM726) ->  | L22: ='Housing Type'!L225 -> 0 | X22: ='Site Control 2'!C84 -> 0 | Y22: ='Site Control 2'!H84 -> 0 | Z22: ='Site Control 2'!M84 -> 0 | AA22: ='Site Control 2'!R84 -> 0 | AB22: ='Site Control 2'!W84 -> 0 | AC22: ='Site Control 2'!AB84 -> 0
A23: g_IncludesHomeOwnership | C23: Eventual home ownership | F23: =IF(CreditType=4,IF([1]Application!$B749="","",[1]Application!$B749),IF([1]Application!$B727="","",[1]Application!$B727)) ->  | G23: =IF(CreditType=4,IF([1]Application!$G749="","",[1]Application!$G749),IF([1]Application!$G727="","",[1]Application!$G727)) ->  | H23: =IF(CreditType=4,IF([1]Application!$K749="","",[1]Application!$K749),IF([1]Application!$K727="","",[1]Application!$K727)) ->  | I23: =IF(CreditType=4,IF([1]Application!$O749="","",[1]Application!$O749),IF([1]Application!$O727="","",[1]Application!$O727)) ->  | J23: =IF(CreditType=4,IF([1]Application!$Y749="","",[1]Application!$Y749),IF([1]Application!$Y727="","",[1]Application!$Y727)) ->  | K23: =IF(CreditType=4,[1]Application!$AM749,[1]Application!$AM727) ->  | L23: ='Housing Type'!L226 -> 0 | X23: ='Site Control 2'!C85 -> 0 | Y23: ='Site Control 2'!H85 -> 0 | Z23: ='Site Control 2'!M85 -> 0 | AA23: ='Site Control 2'!R85 -> 0 | AB23: ='Site Control 2'!W85 -> 0 | AC23: ='Site Control 2'!AB85 -> 0
A24: g_IncludesElevators | B24: =IF(CreditType=4,[1]Application!$R$410="Yes",[1]Application!$R$404="Yes") -> FALSE | C24: Elevators | F24: =IF(CreditType=4,IF([1]Application!$B750="","",[1]Application!$B750),IF([1]Application!$B728="","",[1]Application!$B728)) ->  | G24: =IF(CreditType=4,IF([1]Application!$G750="","",[1]Application!$G750),IF([1]Application!$G728="","",[1]Application!$G728)) ->  | H24: =IF(CreditType=4,IF([1]Application!$K750="","",[1]Application!$K750),IF([1]Application!$K728="","",[1]Application!$K728)) ->  | I24: =IF(CreditType=4,IF([1]Application!$O750="","",[1]Application!$O750),IF([1]Application!$O728="","",[1]Application!$O728)) ->  | J24: =IF(CreditType=4,IF([1]Application!$Y750="","",[1]Application!$Y750),IF([1]Application!$Y728="","",[1]Application!$Y728)) ->  | K24: =IF(CreditType=4,[1]Application!$AM750,[1]Application!$AM728) ->  | L24: ='Housing Type'!L227 -> 0 | X24: ='Site Control 2'!C86 -> 0 | Y24: ='Site Control 2'!H86 -> 0 | Z24: ='Site Control 2'!M86 -> 0 | AA24: ='Site Control 2'!R86 -> 0 | AB24: ='Site Control 2'!W86 -> 0 | AC24: ='Site Control 2'!AB86 -> 0
A25: g_OnTribalTrustLand | C25: Tribal trust land | F25: =IF(CreditType=4,IF([1]Application!$B751="","",[1]Application!$B751),IF([1]Application!$B729="","",[1]Application!$B729)) ->  | G25: =IF(CreditType=4,IF([1]Application!$G751="","",[1]Application!$G751),IF([1]Application!$G729="","",[1]Application!$G729)) ->  | H25: =IF(CreditType=4,IF([1]Application!$K751="","",[1]Application!$K751),IF([1]Application!$K729="","",[1]Application!$K729)) ->  | I25: =IF(CreditType=4,IF([1]Application!$O751="","",[1]Application!$O751),IF([1]Application!$O729="","",[1]Application!$O729)) ->  | J25: =IF(CreditType=4,IF([1]Application!$Y751="","",[1]Application!$Y751),IF([1]Application!$Y729="","",[1]Application!$Y729)) ->  | K25: =IF(CreditType=4,[1]Application!$AM751,[1]Application!$AM729) ->  | L25: ='Housing Type'!L228 -> 0 | X25: ='Site Control 2'!C87 -> 0 | Y25: ='Site Control 2'!H87 -> 0 | Z25: ='Site Control 2'!M87 -> 0 | AA25: ='Site Control 2'!R87 -> 0 | AB25: ='Site Control 2'!W87 -> 0 | AC25: ='Site Control 2'!AB87 -> 0
A26: g_IncludesCommercial | C26: Commercial space | F26: =IF(CreditType=4,IF([1]Application!$B752="","",[1]Application!$B752),IF([1]Application!$B730="","",[1]Application!$B730)) ->  | G26: =IF(CreditType=4,IF([1]Application!$G752="","",[1]Application!$G752),IF([1]Application!$G730="","",[1]Application!$G730)) ->  | H26: =IF(CreditType=4,IF([1]Application!$K752="","",[1]Application!$K752),IF([1]Application!$K730="","",[1]Application!$K730)) ->  | I26: =IF(CreditType=4,IF([1]Application!$O752="","",[1]Application!$O752),IF([1]Application!$O730="","",[1]Application!$O730)) ->  | J26: =IF(CreditType=4,IF([1]Application!$Y752="","",[1]Application!$Y752),IF([1]Application!$Y730="","",[1]Application!$Y730)) ->  | K26: =IF(CreditType=4,[1]Application!$AM752,[1]Application!$AM730) ->  | L26: ='Housing Type'!L229 -> 0 | X26: ='Site Control 2'!C88 -> 0 | Y26: ='Site Control 2'!H88 -> 0 | Z26: ='Site Control 2'!M88 -> 0 | AA26: ='Site Control 2'!R88 -> 0 | AB26: ='Site Control 2'!W88 -> 0 | AC26: ='Site Control 2'!AB88 -> 0
A27: g_IncludesCommunityServiceFacilities | C27: Community Service Facilities | F27: =IF(CreditType=4,IF([1]Application!$J786="","",[1]Application!$J786),IF([1]Application!$J766="","",[1]Application!$J766)) ->  | G27: =IF(CreditType=4,IF([1]Application!$O786="","",[1]Application!$O786),IF([1]Application!$O766="","",[1]Application!$O766)) ->  | H27: =IF(CreditType=4,IF([1]Application!$T786="","",[1]Application!$T786),IF([1]Application!$T766="","",[1]Application!$T766)) ->  | I27: =IF(CreditType=4,IF([1]Application!$X786="","",[1]Application!$X786),IF([1]Application!$X766="","",[1]Application!$X766)) ->  | L27: 0 | M27: TRUE | X27: ='Site Control 2'!C89 -> 0 | Y27: ='Site Control 2'!H89 -> 0 | Z27: ='Site Control 2'!M89 -> 0 | AA27: ='Site Control 2'!R89 -> 0 | AB27: ='Site Control 2'!W89 -> 0 | AC27: ='Site Control 2'!AB89 -> 0
A28: g_PartOfSimultaneousPhases | C28: Multiple simultaneous phases | F28: =IF(CreditType=4,IF([1]Application!$J787="","",[1]Application!$J787),IF([1]Application!$J767="","",[1]Application!$J767)) ->  | G28: =IF(CreditType=4,IF([1]Application!$O787="","",[1]Application!$O787),IF([1]Application!$O767="","",[1]Application!$O767)) ->  | H28: =IF(CreditType=4,IF([1]Application!$T787="","",[1]Application!$T787),IF([1]Application!$T767="","",[1]Application!$T767)) ->  | I28: =IF(CreditType=4,IF([1]Application!$X787="","",[1]Application!$X787),IF([1]Application!$X767="","",[1]Application!$X767)) ->  | L28: 0 | M28: TRUE | O28: =IF(OR(L37="",L37=0),"",L37) ->  | Q28: =IF(OR(P28=0,P28=""),"",P28*K37) ->  | S28: =IF(F37="SRO/Studio",G37-L37,"") ->  | U28: =IF(OR(T28=0,T28=""),"",T28*$K37) ->  | X28: ='Site Control 2'!C90 -> 0 | Y28: ='Site Control 2'!H90 -> 0 | Z28: ='Site Control 2'!M90 -> 0 | AA28: ='Site Control 2'!R90 -> 0 | AB28: ='Site Control 2'!W90 -> 0 | AC28: ='Site Control 2'!AB90 -> 0
A29: g_FulfillsInclusionaryReq | C29: Fulfills inclusionary requirements | F29: =IF(CreditType=4,IF([1]Application!$J788="","",[1]Application!$J788),IF([1]Application!$J768="","",[1]Application!$J768)) ->  | G29: =IF(CreditType=4,IF([1]Application!$O788="","",[1]Application!$O788),IF([1]Application!$O768="","",[1]Application!$O768)) ->  | H29: =IF(CreditType=4,IF([1]Application!$T788="","",[1]Application!$T788),IF([1]Application!$T768="","",[1]Application!$T768)) ->  | I29: =IF(CreditType=4,IF([1]Application!$X788="","",[1]Application!$X788),IF([1]Application!$X768="","",[1]Application!$X768)) ->  | L29: 0 | M29: TRUE | O29: =SUM(O3:O28) -> 0 | P29: =SUM(P3:P28) -> 0 | Q29: =SUM(Q3:Q28) -> 0 | S29: =SUM(S3:S28) -> 0 | T29: =SUM(T3:T28) -> 0 | U29: =SUM(U3:U28) -> 0 | X29: ='Site Control 3'!C78 -> 0 | Y29: ='Site Control 3'!H78 -> 0 | Z29: ='Site Control 3'!M78 -> 0 | AA29: ='Site Control 3'!R78 -> 0 | AB29: ='Site Control 3'!W78 -> 0 | AC29: ='Site Control 3'!AB78 -> 0
A30: g_IsHybrid | C30: Multiple simultaneous phase with differing credit types | F30: =IF(CreditType=4,IF([1]Application!$J789="","",[1]Application!$J789),IF([1]Application!$J769="","",[1]Application!$J769)) ->  | G30: =IF(CreditType=4,IF([1]Application!$O789="","",[1]Application!$O789),IF([1]Application!$O769="","",[1]Application!$O769)) ->  | H30: =IF(CreditType=4,IF([1]Application!$T789="","",[1]Application!$T789),IF([1]Application!$T769="","",[1]Application!$T769)) ->  | I30: =IF(CreditType=4,IF([1]Application!$X789="","",[1]Application!$X789),IF([1]Application!$X769="","",[1]Application!$X769)) ->  | L30: 0 | M30: TRUE | X30: ='Site Control 3'!C79 -> 0 | Y30: ='Site Control 3'!H79 -> 0 | Z30: ='Site Control 3'!M79 -> 0 | AA30: ='Site Control 3'!R79 -> 0 | AB30: ='Site Control 3'!W79 -> 0 | AC30: ='Site Control 3'!AB79 -> 0
A31: g_Historical | C31: Includes an historical building | F31: =IF(CreditType=4,IF([1]Application!$J790="","",[1]Application!$J790),IF([1]Application!$J770="","",[1]Application!$J770)) ->  | G31: =IF(CreditType=4,IF([1]Application!$O790="","",[1]Application!$O790),IF([1]Application!$O770="","",[1]Application!$O770)) ->  | H31: =IF(CreditType=4,IF([1]Application!$T790="","",[1]Application!$T790),IF([1]Application!$T770="","",[1]Application!$T770)) ->  | I31: =IF(CreditType=4,IF([1]Application!$X790="","",[1]Application!$X790),IF([1]Application!$X770="","",[1]Application!$X770)) ->  | L31: 0 | M31: TRUE | X31: ='Site Control 3'!C80 -> 0 | Y31: ='Site Control 3'!H80 -> 0 | Z31: ='Site Control 3'!M80 -> 0 | AA31: ='Site Control 3'!R80 -> 0 | AB31: ='Site Control 3'!W80 -> 0 | AC31: ='Site Control 3'!AB80 -> 0
B32: Partnership Contacts | F32: =IF(CreditType=4,IF([1]Application!$J791="","",[1]Application!$J791),IF([1]Application!$J771="","",[1]Application!$J771)) ->  | G32: =IF(CreditType=4,IF([1]Application!$O791="","",[1]Application!$O791),IF([1]Application!$O771="","",[1]Application!$O771)) ->  | H32: =IF(CreditType=4,IF([1]Application!$T791="","",[1]Application!$T791),IF([1]Application!$T771="","",[1]Application!$T771)) ->  | I32: =IF(CreditType=4,IF([1]Application!$X791="","",[1]Application!$X791),IF([1]Application!$X771="","",[1]Application!$X771)) ->  | L32: 0 | M32: TRUE | X32: ='Site Control 3'!C81 -> 0 | Y32: ='Site Control 3'!H81 -> 0 | Z32: ='Site Control 3'!M81 -> 0 | AA32: ='Site Control 3'!R81 -> 0 | AB32: ='Site Control 3'!W81 -> 0 | AC32: ='Site Control 3'!AB81 -> 0
A33: g_EventualOwnershipEntity | C33: Company name of key entity in Contacts table | F33: =IF(CreditType=4,IF([1]Application!$J792="","",[1]Application!$J792),IF([1]Application!$J772="","",[1]Application!$J772)) ->  | G33: =IF(CreditType=4,IF([1]Application!$O792="","",[1]Application!$O792),IF([1]Application!$O772="","",[1]Application!$O772)) ->  | H33: =IF(CreditType=4,IF([1]Application!$T792="","",[1]Application!$T792),IF([1]Application!$T772="","",[1]Application!$T772)) ->  | I33: =IF(CreditType=4,IF([1]Application!$X792="","",[1]Application!$X792),IF([1]Application!$X772="","",[1]Application!$X772)) ->  | L33: 0 | M33: TRUE | X33: ='Site Control 3'!C82 -> 0 | Y33: ='Site Control 3'!H82 -> 0 | Z33: ='Site Control 3'!M82 -> 0 | AA33: ='Site Control 3'!R82 -> 0 | AB33: ='Site Control 3'!W82 -> 0 | AC33: ='Site Control 3'!AB82 -> 0
A34: g_TcacApplicant | B34: =IF(CreditType=4,[1]Application!$H$16,[1]Application!$H$15) -> Test Project LLC | C34: Company name of key entity in Contacts table | F34: =IF(CreditType=4,IF([1]Application!$J793="","",[1]Application!$J793),IF([1]Application!$J773="","",[1]Application!$J773)) ->  | G34: =IF(CreditType=4,IF([1]Application!$O793="","",[1]Application!$O793),IF([1]Application!$O773="","",[1]Application!$O773)) ->  | H34: =IF(CreditType=4,IF([1]Application!$T793="","",[1]Application!$T793),IF([1]Application!$T773="","",[1]Application!$T773)) ->  | I34: =IF(CreditType=4,IF([1]Application!$X793="","",[1]Application!$X793),IF([1]Application!$X773="","",[1]Application!$X773)) ->  | L34: 0 | M34: TRUE | X34: ='Site Control 3'!C83 -> 0 | Y34: ='Site Control 3'!H83 -> 0 | Z34: ='Site Control 3'!M83 -> 0 | AA34: ='Site Control 3'!R83 -> 0 | AB34: ='Site Control 3'!W83 -> 0 | AC34: ='Site Control 3'!AB83 -> 0
A35: g_LeadDeveloper | C35: Company name of key entity in Contacts table | F35: =IF(CreditType=4,IF([1]Application!$J794="","",[1]Application!$J794),IF([1]Application!$J774="","",[1]Application!$J774)) ->  | G35: =IF(CreditType=4,IF([1]Application!$O794="","",[1]Application!$O794),IF([1]Application!$O774="","",[1]Application!$O774)) ->  | H35: =IF(CreditType=4,IF([1]Application!$T794="","",[1]Application!$T794),IF([1]Application!$T774="","",[1]Application!$T774)) ->  | I35: =IF(CreditType=4,IF([1]Application!$X794="","",[1]Application!$X794),IF([1]Application!$X774="","",[1]Application!$X774)) ->  | L35: 0 | M35: TRUE | X35: ='Site Control 3'!C84 -> 0 | Y35: ='Site Control 3'!H84 -> 0 | Z35: ='Site Control 3'!M84 -> 0 | AA35: ='Site Control 3'!R84 -> 0 | AB35: ='Site Control 3'!W84 -> 0 | AC35: ='Site Control 3'!AB84 -> 0
A36: g_ManagingGeneralPartner | C36: Company name of key entity in Contacts table | F36: =IF(CreditType=4,IF([1]Application!$J795="","",[1]Application!$J795),IF([1]Application!$J775="","",[1]Application!$J775)) ->  | G36: =IF(CreditType=4,IF([1]Application!$O795="","",[1]Application!$O795),IF([1]Application!$O775="","",[1]Application!$O775)) ->  | H36: =IF(CreditType=4,IF([1]Application!$T795="","",[1]Application!$T795),IF([1]Application!$T775="","",[1]Application!$T775)) ->  | I36: =IF(CreditType=4,IF([1]Application!$X795="","",[1]Application!$X795),IF([1]Application!$X775="","",[1]Application!$X775)) ->  | L36: 0 | M36: TRUE | X36: ='Site Control 3'!C85 -> 0 | Y36: ='Site Control 3'!H85 -> 0 | Z36: ='Site Control 3'!M85 -> 0 | AA36: ='Site Control 3'!R85 -> 0 | AB36: ='Site Control 3'!W85 -> 0 | AC36: ='Site Control 3'!AB85 -> 0
A37: g_AdministrativeGeneralPartner | C37: Company name of key entity in Contacts table | F37: 0 | G37: =[1]Application!$O$786 -> 0 | H37: 0 | I37: 0 | J37: 0 | K37: 0 | L37: 0 | X37: ='Site Control 3'!C86 -> 0 | Y37: ='Site Control 3'!H86 -> 0 | Z37: ='Site Control 3'!M86 -> 0 | AA37: ='Site Control 3'!R86 -> 0 | AB37: ='Site Control 3'!W86 -> 0 | AC37: ='Site Control 3'!AB86 -> 0
A38: g_ProjectSponsor | C38: Company name of key entity in Contacts table | X38: ='Site Control 3'!C87 -> 0 | Y38: ='Site Control 3'!H87 -> 0 | Z38: ='Site Control 3'!M87 -> 0 | AA38: ='Site Control 3'!R87 -> 0 | AB38: ='Site Control 3'!W87 -> 0 | AC38: ='Site Control 3'!AB87 -> 0
A39: g_PrimaryContact | C39: Company name of key entity in Contacts table | X39: ='Site Control 3'!C88 -> 0 | Y39: ='Site Control 3'!H88 -> 0 | Z39: ='Site Control 3'!M88 -> 0 | AA39: ='Site Control 3'!R88 -> 0 | AB39: ='Site Control 3'!W88 -> 0 | AC39: ='Site Control 3'!AB88 -> 0
B40: Sources Information | X40: ='Site Control 3'!C89 -> 0 | Y40: ='Site Control 3'!H89 -> 0 | Z40: ='Site Control 3'!M89 -> 0 | AA40: ='Site Control 3'!R89 -> 0 | AB40: ='Site Control 3'!W89 -> 0 | AC40: ='Site Control 3'!AB89 -> 0
A41: g_SourcesPermanent | C41: Sum of Sources[PermAmount] rounded down | X41: ='Site Control 3'!C90 -> 0 | Y41: ='Site Control 3'!H90 -> 0 | Z41: ='Site Control 3'!M90 -> 0 | AA41: ='Site Control 3'!R90 -> 0 | AB41: ='Site Control 3'!W90 -> 0 | AC41: ='Site Control 3'!AB90 -> 0
A42: g_SourcesConstruction | C42: Sum of Sources[ConAmount] rounded down | X42: ='Site Control 4'!C78 -> 0 | Y42: ='Site Control 4'!H78 -> 0 | Z42: ='Site Control 4'!M78 -> 0 | AA42: ='Site Control 4'!R78 -> 0 | AB42: ='Site Control 4'!W78 -> 0 | AC42: ='Site Control 4'!AB78 -> 0
A43: g_SourcesDebtService | C43: Sum of Sources[DebtService] rounded down | X43: ='Site Control 4'!C79 -> 0 | Y43: ='Site Control 4'!H79 -> 0 | Z43: ='Site Control 4'!M79 -> 0 | AA43: ='Site Control 4'!R79 -> 0 | AB43: ='Site Control 4'!W79 -> 0 | AC43: ='Site Control 4'!AB79 -> 0
A44: g_TaxExemptFinPerm | C44: Sum of perm sources labeled Tax-Exempt Loan | X44: ='Site Control 4'!C80 -> 0 | Y44: ='Site Control 4'!H80 -> 0 | Z44: ='Site Control 4'!M80 -> 0 | AA44: ='Site Control 4'!R80 -> 0 | AB44: ='Site Control 4'!W80 -> 0 | AC44: ='Site Control 4'!AB80 -> 0
A45: g_TaxExemptFinCon | C45: Sum of construction sources labeled Tax-Exempt Loan | X45: ='Site Control 4'!C81 -> 0 | Y45: ='Site Control 4'!H81 -> 0 | Z45: ='Site Control 4'!M81 -> 0 | AA45: ='Site Control 4'!R81 -> 0 | AB45: ='Site Control 4'!W81 -> 0 | AC45: ='Site Control 4'!AB81 -> 0
A46: g_SourcesCommittedPerm | C46: Sum of committed permanent financing | X46: ='Site Control 4'!C82 -> 0 | Y46: ='Site Control 4'!H82 -> 0 | Z46: ='Site Control 4'!M82 -> 0 | AA46: ='Site Control 4'!R82 -> 0 | AB46: ='Site Control 4'!W82 -> 0 | AC46: ='Site Control 4'!AB82 -> 0
A47: g_SourcesCommittedCon | C47: Sum of committed construction period financing | X47: ='Site Control 4'!C83 -> 0 | Y47: ='Site Control 4'!H83 -> 0 | Z47: ='Site Control 4'!M83 -> 0 | AA47: ='Site Control 4'!R83 -> 0 | AB47: ='Site Control 4'!W83 -> 0 | AC47: ='Site Control 4'!AB83 -> 0
B48: Cost Information | X48: ='Site Control 4'!C84 -> 0 | Y48: ='Site Control 4'!H84 -> 0 | Z48: ='Site Control 4'!M84 -> 0 | AA48: ='Site Control 4'!R84 -> 0 | AB48: ='Site Control 4'!W84 -> 0 | AC48: ='Site Control 4'!AB84 -> 0
A49: g_TotalProjectCost | B49: =IF(CreditType=4,'[1]Sources and Uses Budget'!$B$105,'[1]Sources and Uses Budget'!$B$104) -> 104700000 | C49: Sum of Uses[Use] individually rounded down, excluding headings | X49: ='Site Control 4'!C85 -> 0 | Y49: ='Site Control 4'!H85 -> 0 | Z49: ='Site Control 4'!M85 -> 0 | AA49: ='Site Control 4'!R85 -> 0 | AB49: ='Site Control 4'!W85 -> 0 | AC49: ='Site Control 4'!AB85 -> 0
A50: g_LandCost | B50: =IF(CreditType=4,'[1]Sources and Uses Budget'!$B$4,'[1]Sources and Uses Budget'!$B$4) -> 100000000 | C50: Land Cost from Sources and Uses Budget | X50: ='Site Control 4'!C86 -> 0 | Y50: ='Site Control 4'!H86 -> 0 | Z50: ='Site Control 4'!M86 -> 0 | AA50: ='Site Control 4'!R86 -> 0 | AB50: ='Site Control 4'!W86 -> 0 | AC50: ='Site Control 4'!AB86 -> 0
A51: g_HoldingCost | B51: ='[1]Sources and Uses Budget'!$B$13 -> 0 | C51: Holding Cost from Sources and Uses Budget | X51: ='Site Control 4'!C87 -> 0 | Y51: ='Site Control 4'!H87 -> 0 | Z51: ='Site Control 4'!M87 -> 0 | AA51: ='Site Control 4'!R87 -> 0 | AB51: ='Site Control 4'!W87 -> 0 | AC51: ='Site Control 4'!AB87 -> 0
A52: g_ImprovementsValue | B52: ='[1]Sources and Uses Budget'!$B$9 -> 0 | C52: Existing Improvements Value from Sources and Uses Budget | X52: ='Site Control 4'!C88 -> 0 | Y52: ='Site Control 4'!H88 -> 0 | Z52: ='Site Control 4'!M88 -> 0 | AA52: ='Site Control 4'!R88 -> 0 | AB52: ='Site Control 4'!W88 -> 0 | AC52: ='Site Control 4'!AB88 -> 0
A53: g_CostRehab | B53: =SUM('[1]Sources and Uses Budget'!$C$17,'[1]Sources and Uses Budget'!$C$18,'[1]Sources and Uses Budget'!$C$22) -> 0 | C53: Site, Structures, and Prevailing Wage for Rehabilitation from S&U Budget | X53: ='Site Control 4'!C89 -> 0 | Y53: ='Site Control 4'!H89 -> 0 | Z53: ='Site Control 4'!M89 -> 0 | AA53: ='Site Control 4'!R89 -> 0 | AB53: ='Site Control 4'!W89 -> 0 | AC53: ='Site Control 4'!AB89 -> 0
A54: g_BasisEligible | C54: Sum of Uses[EligibleBasis] individually rounded down, excluding headings | X54: ='Site Control 4'!C90 -> 0 | Y54: ='Site Control 4'!H90 -> 0 | Z54: ='Site Control 4'!M90 -> 0 | AA54: ='Site Control 4'!R90 -> 0 | AB54: ='Site Control 4'!W90 -> 0 | AC54: ='Site Control 4'!AB90 -> 0
A55: g_BasisAcquisition | C55: Sum of Uses[Acquisition Basis] individually rounded down, excluding headings | X55: ='Site Control 5'!C78 -> 0 | Y55: ='Site Control 5'!H78 -> 0 | Z55: ='Site Control 5'!M78 -> 0 | AA55: ='Site Control 5'!R78 -> 0 | AB55: ='Site Control 5'!W78 -> 0 | AC55: ='Site Control 5'!AB78 -> 0
A56: g_CostCommercial | C56: Sum of Uses[Commercial Portion] individually rounded down, excluding headings | X56: ='Site Control 5'!C79 -> 0 | Y56: ='Site Control 5'!H79 -> 0 | Z56: ='Site Control 5'!M79 -> 0 | AA56: ='Site Control 5'!R79 -> 0 | AB56: ='Site Control 5'!W79 -> 0 | AC56: ='Site Control 5'!AB79 -> 0
A57: g_CostCommunityService | C57: Sum of Uses[CSF Portion] individually rounded down, excluding headings | X57: ='Site Control 5'!C80 -> 0 | Y57: ='Site Control 5'!H80 -> 0 | Z57: ='Site Control 5'!M80 -> 0 | AA57: ='Site Control 5'!R80 -> 0 | AB57: ='Site Control 5'!W80 -> 0 | AC57: ='Site Control 5'!AB80 -> 0
A58: g_CostResidential | C58: TotalProjectCost minus CostCommercial and CostCommunityService | X58: ='Site Control 5'!C81 -> 0 | Y58: ='Site Control 5'!H81 -> 0 | Z58: ='Site Control 5'!M81 -> 0 | AA58: ='Site Control 5'!R81 -> 0 | AB58: ='Site Control 5'!W81 -> 0 | AC58: ='Site Control 5'!AB81 -> 0
A59: g_CapitalizedOperatingReserve | C59: Capitalized Operating Reserve from Uses table | X59: ='Site Control 5'!C82 -> 0 | Y59: ='Site Control 5'!H82 -> 0 | Z59: ='Site Control 5'!M82 -> 0 | AA59: ='Site Control 5'!R82 -> 0 | AB59: ='Site Control 5'!W82 -> 0 | AC59: ='Site Control 5'!AB82 -> 0
A60: g_StatePrevailingWages | C60: Paying state prevailing wages | X60: ='Site Control 5'!C83 -> 0 | Y60: ='Site Control 5'!H83 -> 0 | Z60: ='Site Control 5'!M83 -> 0 | AA60: ='Site Control 5'!R83 -> 0 | AB60: ='Site Control 5'!W83 -> 0 | AC60: ='Site Control 5'!AB83 -> 0
A61: g_FederalDavisBaconActWages | C61: Paying federal Davis Bacon Act wages | X61: ='Site Control 5'!C84 -> 0 | Y61: ='Site Control 5'!H84 -> 0 | Z61: ='Site Control 5'!M84 -> 0 | AA61: ='Site Control 5'!R84 -> 0 | AB61: ='Site Control 5'!W84 -> 0 | AC61: ='Site Control 5'!AB84 -> 0
A62: g_TotalServicesBudget | B62: ='[1]15 Year Pro Forma'!$E$26 -> 0 | C62: Year 1 Services Cost from 15 Year Pro Forma | X62: ='Site Control 5'!C85 -> 0 | Y62: ='Site Control 5'!H85 -> 0 | Z62: ='Site Control 5'!M85 -> 0 | AA62: ='Site Control 5'!R85 -> 0 | AB62: ='Site Control 5'!W85 -> 0 | AC62: ='Site Control 5'!AB85 -> 0
B63: Square Footage Information | X63: ='Site Control 5'!C86 -> 0 | Y63: ='Site Control 5'!H86 -> 0 | Z63: ='Site Control 5'!M86 -> 0 | AA63: ='Site Control 5'!R86 -> 0 | AB63: ='Site Control 5'!W86 -> 0 | AC63: ='Site Control 5'!AB86 -> 0
A64: g_SqFtTotal | C64: Total of all square footages | X64: ='Site Control 5'!C87 -> 0 | Y64: ='Site Control 5'!H87 -> 0 | Z64: ='Site Control 5'!M87 -> 0 | AA64: ='Site Control 5'!R87 -> 0 | AB64: ='Site Control 5'!W87 -> 0 | AC64: ='Site Control 5'!AB87 -> 0
A65: g_SqFtResidential | C65: Sumproduce of Quantity and Square Feet in UnitsTbl | X65: ='Site Control 5'!C88 -> 0 | Y65: ='Site Control 5'!H88 -> 0 | Z65: ='Site Control 5'!M88 -> 0 | AA65: ='Site Control 5'!R88 -> 0 | AB65: ='Site Control 5'!W88 -> 0 | AC65: ='Site Control 5'!AB88 -> 0
A66: g_SqFtLowIncome | C66: Includes only units with Gen AMI <= 80% | X66: ='Site Control 5'!C89 -> 0 | Y66: ='Site Control 5'!H89 -> 0 | Z66: ='Site Control 5'!M89 -> 0 | AA66: ='Site Control 5'!R89 -> 0 | AB66: ='Site Control 5'!W89 -> 0 | AC66: ='Site Control 5'!AB89 -> 0
A67: g_SqFtExemptUnits | C67: Includes only units with Exempt Unit = TRUE | X67: ='Site Control 5'!C90 -> 0 | Y67: ='Site Control 5'!H90 -> 0 | Z67: ='Site Control 5'!M90 -> 0 | AA67: ='Site Control 5'!R90 -> 0 | AB67: ='Site Control 5'!W90 -> 0 | AC67: ='Site Control 5'!AB90 -> 0
A68: g_SqFtCommon | C68: Exempt common area square footage | X68: ='Site Control 1'!C165 -> 0 | Y68: 0 | Z68: 0 | AA68: 0 | AB68: 0 | AC68: 0
A69: g_SqFtCommunity | C69: Exempt community area square footage
A70: g_SqFtStructuredParking | C70: Structured parking square footage
A71: g_SqFtCommercial | C71: Commercial space square footage
A72: g_SqFtCommunityService | C72: Community service facility square footage
A73: g_SqFtSite | C73: Site size in acres * 43560
B74: Unit Information
A75: g_UnitsRental | B75: =IF(CreditType=4,[1]Application!$AG$438,[1]Application!$AG$433) -> 100 | C75: total number of units excluding managers units
A76: g_UnitsTotal | B76: =IF(CreditType=4,[1]Application!$AG$436,[1]Application!$AG$430) -> 101 | C76: total of all units - low income, manager, and market-rate
A77: g_UnitsTaxCredit | B77: =IF(CreditType=4,[1]Application!$G$753+[1]Application!$O$776,[1]Application!$G$731+[1]Application!$O$756) -> 100 | C77: UnitsLowIncome plus UnitsExempt
A78: g_UnitsNonTaxCredit | B78: =IF(CreditType=4,[1]Application!$AG$437,[1]Application!$O$776) -> 0 | C78: UnitsResidential minus UnitsTaxCredit ( market rate)
A79: g_UnitsExempt | B79: =IF(CreditType=4,[1]Application!$O$776,[1]Application!$O$756) -> 0 | C79: Sum of Exempt Units (manager units)
A80: g_UnitsSubsidized | C80: Sum of Residential Unit with Contract Rent
A81: g_UnitsLowIncome | B81: =IF(CreditType=4,[1]Application!$AG$439,[1]Application!$AG$433) -> 100 | C81: Sum of Res. Units at/below 80% AMI
A82: g_UnitsSpecialNeeds | B82: =IF(SUM(UnitsTbl[Count SpN Units])<IF(CreditType=4,[1]Application!$Y$211,ROUNDUP(([1]Application!$AE$215*[1]Application!$AG$433),0)),IF(CreditType=4,[1]Application!$Y$211,ROUNDUP(([1]Application!$AE$215*[1]Application!$AG$433),0)),SUM(UnitsTbl[Count SpN Units])) -> 50 | C82: Sum of Special Needs units
A83: g_UnitsPsh | C83: Sum of Permanent Supportive Housing Units | E83: =IF(CreditType=4,[1]Application!$Y$211,ROUNDUP(([1]Application!$AE$215*[1]Application!$AG$433),0)) -> 50
A84: g_UnitsHomeless | B84: =IF(CreditType=4,IF(ISNUMBER([1]Application!$W$464),[1]Application!$W$464,0),IF(ISNUMBER([1]Application!$W$458),[1]Application!$W$458,0)) -> 0 | C84: Sum of Homeless Housing Units
A85: g_UnitsHomeOwnership | C85: Sum of Home Ownership units
A86: g_UnitsAgeRestricted | C86: Sum of Age Restricted units
A87: g_AmiAvgLowIncomeUnits | C87: Sum of Rental AMIs under 80% dived by UnitsLowIncome
A88: g_UnitsDemolished | C88: Count of existing units to be demolished
A89: g_UnitsRetained | C89: Count of existing units to be retained
A90: g_Units0 | B90: =SUMIFS(UnitsTbl[Number of Units],UnitsTbl[Bedroom Type],"SRO/Studio",UnitsTbl[Market Rate],"") -> 0 | C90: Count all low-income studio units
A91: g_Units1 | B91: =SUMIFS(UnitsTbl[Number of Units],UnitsTbl[Bedroom Type],"1 Bedroom",UnitsTbl[Market Rate],"") -> 100 | C91: Count all low-income 1-BR units
A92: g_Units2 | B92: =SUMIFS(UnitsTbl[Number of Units],UnitsTbl[Bedroom Type],"2 Bedrooms",UnitsTbl[Market Rate],"") -> 0 | C92: Count all low-income 2-BR units
A93: g_Units3 | B93: =SUMIFS(UnitsTbl[Number of Units],UnitsTbl[Bedroom Type],"3 Bedrooms",UnitsTbl[Market Rate],"") -> 0 | C93: Count all low-income 3-BR units
A94: g_Units4 | B94: =SUMIFS(UnitsTbl[Number of Units],UnitsTbl[Bedroom Type],"4 Bedrooms",UnitsTbl[Market Rate],"") -> 0 | C94: Count all low-income 4-BR units
A95: g_Units5 | B95: =SUMIFS(UnitsTbl[Number of Units],UnitsTbl[Bedroom Type],"5 Bedrooms",UnitsTbl[Market Rate],"") -> 0 | C95: Count all low-income 5-BR units
A96: g_SpNe0 | B96: =SUMIFS(UnitsTbl[Count SpN Units],UnitsTbl[Bedroom Type],"SRO/Studio") -> 0 | C96: Count of Special Needs studio units
A97: g_SpNe1 | B97: =SUMIFS(UnitsTbl[Count SpN Units],UnitsTbl[Bedroom Type],"1 Bedroom") -> 0 | C97: Count of Special Needs 1-BR units
A98: g_SpNe2 | B98: =SUMIFS(UnitsTbl[Count SpN Units],UnitsTbl[Bedroom Type],"2 Bedrooms") -> 0 | C98: Count of Special Needs 2-BR units
A99: g_SpNe3 | B99: =SUMIFS(UnitsTbl[Count SpN Units],UnitsTbl[Bedroom Type],"3 Bedrooms") -> 0 | C99: Count of Special Needs 3-BR units
A100: g_SpNe4 | B100: =SUMIFS(UnitsTbl[Count SpN Units],UnitsTbl[Bedroom Type],"4 Bedrooms") -> 0 | C100: Count of Special Needs 4-BR units
A101: g_SpNe5 | B101: =SUMIFS(UnitsTbl[Count SpN Units],UnitsTbl[Bedroom Type],"5 Bedrooms") -> 0 | C101: Count of Special Needs 5-BR units
A102: g_MktUnits0 | B102: =SUMIFS(UnitsTbl[Number of Units],UnitsTbl[Market Rate],TRUE,UnitsTbl[Bedroom Type],"SRO/Studio") -> 0 | C102: Count of Market Rate studio units
A103: g_MktUnits1 | B103: =SUMIFS(UnitsTbl[Number of Units],UnitsTbl[Market Rate],TRUE,UnitsTbl[Bedroom Type],"1 Bedroom") -> 0 | C103: Count of Market Rate 1-BR units
A104: g_MktUnits2 | B104: =SUMIFS(UnitsTbl[Number of Units],UnitsTbl[Market Rate],TRUE,UnitsTbl[Bedroom Type],"2 Bedrooms") -> 0 | C104: Count of Market Rate 2-BR units
A105: g_MktUnits3 | B105: =SUMIFS(UnitsTbl[Number of Units],UnitsTbl[Market Rate],TRUE,UnitsTbl[Bedroom Type],"3 Bedrooms") -> 0 | C105: Count of Market Rate 3-BR units
A106: g_MktUnits4 | B106: =SUMIFS(UnitsTbl[Number of Units],UnitsTbl[Market Rate],TRUE,UnitsTbl[Bedroom Type],"4 Bedrooms") -> 0 | C106: Count of Market Rate 4-BR units
A107: g_MktUnits5 | B107: =SUMIFS(UnitsTbl[Number of Units],UnitsTbl[Market Rate],TRUE,UnitsTbl[Bedroom Type],"5 Bedrooms") -> 0 | C107: Count of Market Rate 5-BR units
B108: Product Information
A109: g_BuildingsResidential | C109: Quantity of residential buildings in the project
A110: g_BuildingsNonResidential | C110: Quantity of non-residential buildings in the project
A111: g_BuildingStories | B111: =IF(CreditType=4,IF(AND([1]Application!$AD$410>0,[1]Application!$AD$411>0),MAX([1]Application!$AD$410,[1]Application!$AD$411),IF([1]Application!$AD$410>0,[1]Application!$AD$410,IF([1]Application!$AD$411>0,[1]Application!$AD$411,1))),IF(AND([1]Application!$AD$404>0,[1]Application!$AD$405>0),MAX([1]Application!$AD$404,[1]Application!$AD$405),IF([1]Application!$AD$404>0,[1]Application!$AD$404,IF([1]Application!$AD$405>0,[1]Application!$AD$405,1)))) -> 1 | C111: Number of stories in buildings
A112: g_ParkingCount | C112: Parking spaces provided on site
A113: g_BedroomsTotal | B113: =SUM(((B90+B102)*1),((B91+B103)*1),((B92+B104)*2),((B93+B105)*3),((B94+B106)*4),((B95+B107)*5)) -> 100 | C113: Sum of unit bedrooms counting 1 per studio and 4 for 4+ bedroom units
A114: g_BedroomsSpecialNeeds | B114: =SUM((B96*1),(B97*1),(B98*2),(B99*3),(B100*4),(B101*5)) -> 0 | C114: Same calculation as above but requiring Special Needs designation
A115: g_LaundryWashersCount | C115: Community washing machines available for tenant use
A116: g_LaundryDryersCount | C116: Community clothes dryers available fore tenant use
A117: g_eAppBedroomsSpN | B117: =IF(CreditType=4,[1]Application!$AG$756,[1]Application!$AG$734) -> 0 | C117: Number of Special Needs bedrooms listed in e-app
B118: Cash Flow Information
A119: g_ResidentialIncomeMonthly | C119: Monthly residential rental income
A120: g_ContractRentIncomeMonthly | C120: Monthly rental subsidy income
A121: g_GrossPotentialIncome | C121: All income, excluding in-kind services, projected in Year 1
A122: g_TotalAnnualIncome | C122: All income projected in Year 1 after vacancy
A123: g_TotalAnnualExpenses | C123: Sum of Annual Expenses from ExpenseTbl
A124: g_AnnExpensesForTcacMin | C124: Sum of Annual Expenses that qualify towards TCAC minimum expenses
A125: g_AnnualReplacementReserves | C125: Annual Replacement Reserve funding from Expenese table
A126: g_AnnRepResPerUnit | C126: Annual Replacement Reserve per unit
A127: g_NetOperatingIncome | C127: Net Operating Income in Year 1
A128: g_TotalDebtService | C128: Total debt service in Year 1
A129: g_Lowest15YearCashFlow | C129: Minimum of first 15 years of cash flow after debt service
B130: County Data
A131: tcd_RentLimits | C131: Year rent limits were published
A132: tcd_BasisLimits9 | C132: Year basis limits were published
A133: tcd_BasisLimits4 | C133: Year basis limits were published
A134: tcd_MinAnExp | C134: Year minimum operating expenses were published
A135: tcd_Version | C135: The version number for this file
B136: Tax Credits
A137: t_FederalCreditsAnnual | C137: Maximum allowed Federal tax credits
A138: t_StateCreditsTotal | C138: Maximum allowed State tax credits
B139: Developer Fee
A140: t_DeveloperFeeLimit | C140: Overall limit on developer fee
A141: t_MinDevFeeDeferral | C141: Minimum required deferral/contribution of developer fee
A142: t_DeveloperFeeLimitCapitalized | C142: Maximum allowable developer fee payments from sources
A143: t_TotalDeveloperFee | B143: =IF(CreditType=4,'[1]Sources and Uses Budget'!$B$104,'[1]Sources and Uses Budget'!$B$103) -> 2200000 | C143: Total sum of all Developer fee
B144: Threshold Basis Limits
A145: t_ThresholdBasisLimit
A146: t_UnAdjustedThresholdBasisLimit
A147: t_TblDeeperTargetingBoosts
B148: Compliance
A149: t_HighCostPercentage
A150: t_ApplicableFraction
A151: t_TaxCreditUnits
A152: t_LowIncomeUnits
A153: t_MinOperatingExpenses
B154: Application Characteristics
A155: t_CreditType | B155: =[1]Application!$AS$1 -> 4
A156: t_SubmittalType
A157: t_IsBipocJv
A158: t_Is4percent
A159: t_Is9percent
A160: t_IsResyndication | B160: =IF(CreditType=4,[1]Application!$X$180="Yes",[1]Application!$Y$180="Yes") -> FALSE
A161: t_ResyndOriginalNumber1 | B161: =IF(CreditType=4,CONCATENATE("CA-",[1]Application!$S$376,"-",[1]Application!$V$376),CONCATENATE("CA-",[1]Application!$S$370,"-",[1]Application!$V$370)) -> CA--
A162: t_ResyndOriginalNumber2 | B162: =IF(CreditType=4,CONCATENATE("CA-",[1]Application!$AD$376,"-",[1]Application!$AG$376),CONCATENATE("CA-",[1]Application!$AD$370,"-",[1]Application!$AG$370)) -> CA--
A163: t_Is9snBothBoost
A164: t_IsLowValueRehab
A165: t_IsFarmworker
A166: t_Isg1B
A167: t_Isg1A
A168: t_IsNewConstruction | B168: =IF(CreditType=4,[1]Application!$M354="Yes",[1]Application!$M349="Yes") -> TRUE
A169: t_IsAdaptiveReuse | B169: =IF(CreditType=4,[1]Application!$M355="Yes",[1]Application!$M350="Yes") -> FALSE
A170: t_IsRehabOnly | B170: =IF(CreditType=4,[1]Application!$M356="Yes",[1]Application!$M351="Yes") -> FALSE
A171: t_IsAcqAndRehab | B171: =IF(CreditType=4,[1]Application!$M357="Yes",[1]Application!$M352="Yes") -> FALSE
A172: t_IsBoosted
A173: t_IsBoostedPartial
A174: t_StateCreditType
A175: t_FederalCreditElection
A176: t_MaximumElectionAMI
A177: t_HousingType | B177: =IF(CreditType=4,[1]Application!$D$210,[1]Application!$D$214) -> Special Needs
A178: t_RequiresSecondaryHousingType | B178: =IF(CreditType=4,AND(B177="Special Needs",([1]Application!$Y$211/[1]Application!$G$753<75%)),AND(B177="Special Needs",([1]Application!$AE$215<75%))) -> TRUE
A179: t_SecondaryHousingType | B179: =IF(CreditType=4,[1]Application!$D$213,[1]Application!$E$217) -> Seniors
A180: t_SpecialNeedsPercentage | B180: =IF(CreditType=4,[1]Application!$Y$211/INDEX(val,MATCH("g_UnitsLowIncome",ref,0)),[1]Application!$AE$215) -> 0.5
A181: t_AppStage
A182: t_FederalCreditFactor
A183: t_StateCreditFactor
B184: Points Info
A185: t_HasServiceCoordinator | B185: =IF(CreditType=4,OR('[1]Points System'!$C$657="Yes",'[1]Points System'!$C$596="Yes"),OR('[1]Points System'!$C$381="Yes",'[1]Points System'!$C$446="Yes")) -> FALSE
A186: t_HasCaseManager | B186: =IF(CreditType=4,'[1]Points System'!$C$645="Yes",'[1]Points System'!$C$434="Yes") -> FALSE
A187: t_HasOtherServiceSpecialist | B187: =IF(CreditType=4,OR('[1]Points System'!$C$604="Yes",'[1]Points System'!$C$657="Yes"),OR('[1]Points System'!$C$446="Yes",'[1]Points System'!$C$391="Yes")) -> FALSE
A188: t_PointsAddlHousingType | B188: =IF(CreditType=4,OR('[1]Points System'!$B$12="Yes",'[1]Points System'!$B$171="Large Family",'[1]Points System'!$B$171="Special Needs",'[1]Points System'!$B$171="Senior",'[1]Points System'!$B$171="SRO",'[1]Points System'!$B$171="At-Risk"),'[1]Points System'!$AK$73>0) -> FALSE
A190: t_AvgAMITarget | B190: =IF(CreditType=4,[1]Application!$AH$753,[1]Application!$AH$731) -> 0.6

Sheet Lists (hidden)
A1: Don't delete or insert columns or rows | G1: ü | H1: IsTrue | L1: M | M1: =ROW('Site Control 1'!M48) -> 48 | N1: =ROW('Site Control 1'!M51) -> 51 | R1: ProviderContacts | AB1: ListProviders | AD1: ListReferences | AF1: GPs | AG1: Parent Co | AH1: ParentOrNA | AI1: LSQoptions | AJ1: Type | AL1: ListManagementCo | AP1: SC1Parcels | AQ1: SC2Parcels | AR1: SC3Parcels | AS1: SC4Parcels | AT1: SC5Parcels
G2: û | H2: IsFalse | I2: Row Starts | L2: 1 | M2: =IFERROR(INDIRECT("'Site Control "&$L2&"'!"&$L$1&M$1),0) -> 0 | N2: =IFERROR(INDIRECT("'Site Control "&$L2&"'!"&$L$1&N$1),0) -> 0 | R2: Company Name | S2: Contact | T2: Title | U2: Email | V2: Phone | W2: Provider | X2: R-Provider | Y2: Reference | Z2: R-Reference | AF2: =IF(CreditType=4,[1]Application!$M$242,[1]Application!$M$245) -> Test Project AGP | AG2: =IF(CreditType=4,[1]Application!$AA$248,[1]Application!$AA$251) -> Business A | AH2: =IF(OR(GeneralPartners[[#This Row],[Parent Co]]="",GeneralPartners[[#This Row],[Parent Co]]=0),"No parent company entered",GeneralPartners[[#This Row],[Parent Co]]) -> Business A | AI2: =IF(CreditType=4,[1]Application!$M$242,[1]Application!$M$245) -> Test Project AGP | AJ2: General Partner | AL2: =IF(CreditType=4,[1]Application!$AA$334,[1]Application!$AA$329) -> Management Co 1 | AP2: =IF(Parcels!$E$3=1,Parcels!$A$3,"") -> 0 | AQ2: =IF(Parcels!$E3=2,Parcels!$A3,"") ->  | AR2: =IF(Parcels!$E3=3,Parcels!$A3,"") ->  | AS2: =IF(Parcels!$E3=4,Parcels!$A3,"") ->  | AT2: =IF(Parcels!$E3=5,Parcels!$A3,"") -> 
I3: Column | L3: 2 | M3: =IFERROR(INDIRECT("'Site Control "&$L3&"'!"&$L$1&M$1),0) -> 0 | N3: =IFERROR(INDIRECT("'Site Control "&$L3&"'!"&$L$1&N$1),0) -> 0 | R3: =IFERROR(Services!B47,"") -> 0 | S3: =IFERROR(Services!L47,"") -> 0 | T3: =IFERROR(Services!T47,"") -> 0 | U3: =IFERROR(Services!Y47,"") -> 0 | V3: =IFERROR(Services!AM47,"") -> 0 | W3: =IF(Services!AS47="Provider",1,0) -> 0 | X3: =W3*SUM($W$3:W3) -> 0 | Y3: =IF(Services!AS47="Reference",1,0) -> 0 | Z3: =Y3*SUM($Y$3:Y3) -> 0 | AB3: =IFERROR(INDEX(ProviderContactsTbl[Company Name],MATCH(ROW(1:1),ProviderContactsTbl[R-Provider],0)),"") ->  | AD3: =IFERROR(INDEX(ProviderContactsTbl[Company Name],MATCH(ROW(1:1),ProviderContactsTbl[R-Reference],0)),"") ->  | AF3: =IF(CreditType=4,[1]Application!$M$250,[1]Application!$M$253) -> Test Project MGP | AG3: =IF(CreditType=4,[1]Application!$AA$256,[1]Application!$AA$259) -> Business B | AH3: =IF(OR(GeneralPartners[[#This Row],[Parent Co]]="",GeneralPartners[[#This Row],[Parent Co]]=0),"No parent company entered",GeneralPartners[[#This Row],[Parent Co]]) -> Business B | AI3: =IF(CreditType=4,[1]Application!$M$250,[1]Application!$M$253) -> Test Project MGP | AJ3: General Partner | AL3: =IF(CreditType=4,IF([1]Application!$P$342="","",[1]Application!$P$342),IF([1]Application!$AA$337="","",[1]Application!$AA$337)) -> Management Co 2 | AP3: =IF(Parcels!E4=1,Parcels!A4,"") ->  | AQ3: =IF(Parcels!$E4=2,Parcels!$A4,"") ->  | AR3: =IF(Parcels!$E4=3,Parcels!$A4,"") ->  | AS3: =IF(Parcels!$E4=4,Parcels!$A4,"") ->  | AT3: =IF(Parcels!$E4=5,Parcels!$A4,"") -> 
H4: YesNoNa | L4: 3 | M4: =IFERROR(INDIRECT("'Site Control "&$L4&"'!"&$L$1&M$1),0) -> 0 | N4: =IFERROR(INDIRECT("'Site Control "&$L4&"'!"&$L$1&N$1),0) -> 0 | R4: =IFERROR(Services!B48,"") -> 0 | S4: =IFERROR(Services!L48,"") -> 0 | T4: =IFERROR(Services!T48,"") -> 0 | U4: =IFERROR(Services!Y48,"") -> 0 | V4: =IFERROR(Services!AM48,"") -> 0 | W4: =IF(Services!AS48="Provider",1,0) -> 0 | X4: =W4*SUM($W$3:W4) -> 0 | Y4: =IF(Services!AS48="Reference",1,0) -> 0 | Z4: =Y4*SUM($Y$3:Y4) -> 0 | AB4: =IFERROR(INDEX(ProviderContactsTbl[Company Name],MATCH(ROW(2:2),ProviderContactsTbl[R-Provider],0)),"") ->  | AD4: =IFERROR(INDEX(ProviderContactsTbl[Company Name],MATCH(ROW(2:2),ProviderContactsTbl[R-Reference],0)),"") ->  | AF4: =IF(CreditType=4,[1]Application!$M$258,[1]Application!$M$261) -> NonProfit | AG4: =IF(CreditType=4,[1]Application!$AA$264,[1]Application!$AA$267) -> NonProfit | AH4: =IF(OR(GeneralPartners[[#This Row],[Parent Co]]="",GeneralPartners[[#This Row],[Parent Co]]=0),"No parent company entered",GeneralPartners[[#This Row],[Parent Co]]) -> NonProfit | AI4: =IF(CreditType=4,[1]Application!$M$258,[1]Application!$M$261) -> NonProfit | AJ4: General Partner | AP4: =IF(Parcels!E5=1,Parcels!A5,"") ->  | AQ4: =IF(Parcels!$E5=2,Parcels!$A5,"") ->  | AR4: =IF(Parcels!$E5=3,Parcels!$A5,"") ->  | AS4: =IF(Parcels!$E5=4,Parcels!$A5,"") ->  | AT4: =IF(Parcels!$E5=5,Parcels!$A5,"") -> 
H5: Yes | L5: 4 | M5: =IFERROR(INDIRECT("'Site Control "&$L5&"'!"&$L$1&M$1),0) -> 0 | N5: =IFERROR(INDIRECT("'Site Control "&$L5&"'!"&$L$1&N$1),0) -> 0 | R5: =IFERROR(Services!B49,"") -> 0 | S5: =IFERROR(Services!L49,"") -> 0 | T5: =IFERROR(Services!T49,"") -> 0 | U5: =IFERROR(Services!Y49,"") -> 0 | V5: =IFERROR(Services!AM49,"") -> 0 | W5: =IF(Services!AS49="Provider",1,0) -> 0 | X5: =W5*SUM($W$3:W5) -> 0 | Y5: =IF(Services!AS49="Reference",1,0) -> 0 | Z5: =Y5*SUM($Y$3:Y5) -> 0 | AB5: =IFERROR(INDEX(ProviderContactsTbl[Company Name],MATCH(ROW(3:3),ProviderContactsTbl[R-Provider],0)),"") ->  | AD5: =IFERROR(INDEX(ProviderContactsTbl[Company Name],MATCH(ROW(3:3),ProviderContactsTbl[R-Reference],0)),"") ->  | AF5: =_xlfn.CONCAT(IF(CreditType=4,[1]Application!$H$286,[1]Application!$H$289)&"- Tribal Applicants Only") -> Developer Co- Tribal Applicants Only | AH5: =IF(OR(GeneralPartners[[#This Row],[Parent Co]]="",GeneralPartners[[#This Row],[Parent Co]]=0),"N/A - Developer Entity",GeneralPartners[[#This Row],[Parent Co]]) -> N/A - Developer Entity | AI5: =IF(CreditType=4,[1]Application!$H$286,[1]Application!$H$289) -> Developer Co | AJ5: Developer | AP5: =IF(Parcels!E6=1,Parcels!A6,"") ->  | AQ5: =IF(Parcels!$E6=2,Parcels!$A6,"") ->  | AR5: =IF(Parcels!$E6=3,Parcels!$A6,"") ->  | AS5: =IF(Parcels!$E6=4,Parcels!$A6,"") ->  | AT5: =IF(Parcels!$E6=5,Parcels!$A6,"") -> 
H6: No | L6: 5 | M6: =IFERROR(INDIRECT("'Site Control "&$L6&"'!"&$L$1&M$1),0) -> 0 | N6: =IFERROR(INDIRECT("'Site Control "&$L6&"'!"&$L$1&N$1),0) -> 0 | R6: =IFERROR(Services!B50,"") -> 0 | S6: =IFERROR(Services!L50,"") -> 0 | T6: =IFERROR(Services!T50,"") -> 0 | U6: =IFERROR(Services!Y50,"") -> 0 | V6: =IFERROR(Services!AM50,"") -> 0 | W6: =IF(Services!AS50="Provider",1,0) -> 0 | X6: =W6*SUM($W$3:W6) -> 0 | Y6: =IF(Services!AS50="Reference",1,0) -> 0 | Z6: =Y6*SUM($Y$3:Y6) -> 0 | AB6: =IFERROR(INDEX(ProviderContactsTbl[Company Name],MATCH(ROW(4:4),ProviderContactsTbl[R-Provider],0)),"") ->  | AD6: =IFERROR(INDEX(ProviderContactsTbl[Company Name],MATCH(ROW(4:4),ProviderContactsTbl[R-Reference],0)),"") ->  | AI6: =INDEX(val,MATCH("g_TCACApplicant",ref,0)) -> Test Project LLC | AJ6: Applicant | AP6: =IF(Parcels!E7=1,Parcels!A7,"") ->  | AQ6: =IF(Parcels!$E7=2,Parcels!$A7,"") ->  | AR6: =IF(Parcels!$E7=3,Parcels!$A7,"") ->  | AS6: =IF(Parcels!$E7=4,Parcels!$A7,"") ->  | AT6: =IF(Parcels!$E7=5,Parcels!$A7,"") -> 
H7: NA | L7: SiteControlTotalCost | M7: =SUM(M2:M6) -> 0 | N7: =SUM(N2:N6) -> 0 | O7: HoldingTotalCost | R7: =IFERROR(Services!B51,"") -> 0 | S7: =IFERROR(Services!L51,"") -> 0 | T7: =IFERROR(Services!T51,"") -> 0 | U7: =IFERROR(Services!Y51,"") -> 0 | V7: =IFERROR(Services!AM51,"") -> 0 | W7: =IF(Services!AS51="Provider",1,0) -> 0 | X7: =W7*SUM($W$3:W7) -> 0 | Y7: =IF(Services!AS51="Reference",1,0) -> 0 | Z7: =Y7*SUM($Y$3:Y7) -> 0 | AB7: =IFERROR(INDEX(ProviderContactsTbl[Company Name],MATCH(ROW(5:5),ProviderContactsTbl[R-Provider],0)),"") ->  | AD7: =IFERROR(INDEX(ProviderContactsTbl[Company Name],MATCH(ROW(5:5),ProviderContactsTbl[R-Reference],0)),"") ->  | AP7: =IF(Parcels!E8=1,Parcels!A8,"") ->  | AQ7: =IF(Parcels!$E8=2,Parcels!$A8,"") ->  | AR7: =IF(Parcels!$E8=3,Parcels!$A8,"") ->  | AS7: =IF(Parcels!$E8=4,Parcels!$A8,"") ->  | AT7: =IF(Parcels!$E8=5,Parcels!$A8,"") -> 
R8: =IFERROR(Services!B52,"") -> 0 | S8: =IFERROR(Services!L52,"") -> 0 | T8: =IFERROR(Services!T52,"") -> 0 | U8: =IFERROR(Services!Y52,"") -> 0 | V8: =IFERROR(Services!AM52,"") -> 0 | W8: =IF(Services!AS52="Provider",1,0) -> 0 | X8: =W8*SUM($W$3:W8) -> 0 | Y8: =IF(Services!AS52="Reference",1,0) -> 0 | Z8: =Y8*SUM($Y$3:Y8) -> 0 | AB8: =IFERROR(INDEX(ProviderContactsTbl[Company Name],MATCH(ROW(6:6),ProviderContactsTbl[R-Provider],0)),"") ->  | AD8: =IFERROR(INDEX(ProviderContactsTbl[Company Name],MATCH(ROW(6:6),ProviderContactsTbl[R-Reference],0)),"") ->  | AP8: =IF(Parcels!E9=1,Parcels!A9,"") ->  | AQ8: =IF(Parcels!$E9=2,Parcels!$A9,"") ->  | AR8: =IF(Parcels!$E9=3,Parcels!$A9,"") ->  | AS8: =IF(Parcels!$E9=4,Parcels!$A9,"") ->  | AT8: =IF(Parcels!$E9=5,Parcels!$A9,"") -> 
H9: ListAgreementTypes | I9: ListAppraisalRequired | R9: =IFERROR(Services!B53,"") -> 0 | S9: =IFERROR(Services!L53,"") -> 0 | T9: =IFERROR(Services!T53,"") -> 0 | U9: =IFERROR(Services!Y53,"") -> 0 | V9: =IFERROR(Services!AM53,"") -> 0 | W9: =IF(Services!AS53="Provider",1,0) -> 0 | X9: =W9*SUM($W$3:W9) -> 0 | Y9: =IF(Services!AS53="Reference",1,0) -> 0 | Z9: =Y9*SUM($Y$3:Y9) -> 0 | AP9: =IF(Parcels!E10=1,Parcels!A10,"") ->  | AQ9: =IF(Parcels!$E10=2,Parcels!$A10,"") ->  | AR9: =IF(Parcels!$E10=3,Parcels!$A10,"") ->  | AS9: =IF(Parcels!$E10=4,Parcels!$A10,"") ->  | AT9: =IF(Parcels!$E10=5,Parcels!$A10,"") -> 
H10: Grant Deed | I10: FALSE | R10: =IFERROR(Services!B54,"") -> 0 | S10: =IFERROR(Services!L54,"") -> 0 | T10: =IFERROR(Services!T54,"") -> 0 | U10: =IFERROR(Services!Y54,"") -> 0 | V10: =IFERROR(Services!AM54,"") -> 0 | W10: =IF(Services!AS54="Provider",1,0) -> 0 | X10: =W10*SUM($W$3:W10) -> 0 | Y10: =IF(Services!AS54="Reference",1,0) -> 0 | Z10: =Y10*SUM($Y$3:Y10) -> 0 | AP10: =IF(Parcels!E11=1,Parcels!A11,"") ->  | AQ10: =IF(Parcels!$E11=2,Parcels!$A11,"") ->  | AR10: =IF(Parcels!$E11=3,Parcels!$A11,"") ->  | AS10: =IF(Parcels!$E11=4,Parcels!$A11,"") ->  | AT10: =IF(Parcels!$E11=5,Parcels!$A11,"") -> 
H11: Lease Agreement | I11: TRUE | R11: =IFERROR(Services!B55,"") -> 0 | S11: =IFERROR(Services!L55,"") -> 0 | T11: =IFERROR(Services!T55,"") -> 0 | U11: =IFERROR(Services!Y55,"") -> 0 | V11: =IFERROR(Services!AM55,"") -> 0 | W11: =IF(Services!AS55="Provider",1,0) -> 0 | X11: =W11*SUM($W$3:W11) -> 0 | Y11: =IF(Services!AS55="Reference",1,0) -> 0 | Z11: =Y11*SUM($Y$3:Y11) -> 0 | AP11: =IF(Parcels!E12=1,Parcels!A12,"") ->  | AQ11: =IF(Parcels!$E12=2,Parcels!$A12,"") ->  | AR11: =IF(Parcels!$E12=3,Parcels!$A12,"") ->  | AS11: =IF(Parcels!$E12=4,Parcels!$A12,"") ->  | AT11: =IF(Parcels!$E12=5,Parcels!$A12,"") -> 
H12: Purchase and Sales Agreement | I12: FALSE | R12: =IFERROR(Services!B56,"") -> 0 | S12: =IFERROR(Services!L56,"") -> 0 | T12: =IFERROR(Services!T56,"") -> 0 | U12: =IFERROR(Services!Y56,"") -> 0 | V12: =IFERROR(Services!AM56,"") -> 0 | W12: =IF(Services!AS56="Provider",1,0) -> 0 | X12: =W12*SUM($W$3:W12) -> 0 | Y12: =IF(Services!AS56="Reference",1,0) -> 0 | Z12: =Y12*SUM($Y$3:Y12) -> 0 | AP12: =IF(Parcels!E13=1,Parcels!A13,"") ->  | AQ12: =IF(Parcels!$E13=2,Parcels!$A13,"") ->  | AR12: =IF(Parcels!$E13=3,Parcels!$A13,"") ->  | AS12: =IF(Parcels!$E13=4,Parcels!$A13,"") ->  | AT12: =IF(Parcels!$E13=5,Parcels!$A13,"") -> 
H13: Purchase Option Agreement | I13: FALSE | R13: =IFERROR(Services!B57,"") -> 0 | S13: =IFERROR(Services!L57,"") -> 0 | T13: =IFERROR(Services!T57,"") -> 0 | U13: =IFERROR(Services!Y57,"") -> 0 | V13: =IFERROR(Services!AM57,"") -> 0 | W13: =IF(Services!AS57="Provider",1,0) -> 0 | X13: =W13*SUM($W$3:W13) -> 0 | Y13: =IF(Services!AS57="Reference",1,0) -> 0 | Z13: =Y13*SUM($Y$3:Y13) -> 0 | AP13: =IF(Parcels!E14=1,Parcels!A14,"") ->  | AQ13: =IF(Parcels!$E14=2,Parcels!$A14,"") ->  | AR13: =IF(Parcels!$E14=3,Parcels!$A14,"") ->  | AS13: =IF(Parcels!$E14=4,Parcels!$A14,"") ->  | AT13: =IF(Parcels!$E14=5,Parcels!$A14,"") -> 
H14: Lease Option | I14: TRUE | R14: =IFERROR(Services!B58,"") -> 0 | S14: =IFERROR(Services!L58,"") -> 0 | T14: =IFERROR(Services!T58,"") -> 0 | U14: =IFERROR(Services!Y58,"") -> 0 | V14: =IFERROR(Services!AM58,"") -> 0 | W14: =IF(Services!AS58="Provider",1,0) -> 0 | X14: =W14*SUM($W$3:W14) -> 0 | Y14: =IF(Services!AS58="Reference",1,0) -> 0 | Z14: =Y14*SUM($Y$3:Y14) -> 0 | AP14: =IF(Parcels!E15=1,Parcels!A15,"") ->  | AQ14: =IF(Parcels!$E15=2,Parcels!$A15,"") ->  | AR14: =IF(Parcels!$E15=3,Parcels!$A15,"") ->  | AS14: =IF(Parcels!$E15=4,Parcels!$A15,"") ->  | AT14: =IF(Parcels!$E15=5,Parcels!$A15,"") -> 
H15: Disposition and Development Agreement | I15: TRUE | R15: =IFERROR(Services!B59,"") -> 0 | S15: =IFERROR(Services!L59,"") -> 0 | T15: =IFERROR(Services!T59,"") -> 0 | U15: =IFERROR(Services!Y59,"") -> 0 | V15: =IFERROR(Services!AM59,"") -> 0 | W15: =IF(Services!AS59="Provider",1,0) -> 0 | X15: =W15*SUM($W$3:W15) -> 0 | Y15: =IF(Services!AS59="Reference",1,0) -> 0 | Z15: =Y15*SUM($Y$3:Y15) -> 0 | AP15: =IF(Parcels!E16=1,Parcels!A16,"") -> 
H16: Donation Agreement | I16: TRUE | R16: =IFERROR(Services!B60,"") -> 0 | S16: =IFERROR(Services!L60,"") -> 0 | T16: =IFERROR(Services!T60,"") -> 0 | U16: =IFERROR(Services!Y60,"") -> 0 | V16: =IFERROR(Services!AM60,"") -> 0 | W16: =IF(Services!AS60="Provider",1,0) -> 0 | X16: =W16*SUM($W$3:W16) -> 0 | Y16: =IF(Services!AS60="Reference",1,0) -> 0 | Z16: =Y16*SUM($Y$3:Y16) -> 0
R17: =IFERROR(Services!B61,"") -> 0 | S17: =IFERROR(Services!L61,"") -> 0 | T17: =IFERROR(Services!T61,"") -> 0 | U17: =IFERROR(Services!Y61,"") -> 0 | V17: =IFERROR(Services!AM61,"") -> 0 | W17: =IF(Services!AS61="Provider",1,0) -> 0 | X17: =W17*SUM($W$3:W17) -> 0 | Y17: =IF(Services!AS61="Reference",1,0) -> 0 | Z17: =Y17*SUM($Y$3:Y17) -> 0
R18: =IFERROR(Services!B62,"") -> 0 | S18: =IFERROR(Services!L62,"") -> 0 | T18: =IFERROR(Services!T62,"") -> 0 | U18: =IFERROR(Services!Y62,"") -> 0 | V18: =IFERROR(Services!AM62,"") -> 0 | W18: =IF(Services!AS62="Provider",1,0) -> 0 | X18: =W18*SUM($W$3:W18) -> 0 | Y18: =IF(Services!AS62="Reference",1,0) -> 0 | Z18: =Y18*SUM($Y$3:Y18) -> 0
H19: ListDocumentTypes | R19: =IFERROR(Services!B63,"") -> 0 | S19: =IFERROR(Services!L63,"") -> 0 | T19: =IFERROR(Services!T63,"") -> 0 | U19: =IFERROR(Services!Y63,"") -> 0 | V19: =IFERROR(Services!AM63,"") -> 0 | W19: =IF(Services!AS63="Provider",1,0) -> 0 | X19: =W19*SUM($W$3:W19) -> 0 | Y19: =IF(Services!AS63="Reference",1,0) -> 0 | Z19: =Y19*SUM($Y$3:Y19) -> 0
H20: Amends
H21: Assigns
H22: Authorizes
H23: Clarifies
H24: Expounds
H25: Extends
H26: Restates
H27: Site Control
H28: Supports
H29: Title Information
H31: ListCostDocTypes
H32: Site Control Document
H33: Settlement Statement
H34: Appraisal
G36: =INDEX(val,MATCH("g_County",ref,0)) -> Alameda | H36: County
H37: CountyRow
H39: LowIncomeUnits
H40: TotalUnits
H42: ListCreditType
H43: 0.04
H44: 0.09
